,Department Family,Entity,Date,Expense Type,Expense Area,Supplier,Transaction Number, Amount ,Item Description
,BEIS,UKRI - AHRC,04/12/2018,Provisions ( Food etc),HR,1st Biotech Ltd,98350096,518.40,Provisions ( Food etc)
,BEIS,UKRI - AHRC,04/12/2018,Provisions ( Food etc),HR,1st Biotech Ltd,98350096,2.99,Provisions ( Food etc)
,BEIS,UKRI - AHRC,04/12/2018,Provisions ( Food etc),HR,1st Biotech Ltd,98350096,14.95,Provisions ( Food etc)
,BEIS,UKRI - AHRC,10/12/2018,Research Grant Expenditure,Networks & Workshops,Aberystwyth University,98347505,4510.08,Research Grant Expenditure
,BEIS,UKRI - AHRC,10/12/2018,Research Grant Expenditure,Research Grants,Aberystwyth University,98347532,52801.22,Research Grant Expenditure
,BEIS,UKRI - AHRC,10/12/2018,Research Grant Expenditure,RCUK Newton Programme,Aberystwyth University,98347682,22138.96,Research Grant Expenditure
,BEIS,UKRI - AHRC,07/12/2018,Agency Staff,PSU Project Office,Alexander Mann Solutions Limited,98360169,499.32,Agency Staff
,BEIS,UKRI - AHRC,19/12/2018,Computer Software,Business Process & Analysis,Alteryx Inc,98369379,7894.50,Computer Software
,BEIS,UKRI - AHRC,03/12/2018,Staff Training,Corporate Services,AM Health & Safety Ltd,98349242,456.00,Staff Training
,BEIS,UKRI - AHRC,04/12/2018,Health & Safety (inc. Medicals & Opticians),Corporate Services,AM Health & Safety Ltd,98352588,45.00,Health & Safety (inc. Medicals & Opticians)
,BEIS,UKRI - AHRC,27/12/2018,Health & Safety (inc. Medicals & Opticians),Corporate Services,AM Health & Safety Ltd,98372962,45.00,Health & Safety (inc. Medicals & Opticians)
,BEIS,UKRI - AHRC,11/12/2018,Legal & Professional Services,PSU Project Office,Automated Intelligence Ltd,98303470,8124.00,Legal & Professional Services
,BEIS,UKRI - AHRC,11/12/2018,Legal & Professional Services,PSU Project Office,Automated Intelligence Ltd,98303470,43.50,Legal & Professional Services
,BEIS,UKRI - AHRC,10/12/2018,Research Grant Expenditure,Networks & Workshops,Bangor University,98347741,5443.71,Research Grant Expenditure
,BEIS,UKRI - AHRC,10/12/2018,Research Grant Expenditure,Follow-on Fund,Bangor University,98347763,23896.61,Research Grant Expenditure
,BEIS,UKRI - AHRC,07/12/2018,Purchase of non capital equipment,IS,Banner Group Ltd,98354870,10.55,Purchase of non capital equipment
,BEIS,UKRI - AHRC,07/12/2018,Computer Hardware,IS,Banner Group Ltd,98354871,98.59,Computer Hardware
,BEIS,UKRI - AHRC,12/12/2018,Purchase of non capital equipment,HR,Banner Group Ltd,98363383,11.65,Purchase of non capital equipment
,BEIS,UKRI - AHRC,13/12/2018,Printing & Stationery,PSU Project Office,Banner Group Ltd,98363384,47.16,Printing & Stationery
,BEIS,UKRI - AHRC,13/12/2018,Printing & Stationery,HR,Banner Group Ltd,98365261,6.50,Printing & Stationery
,BEIS,UKRI - AHRC,10/12/2018,Research Grant Expenditure,Connected Communities Programme,Bath Spa University,98347533,91367.02,Research Grant Expenditure
,BEIS,UKRI - AHRC,18/12/2018,Research Grant Expenditure,Global Challenges Research Fund (GCRF),Biotechnology and Biological Sciences Research Council (BBSRC),98367578,11018.82,Research Grant Expenditure
,BEIS,UKRI - AHRC,10/12/2018,Research Grant Expenditure,Research Grants,Birkbeck College,98347460,66292.88,Research Grant Expenditure
,BEIS,UKRI - AHRC,10/12/2018,Research Grant Expenditure,Research Grants,Birkbeck College,98347470,20319.24,Research Grant Expenditure
,BEIS,UKRI - AHRC,10/12/2018,Research Grant Expenditure,Research Grants,Birmingham City University,98347456,34451.74,Research Grant Expenditure
,BEIS,UKRI - AHRC,10/12/2018,Research Grant Expenditure,Research Grants,Birmingham City University,98347572,42558.28,Research Grant Expenditure
,BEIS,UKRI - AHRC,10/12/2018,Research Grant Expenditure,JPI Cultural Heritage,Birmingham City University,98347726,-404.88,Research Grant Expenditure
,BEIS,UKRI - AHRC,10/12/2018,Fellowships,Research Fellowships,Birmingham City University,98347842,17003.15,Fellowships
,BEIS,UKRI - AHRC,10/12/2018,Research Grant Expenditure,Research Grants,Bournemouth University GRANT,98347493,55789.36,Research Grant Expenditure
,BEIS,UKRI - AHRC,10/12/2018,Research Grant Expenditure,Global Challenges Research Fund (GCRF),Bournemouth University GRANT,98347596,14856.04,Research Grant Expenditure
,BEIS,UKRI - AHRC,10/12/2018,Research Grant Expenditure,Follow-on Fund,Bournemouth University GRANT,98347766,29011.24,Research Grant Expenditure
,BEIS,UKRI - AHRC,10/12/2018,Research Grant Expenditure,Research Grants,British Institute Of International And Comparative Law,98347661,27753.07,Research Grant Expenditure
,BEIS,UKRI - AHRC,10/12/2018,Research Grant Expenditure,JPI Cultural Heritage,British Institute Of International And Comparative Law,98347728,-4059.67,Research Grant Expenditure
,BEIS,UKRI - AHRC,10/12/2018,Research Grant Expenditure,Research Grants,British Museum,98347434,55477.50,Research Grant Expenditure
,BEIS,UKRI - AHRC,10/12/2018,Research Grant Expenditure,Connected Communities Programme,Brunel University London,98347431,101993.61,Research Grant Expenditure
,BEIS,UKRI - AHRC,10/12/2018,Research Grant Expenditure,Newton Programme,Brunel University London,98347687,14368.97,Research Grant Expenditure
,BEIS,UKRI - AHRC,18/12/2018,Conferences & Seminars,Secretariat,Calder Conference Ltd,98367827,2697.72,Conferences & Seminars
,BEIS,UKRI - AHRC,10/12/2018,Research Grant Expenditure,Research Grants,Canterbury Christ Church University GRANT,98347555,34543.11,Research Grant Expenditure
,BEIS,UKRI - AHRC,10/12/2018,Research Grant Expenditure,Research Grants,Cardiff University,98347507,15655.61,Research Grant Expenditure
,BEIS,UKRI - AHRC,10/12/2018,Research Grant Expenditure,Research Grants,Cardiff University,98347509,16703.93,Research Grant Expenditure
,BEIS,UKRI - AHRC,10/12/2018,Research Grant Expenditure,Research Grants,Cardiff University,98347581,27158.03,Research Grant Expenditure
,BEIS,UKRI - AHRC,10/12/2018,Research Grant Expenditure,Networks & Workshops,Cardiff University,98347586,4485.65,Research Grant Expenditure
,BEIS,UKRI - AHRC,10/12/2018,Research Grant Expenditure,Global Challenges Research Fund (GCRF),Cardiff University,98347614,5000.00,Research Grant Expenditure
,BEIS,UKRI - AHRC,10/12/2018,Research Grant Expenditure,Research Grants,Cardiff University,98347621,22402.96,Research Grant Expenditure
,BEIS,UKRI - AHRC,10/12/2018,Research Grant Expenditure,Networks & Workshops,Cardiff University,98347637,4214.82,Research Grant Expenditure
,BEIS,UKRI - AHRC,10/12/2018,Research Grant Expenditure,Newton Programme,Cardiff University,98347641,13774.84,Research Grant Expenditure
,BEIS,UKRI - AHRC,10/12/2018,Research Grant Expenditure,Industrial Strategy Challenge Fund (ISCF) - Creative Clusters,Cardiff University,98347707,291914.84,Research Grant Expenditure
,BEIS,UKRI - AHRC,10/12/2018,Fellowships,Research Fellowships,Cardiff University,98347855,29557.24,Fellowships
,BEIS,UKRI - AHRC,13/12/2018,Voluntary Deductions,Balance Sheet,Chargive,98364298,7.00,Voluntary Deductions
,BEIS,UKRI - AHRC,13/12/2018,Voluntary Deductions,Balance Sheet,Civil Service Benevolent Fund,98364297,3.00,Voluntary Deductions
,BEIS,UKRI - AHRC,19/12/2018,Non-staff travel and subsistance,Creative Arts & Digital Humanities,Corporate Travel Management (North) Ltd,98369858,0.50,Non-staff travel and subsistance
,BEIS,UKRI - AHRC,19/12/2018,Non-staff travel and subsistance,Creative Arts & Digital Humanities,Corporate Travel Management (North) Ltd,98369858,83.00,Non-staff travel and subsistance
,BEIS,UKRI - AHRC,19/12/2018,Non-staff travel and subsistance,Creative Arts & Digital Humanities,Corporate Travel Management (North) Ltd,98369858,0.50,Non-staff travel and subsistance
,BEIS,UKRI - AHRC,19/12/2018,Non-staff travel and subsistance,Creative Arts & Digital Humanities,Corporate Travel Management (North) Ltd,98369858,41.50,Non-staff travel and subsistance
,BEIS,UKRI - AHRC,19/12/2018,Non-staff travel and subsistance,Creative Arts & Digital Humanities,Corporate Travel Management (North) Ltd,98369858,0.50,Non-staff travel and subsistance
,BEIS,UKRI - AHRC,19/12/2018,Non-staff travel and subsistance,Creative Arts & Digital Humanities,Corporate Travel Management (North) Ltd,98369858,0.50,Non-staff travel and subsistance
,BEIS,UKRI - AHRC,19/12/2018,Non-staff travel and subsistance,Creative Arts & Digital Humanities,Corporate Travel Management (North) Ltd,98369858,41.50,Non-staff travel and subsistance
,BEIS,UKRI - AHRC,19/12/2018,Non-staff travel and subsistance,Creative Arts & Digital Humanities,Corporate Travel Management (North) Ltd,98369858,0.40,Non-staff travel and subsistance
,BEIS,UKRI - AHRC,19/12/2018,Non-staff travel and subsistance,GCRF - Programme Delivery,Corporate Travel Management (North) Ltd,98369858,0.50,Non-staff travel and subsistance
,BEIS,UKRI - AHRC,19/12/2018,Non-staff travel and subsistance,GCRF - Programme Delivery,Corporate Travel Management (North) Ltd,98369858,75.00,Non-staff travel and subsistance
,BEIS,UKRI - AHRC,19/12/2018,Non-staff travel and subsistance,GCRF - Programme Delivery,Corporate Travel Management (North) Ltd,98369858,0.50,Non-staff travel and subsistance
,BEIS,UKRI - AHRC,19/12/2018,Non-staff travel and subsistance,GCRF - Programme Delivery,Corporate Travel Management (North) Ltd,98369858,75.00,Non-staff travel and subsistance
,BEIS,UKRI - AHRC,19/12/2018,Non-staff travel and subsistance,GCRF - Programme Delivery,Corporate Travel Management (North) Ltd,98369858,0.50,Non-staff travel and subsistance
,BEIS,UKRI - AHRC,19/12/2018,Non-staff travel and subsistance,GCRF - Programme Delivery,Corporate Travel Management (North) Ltd,98369858,75.00,Non-staff travel and subsistance
,BEIS,UKRI - AHRC,19/12/2018,Non-staff travel and subsistance,GCRF - Programme Delivery,Corporate Travel Management (North) Ltd,98369858,0.50,Non-staff travel and subsistance
,BEIS,UKRI - AHRC,19/12/2018,Non-staff travel and subsistance,GCRF - Programme Delivery,Corporate Travel Management (North) Ltd,98369858,75.00,Non-staff travel and subsistance
,BEIS,UKRI - AHRC,19/12/2018,Non-staff travel and subsistance,GCRF - Programme Delivery,Corporate Travel Management (North) Ltd,98369858,0.50,Non-staff travel and subsistance
,BEIS,UKRI - AHRC,19/12/2018,Non-staff travel and subsistance,GCRF - Programme Delivery,Corporate Travel Management (North) Ltd,98369858,75.00,Non-staff travel and subsistance
,BEIS,UKRI - AHRC,19/12/2018,Non-staff travel and subsistance,GCRF - Programme Delivery,Corporate Travel Management (North) Ltd,98369858,0.50,Non-staff travel and subsistance
,BEIS,UKRI - AHRC,19/12/2018,Non-staff travel and subsistance,"Histories,Culture & Heritage",Corporate Travel Management (North) Ltd,98369858,0.50,Non-staff travel and subsistance
,BEIS,UKRI - AHRC,19/12/2018,Non-staff travel and subsistance,"Histories,Culture & Heritage",Corporate Travel Management (North) Ltd,98369858,41.50,Non-staff travel and subsistance
,BEIS,UKRI - AHRC,19/12/2018,Non-staff travel and subsistance,"Histories,Culture & Heritage",Corporate Travel Management (North) Ltd,98369858,0.50,Non-staff travel and subsistance
,BEIS,UKRI - AHRC,19/12/2018,Non-staff travel and subsistance,"Histories,Culture & Heritage",Corporate Travel Management (North) Ltd,98369858,41.50,Non-staff travel and subsistance
,BEIS,UKRI - AHRC,19/12/2018,Non-staff travel and subsistance,"Histories,Culture & Heritage",Corporate Travel Management (North) Ltd,98369858,0.50,Non-staff travel and subsistance
,BEIS,UKRI - AHRC,19/12/2018,Non-staff travel and subsistance,"Histories,Culture & Heritage",Corporate Travel Management (North) Ltd,98369858,41.50,Non-staff travel and subsistance
,BEIS,UKRI - AHRC,19/12/2018,Non-staff travel and subsistance,"Histories,Culture & Heritage",Corporate Travel Management (North) Ltd,98369858,0.50,Non-staff travel and subsistance
,BEIS,UKRI - AHRC,19/12/2018,Non-staff travel and subsistance,"Histories,Culture & Heritage",Corporate Travel Management (North) Ltd,98369858,41.50,Non-staff travel and subsistance
,BEIS,UKRI - AHRC,19/12/2018,Non-staff travel and subsistance,"Histories,Culture & Heritage",Corporate Travel Management (North) Ltd,98369858,0.50,Non-staff travel and subsistance
,BEIS,UKRI - AHRC,19/12/2018,Non-staff travel and subsistance,"Histories,Culture & Heritage",Corporate Travel Management (North) Ltd,98369858,41.50,Non-staff travel and subsistance
,BEIS,UKRI - AHRC,19/12/2018,Non-staff travel and subsistance,"Histories,Culture & Heritage",Corporate Travel Management (North) Ltd,98369858,0.50,Non-staff travel and subsistance
,BEIS,UKRI - AHRC,19/12/2018,Non-staff travel and subsistance,"Languages,Literature & International Engagement",Corporate Travel Management (North) Ltd,98369858,0.50,Non-staff travel and subsistance
,BEIS,UKRI - AHRC,19/12/2018,Non-staff travel and subsistance,"Languages,Literature & International Engagement",Corporate Travel Management (North) Ltd,98369858,41.50,Non-staff travel and subsistance
,BEIS,UKRI - AHRC,19/12/2018,Non-staff travel and subsistance,"Languages,Literature & International Engagement",Corporate Travel Management (North) Ltd,98369858,0.50,Non-staff travel and subsistance
,BEIS,UKRI - AHRC,19/12/2018,Non-staff travel and subsistance,"Languages,Literature & International Engagement",Corporate Travel Management (North) Ltd,98369858,41.50,Non-staff travel and subsistance
,BEIS,UKRI - AHRC,19/12/2018,Non-staff travel and subsistance,"Languages,Literature & International Engagement",Corporate Travel Management (North) Ltd,98369858,0.50,Non-staff travel and subsistance
,BEIS,UKRI - AHRC,19/12/2018,Non-staff travel and subsistance,"Languages,Literature & International Engagement",Corporate Travel Management (North) Ltd,98369858,83.00,Non-staff travel and subsistance
,BEIS,UKRI - AHRC,19/12/2018,Non-staff travel and subsistance,"Languages,Literature & International Engagement",Corporate Travel Management (North) Ltd,98369858,0.30,Non-staff travel and subsistance
,BEIS,UKRI - AHRC,19/12/2018,T&S Overseas - Accommodation,HERA JRP Project,Corporate Travel Management (North) Ltd,98369858,0.50,T&S Overseas - Accommodation
,BEIS,UKRI - AHRC,19/12/2018,T&S Overseas - Accommodation,HERA JRP Project,Corporate Travel Management (North) Ltd,98369858,0.10,T&S Overseas - Accommodation
,BEIS,UKRI - AHRC,19/12/2018,T&S Overseas - Accommodation,"Histories,Culture & Heritage",Corporate Travel Management (North) Ltd,98369858,0.50,T&S Overseas - Accommodation
,BEIS,UKRI - AHRC,19/12/2018,T&S Overseas - Accommodation,"Histories,Culture & Heritage",Corporate Travel Management (North) Ltd,98369858,0.10,T&S Overseas - Accommodation
,BEIS,UKRI - AHRC,19/12/2018,T&S Overseas - Accommodation,JPI Cultural Heritage Project,Corporate Travel Management (North) Ltd,98369858,0.50,T&S Overseas - Accommodation
,BEIS,UKRI - AHRC,19/12/2018,T&S Overseas - Accommodation,JPI Cultural Heritage Project,Corporate Travel Management (North) Ltd,98369858,0.10,T&S Overseas - Accommodation
,BEIS,UKRI - AHRC,19/12/2018,T&S Overseas - Accommodation,SMT,Corporate Travel Management (North) Ltd,98369858,0.50,T&S Overseas - Accommodation
,BEIS,UKRI - AHRC,19/12/2018,T&S Overseas - Accommodation,SMT,Corporate Travel Management (North) Ltd,98369858,0.50,T&S Overseas - Accommodation
,BEIS,UKRI - AHRC,19/12/2018,T&S Overseas - Accommodation,SMT,Corporate Travel Management (North) Ltd,98369858,0.50,T&S Overseas - Accommodation
,BEIS,UKRI - AHRC,19/12/2018,T&S Overseas - Accommodation,SMT,Corporate Travel Management (North) Ltd,98369858,1.44,T&S Overseas - Accommodation
,BEIS,UKRI - AHRC,19/12/2018,T&S Overseas - Accommodation,SMT,Corporate Travel Management (North) Ltd,98369858,0.50,T&S Overseas - Accommodation
,BEIS,UKRI - AHRC,19/12/2018,T&S Overseas - Accommodation,SMT,Corporate Travel Management (North) Ltd,98369858,1.44,T&S Overseas - Accommodation
,BEIS,UKRI - AHRC,19/12/2018,T&S Overseas - Accommodation,SMT,Corporate Travel Management (North) Ltd,98369858,0.98,T&S Overseas - Accommodation
,BEIS,UKRI - AHRC,19/12/2018,T&S Overseas - Flights,Fund for International Collaboration,Corporate Travel Management (North) Ltd,98369858,-2649.81,T&S Overseas - Flights
,BEIS,UKRI - AHRC,19/12/2018,T&S Overseas - Flights,SMT,Corporate Travel Management (North) Ltd,98369858,2.16,T&S Overseas - Flights
,BEIS,UKRI - AHRC,19/12/2018,T&S Overseas - Flights,SMT,Corporate Travel Management (North) Ltd,98369858,117.89,T&S Overseas - Flights
,BEIS,UKRI - AHRC,19/12/2018,T&S UK - Accommodation,Business Process & Analysis,Corporate Travel Management (North) Ltd,98369858,0.50,T&S UK - Accommodation
,BEIS,UKRI - AHRC,19/12/2018,T&S UK - Accommodation,Business Process & Analysis,Corporate Travel Management (North) Ltd,98369858,0.50,T&S UK - Accommodation
,BEIS,UKRI - AHRC,19/12/2018,T&S UK - Accommodation,Business Process & Analysis,Corporate Travel Management (North) Ltd,98369858,59.00,T&S UK - Accommodation
,BEIS,UKRI - AHRC,19/12/2018,T&S UK - Accommodation,Business Process & Analysis,Corporate Travel Management (North) Ltd,98369858,0.50,T&S UK - Accommodation
,BEIS,UKRI - AHRC,19/12/2018,T&S UK - Accommodation,Business Process & Analysis,Corporate Travel Management (North) Ltd,98369858,59.00,T&S UK - Accommodation
,BEIS,UKRI - AHRC,19/12/2018,T&S UK - Accommodation,Business Process & Analysis,Corporate Travel Management (North) Ltd,98369858,0.50,T&S UK - Accommodation
,BEIS,UKRI - AHRC,19/12/2018,T&S UK - Accommodation,Business Process & Analysis,Corporate Travel Management (North) Ltd,98369858,59.00,T&S UK - Accommodation
,BEIS,UKRI - AHRC,19/12/2018,T&S UK - Accommodation,Business Process & Analysis,Corporate Travel Management (North) Ltd,98369858,0.50,T&S UK - Accommodation
,BEIS,UKRI - AHRC,19/12/2018,T&S UK - Accommodation,Business Process & Analysis,Corporate Travel Management (North) Ltd,98369858,0.50,T&S UK - Accommodation
,BEIS,UKRI - AHRC,19/12/2018,T&S UK - Accommodation,Business Process & Analysis,Corporate Travel Management (North) Ltd,98369858,59.00,T&S UK - Accommodation
,BEIS,UKRI - AHRC,19/12/2018,T&S UK - Accommodation,Business Process & Analysis,Corporate Travel Management (North) Ltd,98369858,0.50,T&S UK - Accommodation
,BEIS,UKRI - AHRC,19/12/2018,T&S UK - Accommodation,Business Process & Analysis,Corporate Travel Management (North) Ltd,98369858,59.00,T&S UK - Accommodation
,BEIS,UKRI - AHRC,19/12/2018,T&S UK - Accommodation,Business Process & Analysis,Corporate Travel Management (North) Ltd,98369858,0.50,T&S UK - Accommodation
,BEIS,UKRI - AHRC,19/12/2018,T&S UK - Accommodation,Business Process & Analysis,Corporate Travel Management (North) Ltd,98369858,59.00,T&S UK - Accommodation
,BEIS,UKRI - AHRC,19/12/2018,T&S UK - Accommodation,Business Process & Analysis,Corporate Travel Management (North) Ltd,98369858,0.50,T&S UK - Accommodation
,BEIS,UKRI - AHRC,19/12/2018,T&S UK - Accommodation,Business Process & Analysis,Corporate Travel Management (North) Ltd,98369858,59.00,T&S UK - Accommodation
,BEIS,UKRI - AHRC,19/12/2018,T&S UK - Accommodation,Business Process & Analysis,Corporate Travel Management (North) Ltd,98369858,0.90,T&S UK - Accommodation
,BEIS,UKRI - AHRC,19/12/2018,T&S UK - Accommodation,Communications,Corporate Travel Management (North) Ltd,98369858,0.50,T&S UK - Accommodation
,BEIS,UKRI - AHRC,19/12/2018,T&S UK - Accommodation,Communications,Corporate Travel Management (North) Ltd,98369858,80.10,T&S UK - Accommodation
,BEIS,UKRI - AHRC,19/12/2018,T&S UK - Accommodation,Communications,Corporate Travel Management (North) Ltd,98369858,0.10,T&S UK - Accommodation
,BEIS,UKRI - AHRC,19/12/2018,T&S UK - Accommodation,Creative Arts & Digital Humanities,Corporate Travel Management (North) Ltd,98369858,-94.50,T&S UK - Accommodation
,BEIS,UKRI - AHRC,19/12/2018,T&S UK - Accommodation,Creative Arts & Digital Humanities,Corporate Travel Management (North) Ltd,98369858,0.50,T&S UK - Accommodation
,BEIS,UKRI - AHRC,19/12/2018,T&S UK - Accommodation,Creative Arts & Digital Humanities,Corporate Travel Management (North) Ltd,98369858,0.50,T&S UK - Accommodation
,BEIS,UKRI - AHRC,19/12/2018,T&S UK - Accommodation,Creative Arts & Digital Humanities,Corporate Travel Management (North) Ltd,98369858,168.00,T&S UK - Accommodation
,BEIS,UKRI - AHRC,19/12/2018,T&S UK - Accommodation,Creative Arts & Digital Humanities,Corporate Travel Management (North) Ltd,98369858,0.50,T&S UK - Accommodation
,BEIS,UKRI - AHRC,19/12/2018,T&S UK - Accommodation,Creative Arts & Digital Humanities,Corporate Travel Management (North) Ltd,98369858,108.00,T&S UK - Accommodation
,BEIS,UKRI - AHRC,19/12/2018,T&S UK - Accommodation,Creative Arts & Digital Humanities,Corporate Travel Management (North) Ltd,98369858,0.50,T&S UK - Accommodation
,BEIS,UKRI - AHRC,19/12/2018,T&S UK - Accommodation,Creative Arts & Digital Humanities,Corporate Travel Management (North) Ltd,98369858,41.50,T&S UK - Accommodation
,BEIS,UKRI - AHRC,19/12/2018,T&S UK - Accommodation,Creative Arts & Digital Humanities,Corporate Travel Management (North) Ltd,98369858,0.40,T&S UK - Accommodation
,BEIS,UKRI - AHRC,19/12/2018,T&S UK - Accommodation,HR,Corporate Travel Management (North) Ltd,98369858,0.50,T&S UK - Accommodation
,BEIS,UKRI - AHRC,19/12/2018,T&S UK - Accommodation,HR,Corporate Travel Management (North) Ltd,98369858,33.00,T&S UK - Accommodation
,BEIS,UKRI - AHRC,19/12/2018,T&S UK - Accommodation,HR,Corporate Travel Management (North) Ltd,98369858,0.50,T&S UK - Accommodation
,BEIS,UKRI - AHRC,19/12/2018,T&S UK - Accommodation,HR,Corporate Travel Management (North) Ltd,98369858,33.00,T&S UK - Accommodation
,BEIS,UKRI - AHRC,19/12/2018,T&S UK - Accommodation,HR,Corporate Travel Management (North) Ltd,98369858,0.20,T&S UK - Accommodation
,BEIS,UKRI - AHRC,19/12/2018,T&S UK - Accommodation,"Histories,Culture & Heritage",Corporate Travel Management (North) Ltd,98369858,0.50,T&S UK - Accommodation
,BEIS,UKRI - AHRC,19/12/2018,T&S UK - Accommodation,"Histories,Culture & Heritage",Corporate Travel Management (North) Ltd,98369858,47.00,T&S UK - Accommodation
,BEIS,UKRI - AHRC,19/12/2018,T&S UK - Accommodation,"Histories,Culture & Heritage",Corporate Travel Management (North) Ltd,98369858,0.50,T&S UK - Accommodation
,BEIS,UKRI - AHRC,19/12/2018,T&S UK - Accommodation,"Histories,Culture & Heritage",Corporate Travel Management (North) Ltd,98369858,113.00,T&S UK - Accommodation
,BEIS,UKRI - AHRC,19/12/2018,T&S UK - Accommodation,"Histories,Culture & Heritage",Corporate Travel Management (North) Ltd,98369858,0.50,T&S UK - Accommodation
,BEIS,UKRI - AHRC,19/12/2018,T&S UK - Accommodation,"Histories,Culture & Heritage",Corporate Travel Management (North) Ltd,98369858,113.00,T&S UK - Accommodation
,BEIS,UKRI - AHRC,19/12/2018,T&S UK - Accommodation,"Histories,Culture & Heritage",Corporate Travel Management (North) Ltd,98369858,0.50,T&S UK - Accommodation
,BEIS,UKRI - AHRC,19/12/2018,T&S UK - Accommodation,"Histories,Culture & Heritage",Corporate Travel Management (North) Ltd,98369858,56.50,T&S UK - Accommodation
,BEIS,UKRI - AHRC,19/12/2018,T&S UK - Accommodation,"Histories,Culture & Heritage",Corporate Travel Management (North) Ltd,98369858,0.40,T&S UK - Accommodation
,BEIS,UKRI - AHRC,19/12/2018,T&S UK - Accommodation,"Languages,Literature & International Engagement",Corporate Travel Management (North) Ltd,98369858,0.50,T&S UK - Accommodation
,BEIS,UKRI - AHRC,19/12/2018,T&S UK - Accommodation,"Languages,Literature & International Engagement",Corporate Travel Management (North) Ltd,98369858,0.10,T&S UK - Accommodation
,BEIS,UKRI - AHRC,19/12/2018,T&S UK - Accommodation,PSU Project Office,Corporate Travel Management (North) Ltd,98369858,0.50,T&S UK - Accommodation
,BEIS,UKRI - AHRC,19/12/2018,T&S UK - Accommodation,PSU Project Office,Corporate Travel Management (North) Ltd,98369858,225.00,T&S UK - Accommodation
,BEIS,UKRI - AHRC,19/12/2018,T&S UK - Accommodation,PSU Project Office,Corporate Travel Management (North) Ltd,98369858,0.10,T&S UK - Accommodation
,BEIS,UKRI - AHRC,19/12/2018,T&S UK - Accommodation,SMT,Corporate Travel Management (North) Ltd,98369858,0.50,T&S UK - Accommodation
,BEIS,UKRI - AHRC,19/12/2018,T&S UK - Accommodation,SMT,Corporate Travel Management (North) Ltd,98369858,58.15,T&S UK - Accommodation
,BEIS,UKRI - AHRC,19/12/2018,T&S UK - Accommodation,SMT,Corporate Travel Management (North) Ltd,98369858,0.50,T&S UK - Accommodation
,BEIS,UKRI - AHRC,19/12/2018,T&S UK - Accommodation,SMT,Corporate Travel Management (North) Ltd,98369858,56.50,T&S UK - Accommodation
,BEIS,UKRI - AHRC,19/12/2018,T&S UK - Accommodation,SMT,Corporate Travel Management (North) Ltd,98369858,0.50,T&S UK - Accommodation
,BEIS,UKRI - AHRC,19/12/2018,T&S UK - Accommodation,SMT,Corporate Travel Management (North) Ltd,98369858,56.50,T&S UK - Accommodation
,BEIS,UKRI - AHRC,19/12/2018,T&S UK - Accommodation,SMT,Corporate Travel Management (North) Ltd,98369858,0.50,T&S UK - Accommodation
,BEIS,UKRI - AHRC,19/12/2018,T&S UK - Accommodation,SMT,Corporate Travel Management (North) Ltd,98369858,221.50,T&S UK - Accommodation
,BEIS,UKRI - AHRC,19/12/2018,T&S UK - Accommodation,SMT,Corporate Travel Management (North) Ltd,98369858,0.50,T&S UK - Accommodation
,BEIS,UKRI - AHRC,19/12/2018,T&S UK - Accommodation,SMT,Corporate Travel Management (North) Ltd,98369858,52.80,T&S UK - Accommodation
,BEIS,UKRI - AHRC,19/12/2018,T&S UK - Accommodation,SMT,Corporate Travel Management (North) Ltd,98369858,0.50,T&S UK - Accommodation
,BEIS,UKRI - AHRC,19/12/2018,T&S UK - Accommodation,SMT,Corporate Travel Management (North) Ltd,98369858,106.95,T&S UK - Accommodation
,BEIS,UKRI - AHRC,19/12/2018,T&S UK - Accommodation,SMT,Corporate Travel Management (North) Ltd,98369858,0.50,T&S UK - Accommodation
,BEIS,UKRI - AHRC,19/12/2018,T&S UK - Accommodation,SMT,Corporate Travel Management (North) Ltd,98369858,65.00,T&S UK - Accommodation
,BEIS,UKRI - AHRC,19/12/2018,T&S UK - Accommodation,SMT,Corporate Travel Management (North) Ltd,98369858,0.50,T&S UK - Accommodation
,BEIS,UKRI - AHRC,19/12/2018,T&S UK - Accommodation,SMT,Corporate Travel Management (North) Ltd,98369858,169.50,T&S UK - Accommodation
,BEIS,UKRI - AHRC,19/12/2018,T&S UK - Accommodation,SMT,Corporate Travel Management (North) Ltd,98369858,0.50,T&S UK - Accommodation
,BEIS,UKRI - AHRC,19/12/2018,T&S UK - Accommodation,SMT,Corporate Travel Management (North) Ltd,98369858,80.00,T&S UK - Accommodation
,BEIS,UKRI - AHRC,19/12/2018,T&S UK - Accommodation,SMT,Corporate Travel Management (North) Ltd,98369858,0.90,T&S UK - Accommodation
,BEIS,UKRI - AHRC,19/12/2018,T&S UK - Accommodation,Skills,Corporate Travel Management (North) Ltd,98369858,0.50,T&S UK - Accommodation
,BEIS,UKRI - AHRC,19/12/2018,T&S UK - Accommodation,Skills,Corporate Travel Management (North) Ltd,98369858,56.50,T&S UK - Accommodation
,BEIS,UKRI - AHRC,19/12/2018,T&S UK - Accommodation,Skills,Corporate Travel Management (North) Ltd,98369858,0.50,T&S UK - Accommodation
,BEIS,UKRI - AHRC,19/12/2018,T&S UK - Accommodation,Skills,Corporate Travel Management (North) Ltd,98369858,56.50,T&S UK - Accommodation
,BEIS,UKRI - AHRC,19/12/2018,T&S UK - Accommodation,Skills,Corporate Travel Management (North) Ltd,98369858,0.50,T&S UK - Accommodation
,BEIS,UKRI - AHRC,19/12/2018,T&S UK - Accommodation,Skills,Corporate Travel Management (North) Ltd,98369858,80.00,T&S UK - Accommodation
,BEIS,UKRI - AHRC,19/12/2018,T&S UK - Accommodation,Skills,Corporate Travel Management (North) Ltd,98369858,0.30,T&S UK - Accommodation
,BEIS,UKRI - AHRC,19/12/2018,T&S UK - Flights,Creative Arts & Digital Humanities,Corporate Travel Management (North) Ltd,98369858,140.13,T&S UK - Flights
,BEIS,UKRI - AHRC,19/12/2018,T&S UK - Flights,Creative Arts & Digital Humanities,Corporate Travel Management (North) Ltd,98369858,128.01,T&S UK - Flights
,BEIS,UKRI - AHRC,19/12/2018,T&S UK - Flights,Creative Arts & Digital Humanities,Corporate Travel Management (North) Ltd,98369858,51.30,T&S UK - Flights
,BEIS,UKRI - AHRC,19/12/2018,T&S UK - Flights,Creative Arts & Digital Humanities,Corporate Travel Management (North) Ltd,98369858,146.19,T&S UK - Flights
,BEIS,UKRI - AHRC,19/12/2018,T&S UK - Flights,International,Corporate Travel Management (North) Ltd,98369858,256.98,T&S UK - Flights
,BEIS,UKRI - AHRC,19/12/2018,T&S UK - Flights,"Languages,Literature & International Engagement",Corporate Travel Management (North) Ltd,98369858,203.20,T&S UK - Flights
,BEIS,UKRI - AHRC,19/12/2018,T&S UK - Flights,Skills,Corporate Travel Management (North) Ltd,98369858,141.14,T&S UK - Flights
,BEIS,UKRI - AHRC,19/12/2018,T&S UK - Public Transport,"AHRC - Strategic Planning, Evidence & Impact",Corporate Travel Management (North) Ltd,98369858,-212.40,T&S UK - Public Transport
,BEIS,UKRI - AHRC,19/12/2018,T&S UK - Public Transport,"AHRC - Strategic Planning, Evidence & Impact",Corporate Travel Management (North) Ltd,98369858,2.00,T&S UK - Public Transport
,BEIS,UKRI - AHRC,19/12/2018,T&S UK - Public Transport,"AHRC - Strategic Planning, Evidence & Impact",Corporate Travel Management (North) Ltd,98369858,25.60,T&S UK - Public Transport
,BEIS,UKRI - AHRC,19/12/2018,T&S UK - Public Transport,"AHRC - Strategic Planning, Evidence & Impact",Corporate Travel Management (North) Ltd,98369858,79.50,T&S UK - Public Transport
,BEIS,UKRI - AHRC,19/12/2018,T&S UK - Public Transport,"AHRC - Strategic Planning, Evidence & Impact",Corporate Travel Management (North) Ltd,98369858,100.70,T&S UK - Public Transport
,BEIS,UKRI - AHRC,19/12/2018,T&S UK - Public Transport,"AHRC - Strategic Planning, Evidence & Impact",Corporate Travel Management (North) Ltd,98369858,1.00,T&S UK - Public Transport
,BEIS,UKRI - AHRC,19/12/2018,T&S UK - Public Transport,"AHRC - Strategic Planning, Evidence & Impact",Corporate Travel Management (North) Ltd,98369858,111.90,T&S UK - Public Transport
,BEIS,UKRI - AHRC,19/12/2018,T&S UK - Public Transport,"AHRC - Strategic Planning, Evidence & Impact",Corporate Travel Management (North) Ltd,98369858,100.20,T&S UK - Public Transport
,BEIS,UKRI - AHRC,19/12/2018,T&S UK - Public Transport,Business Process & Analysis,Corporate Travel Management (North) Ltd,98369858,1.00,T&S UK - Public Transport
,BEIS,UKRI - AHRC,19/12/2018,T&S UK - Public Transport,Business Process & Analysis,Corporate Travel Management (North) Ltd,98369858,249.60,T&S UK - Public Transport
,BEIS,UKRI - AHRC,19/12/2018,T&S UK - Public Transport,Business Process & Analysis,Corporate Travel Management (North) Ltd,98369858,1.00,T&S UK - Public Transport
,BEIS,UKRI - AHRC,19/12/2018,T&S UK - Public Transport,Business Process & Analysis,Corporate Travel Management (North) Ltd,98369858,189.20,T&S UK - Public Transport
,BEIS,UKRI - AHRC,19/12/2018,T&S UK - Public Transport,Business Process & Analysis,Corporate Travel Management (North) Ltd,98369858,1.00,T&S UK - Public Transport
,BEIS,UKRI - AHRC,19/12/2018,T&S UK - Public Transport,Business Process & Analysis,Corporate Travel Management (North) Ltd,98369858,189.20,T&S UK - Public Transport
,BEIS,UKRI - AHRC,19/12/2018,T&S UK - Public Transport,Business Process & Analysis,Corporate Travel Management (North) Ltd,98369858,1.00,T&S UK - Public Transport
,BEIS,UKRI - AHRC,19/12/2018,T&S UK - Public Transport,Business Process & Analysis,Corporate Travel Management (North) Ltd,98369858,189.20,T&S UK - Public Transport
,BEIS,UKRI - AHRC,19/12/2018,T&S UK - Public Transport,Business Process & Analysis,Corporate Travel Management (North) Ltd,98369858,52.20,T&S UK - Public Transport
,BEIS,UKRI - AHRC,19/12/2018,T&S UK - Public Transport,Business Process & Analysis,Corporate Travel Management (North) Ltd,98369858,127.00,T&S UK - Public Transport
,BEIS,UKRI - AHRC,19/12/2018,T&S UK - Public Transport,Business Process & Analysis,Corporate Travel Management (North) Ltd,98369858,1.00,T&S UK - Public Transport
,BEIS,UKRI - AHRC,19/12/2018,T&S UK - Public Transport,Business Process & Analysis,Corporate Travel Management (North) Ltd,98369858,6.60,T&S UK - Public Transport
,BEIS,UKRI - AHRC,19/12/2018,T&S UK - Public Transport,Business Process & Analysis,Corporate Travel Management (North) Ltd,98369858,88.80,T&S UK - Public Transport
,BEIS,UKRI - AHRC,19/12/2018,T&S UK - Public Transport,Business Process & Analysis,Corporate Travel Management (North) Ltd,98369858,19.00,T&S UK - Public Transport
,BEIS,UKRI - AHRC,19/12/2018,T&S UK - Public Transport,Business Process & Analysis,Corporate Travel Management (North) Ltd,98369858,84.00,T&S UK - Public Transport
,BEIS,UKRI - AHRC,19/12/2018,T&S UK - Public Transport,Communications,Corporate Travel Management (North) Ltd,98369858,1.00,T&S UK - Public Transport
,BEIS,UKRI - AHRC,19/12/2018,T&S UK - Public Transport,Communications,Corporate Travel Management (North) Ltd,98369858,471.00,T&S UK - Public Transport
,BEIS,UKRI - AHRC,19/12/2018,T&S UK - Public Transport,Communications,Corporate Travel Management (North) Ltd,98369858,2.00,T&S UK - Public Transport
,BEIS,UKRI - AHRC,19/12/2018,T&S UK - Public Transport,Communications,Corporate Travel Management (North) Ltd,98369858,60.30,T&S UK - Public Transport
,BEIS,UKRI - AHRC,19/12/2018,T&S UK - Public Transport,Communications,Corporate Travel Management (North) Ltd,98369858,70.60,T&S UK - Public Transport
,BEIS,UKRI - AHRC,19/12/2018,T&S UK - Public Transport,Communications,Corporate Travel Management (North) Ltd,98369858,30.90,T&S UK - Public Transport
,BEIS,UKRI - AHRC,19/12/2018,T&S UK - Public Transport,Communications,Corporate Travel Management (North) Ltd,98369858,34.50,T&S UK - Public Transport
,BEIS,UKRI - AHRC,19/12/2018,T&S UK - Public Transport,Communications,Corporate Travel Management (North) Ltd,98369858,52.60,T&S UK - Public Transport
,BEIS,UKRI - AHRC,19/12/2018,T&S UK - Public Transport,Communications,Corporate Travel Management (North) Ltd,98369858,52.60,T&S UK - Public Transport
,BEIS,UKRI - AHRC,19/12/2018,T&S UK - Public Transport,Communications,Corporate Travel Management (North) Ltd,98369858,52.60,T&S UK - Public Transport
,BEIS,UKRI - AHRC,19/12/2018,T&S UK - Public Transport,Communications,Corporate Travel Management (North) Ltd,98369858,43.25,T&S UK - Public Transport
,BEIS,UKRI - AHRC,19/12/2018,T&S UK - Public Transport,Communications,Corporate Travel Management (North) Ltd,98369858,30.90,T&S UK - Public Transport
,BEIS,UKRI - AHRC,19/12/2018,T&S UK - Public Transport,Communications,Corporate Travel Management (North) Ltd,98369858,37.30,T&S UK - Public Transport
,BEIS,UKRI - AHRC,19/12/2018,T&S UK - Public Transport,Communications,Corporate Travel Management (North) Ltd,98369858,138.70,T&S UK - Public Transport
,BEIS,UKRI - AHRC,19/12/2018,T&S UK - Public Transport,Communications,Corporate Travel Management (North) Ltd,98369858,47.90,T&S UK - Public Transport
,BEIS,UKRI - AHRC,19/12/2018,T&S UK - Public Transport,Communications,Corporate Travel Management (North) Ltd,98369858,52.60,T&S UK - Public Transport
,BEIS,UKRI - AHRC,19/12/2018,T&S UK - Public Transport,Communications,Corporate Travel Management (North) Ltd,98369858,53.90,T&S UK - Public Transport
,BEIS,UKRI - AHRC,19/12/2018,T&S UK - Public Transport,Communications,Corporate Travel Management (North) Ltd,98369858,34.70,T&S UK - Public Transport
,BEIS,UKRI - AHRC,19/12/2018,T&S UK - Public Transport,Communications,Corporate Travel Management (North) Ltd,98369858,52.60,T&S UK - Public Transport
,BEIS,UKRI - AHRC,19/12/2018,T&S UK - Public Transport,Communications,Corporate Travel Management (North) Ltd,98369858,69.20,T&S UK - Public Transport
,BEIS,UKRI - AHRC,19/12/2018,T&S UK - Public Transport,Communications,Corporate Travel Management (North) Ltd,98369858,217.40,T&S UK - Public Transport
,BEIS,UKRI - AHRC,19/12/2018,T&S UK - Public Transport,Communications,Corporate Travel Management (North) Ltd,98369858,139.60,T&S UK - Public Transport
,BEIS,UKRI - AHRC,19/12/2018,T&S UK - Public Transport,Communications,Corporate Travel Management (North) Ltd,98369858,100.70,T&S UK - Public Transport
,BEIS,UKRI - AHRC,19/12/2018,T&S UK - Public Transport,Communications,Corporate Travel Management (North) Ltd,98369858,2.00,T&S UK - Public Transport
,BEIS,UKRI - AHRC,19/12/2018,T&S UK - Public Transport,Communications,Corporate Travel Management (North) Ltd,98369858,141.20,T&S UK - Public Transport
,BEIS,UKRI - AHRC,19/12/2018,T&S UK - Public Transport,Communications,Corporate Travel Management (North) Ltd,98369858,93.60,T&S UK - Public Transport
,BEIS,UKRI - AHRC,19/12/2018,T&S UK - Public Transport,Creative Arts & Digital Humanities,Corporate Travel Management (North) Ltd,98369858,1.00,T&S UK - Public Transport
,BEIS,UKRI - AHRC,19/12/2018,T&S UK - Public Transport,Creative Arts & Digital Humanities,Corporate Travel Management (North) Ltd,98369858,120.90,T&S UK - Public Transport
,BEIS,UKRI - AHRC,19/12/2018,T&S UK - Public Transport,Creative Arts & Digital Humanities,Corporate Travel Management (North) Ltd,98369858,31.70,T&S UK - Public Transport
,BEIS,UKRI - AHRC,19/12/2018,T&S UK - Public Transport,Creative Arts & Digital Humanities,Corporate Travel Management (North) Ltd,98369858,-206.40,T&S UK - Public Transport
,BEIS,UKRI - AHRC,19/12/2018,T&S UK - Public Transport,Creative Arts & Digital Humanities,Corporate Travel Management (North) Ltd,98369858,-206.40,T&S UK - Public Transport
,BEIS,UKRI - AHRC,19/12/2018,T&S UK - Public Transport,Creative Arts & Digital Humanities,Corporate Travel Management (North) Ltd,98369858,1.00,T&S UK - Public Transport
,BEIS,UKRI - AHRC,19/12/2018,T&S UK - Public Transport,Creative Arts & Digital Humanities,Corporate Travel Management (North) Ltd,98369858,531.60,T&S UK - Public Transport
,BEIS,UKRI - AHRC,19/12/2018,T&S UK - Public Transport,Creative Arts & Digital Humanities,Corporate Travel Management (North) Ltd,98369858,119.80,T&S UK - Public Transport
,BEIS,UKRI - AHRC,19/12/2018,T&S UK - Public Transport,Creative Arts & Digital Humanities,Corporate Travel Management (North) Ltd,98369858,66.45,T&S UK - Public Transport
,BEIS,UKRI - AHRC,19/12/2018,T&S UK - Public Transport,Creative Arts & Digital Humanities,Corporate Travel Management (North) Ltd,98369858,1.00,T&S UK - Public Transport
,BEIS,UKRI - AHRC,19/12/2018,T&S UK - Public Transport,Creative Arts & Digital Humanities,Corporate Travel Management (North) Ltd,98369858,166.30,T&S UK - Public Transport
,BEIS,UKRI - AHRC,19/12/2018,T&S UK - Public Transport,Creative Arts & Digital Humanities,Corporate Travel Management (North) Ltd,98369858,55.90,T&S UK - Public Transport
,BEIS,UKRI - AHRC,19/12/2018,T&S UK - Public Transport,Creative Arts & Digital Humanities,Corporate Travel Management (North) Ltd,98369858,66.20,T&S UK - Public Transport
,BEIS,UKRI - AHRC,19/12/2018,T&S UK - Public Transport,Creative Arts & Digital Humanities,Corporate Travel Management (North) Ltd,98369858,8.10,T&S UK - Public Transport
,BEIS,UKRI - AHRC,19/12/2018,T&S UK - Public Transport,Creative Arts & Digital Humanities,Corporate Travel Management (North) Ltd,98369858,34.50,T&S UK - Public Transport
,BEIS,UKRI - AHRC,19/12/2018,T&S UK - Public Transport,Creative Arts & Digital Humanities,Corporate Travel Management (North) Ltd,98369858,94.50,T&S UK - Public Transport
,BEIS,UKRI - AHRC,19/12/2018,T&S UK - Public Transport,Creative Arts & Digital Humanities,Corporate Travel Management (North) Ltd,98369858,11.70,T&S UK - Public Transport
,BEIS,UKRI - AHRC,19/12/2018,T&S UK - Public Transport,Creative Arts & Digital Humanities,Corporate Travel Management (North) Ltd,98369858,124.30,T&S UK - Public Transport
,BEIS,UKRI - AHRC,19/12/2018,T&S UK - Public Transport,Creative Arts & Digital Humanities,Corporate Travel Management (North) Ltd,98369858,26.20,T&S UK - Public Transport
,BEIS,UKRI - AHRC,19/12/2018,T&S UK - Public Transport,Creative Arts & Digital Humanities,Corporate Travel Management (North) Ltd,98369858,130.70,T&S UK - Public Transport
,BEIS,UKRI - AHRC,19/12/2018,T&S UK - Public Transport,Creative Arts & Digital Humanities,Corporate Travel Management (North) Ltd,98369858,163.80,T&S UK - Public Transport
,BEIS,UKRI - AHRC,19/12/2018,T&S UK - Public Transport,Creative Arts & Digital Humanities,Corporate Travel Management (North) Ltd,98369858,163.80,T&S UK - Public Transport
,BEIS,UKRI - AHRC,19/12/2018,T&S UK - Public Transport,Creative Arts & Digital Humanities,Corporate Travel Management (North) Ltd,98369858,211.40,T&S UK - Public Transport
,BEIS,UKRI - AHRC,19/12/2018,T&S UK - Public Transport,Creative Arts & Digital Humanities,Corporate Travel Management (North) Ltd,98369858,30.90,T&S UK - Public Transport
,BEIS,UKRI - AHRC,19/12/2018,T&S UK - Public Transport,Creative Arts & Digital Humanities,Corporate Travel Management (North) Ltd,98369858,108.70,T&S UK - Public Transport
,BEIS,UKRI - AHRC,19/12/2018,T&S UK - Public Transport,Creative Arts & Digital Humanities,Corporate Travel Management (North) Ltd,98369858,69.80,T&S UK - Public Transport
,BEIS,UKRI - AHRC,19/12/2018,T&S UK - Public Transport,Creative Arts & Digital Humanities,Corporate Travel Management (North) Ltd,98369858,67.90,T&S UK - Public Transport
,BEIS,UKRI - AHRC,19/12/2018,T&S UK - Public Transport,Creative Arts & Digital Humanities,Corporate Travel Management (North) Ltd,98369858,186.60,T&S UK - Public Transport
,BEIS,UKRI - AHRC,19/12/2018,T&S UK - Public Transport,Creative Arts & Digital Humanities,Corporate Travel Management (North) Ltd,98369858,186.60,T&S UK - Public Transport
,BEIS,UKRI - AHRC,19/12/2018,T&S UK - Public Transport,Creative Arts & Digital Humanities,Corporate Travel Management (North) Ltd,98369858,132.80,T&S UK - Public Transport
,BEIS,UKRI - AHRC,19/12/2018,T&S UK - Public Transport,Creative Arts & Digital Humanities,Corporate Travel Management (North) Ltd,98369858,1.00,T&S UK - Public Transport
,BEIS,UKRI - AHRC,19/12/2018,T&S UK - Public Transport,Creative Arts & Digital Humanities,Corporate Travel Management (North) Ltd,98369858,119.30,T&S UK - Public Transport
,BEIS,UKRI - AHRC,19/12/2018,T&S UK - Public Transport,Creative Arts & Digital Humanities,Corporate Travel Management (North) Ltd,98369858,160.30,T&S UK - Public Transport
,BEIS,UKRI - AHRC,19/12/2018,T&S UK - Public Transport,Creative Arts & Digital Humanities,Corporate Travel Management (North) Ltd,98369858,165.60,T&S UK - Public Transport
,BEIS,UKRI - AHRC,19/12/2018,T&S UK - Public Transport,Creative Arts & Digital Humanities,Corporate Travel Management (North) Ltd,98369858,11.60,T&S UK - Public Transport
,BEIS,UKRI - AHRC,19/12/2018,T&S UK - Public Transport,Creative Arts & Digital Humanities,Corporate Travel Management (North) Ltd,98369858,30.90,T&S UK - Public Transport
,BEIS,UKRI - AHRC,19/12/2018,T&S UK - Public Transport,Creative Arts & Digital Humanities,Corporate Travel Management (North) Ltd,98369858,51.60,T&S UK - Public Transport
,BEIS,UKRI - AHRC,19/12/2018,T&S UK - Public Transport,Creative Arts & Digital Humanities,Corporate Travel Management (North) Ltd,98369858,1.00,T&S UK - Public Transport
,BEIS,UKRI - AHRC,19/12/2018,T&S UK - Public Transport,Creative Arts & Digital Humanities,Corporate Travel Management (North) Ltd,98369858,68.50,T&S UK - Public Transport
,BEIS,UKRI - AHRC,19/12/2018,T&S UK - Public Transport,Creative Arts & Digital Humanities,Corporate Travel Management (North) Ltd,98369858,146.00,T&S UK - Public Transport
,BEIS,UKRI - AHRC,19/12/2018,T&S UK - Public Transport,Creative Arts & Digital Humanities,Corporate Travel Management (North) Ltd,98369858,160.30,T&S UK - Public Transport
,BEIS,UKRI - AHRC,19/12/2018,T&S UK - Public Transport,Creative Arts & Digital Humanities,Corporate Travel Management (North) Ltd,98369858,133.85,T&S UK - Public Transport
,BEIS,UKRI - AHRC,19/12/2018,T&S UK - Public Transport,Creative Arts & Digital Humanities,Corporate Travel Management (North) Ltd,98369858,63.70,T&S UK - Public Transport
,BEIS,UKRI - AHRC,19/12/2018,T&S UK - Public Transport,Finance,Corporate Travel Management (North) Ltd,98369858,23.00,T&S UK - Public Transport
,BEIS,UKRI - AHRC,19/12/2018,T&S UK - Public Transport,Fund for International Collaboration,Corporate Travel Management (North) Ltd,98369858,190.00,T&S UK - Public Transport
,BEIS,UKRI - AHRC,19/12/2018,T&S UK - Public Transport,Fund for International Collaboration,Corporate Travel Management (North) Ltd,98369858,52.90,T&S UK - Public Transport
,BEIS,UKRI - AHRC,19/12/2018,T&S UK - Public Transport,Fund for International Collaboration,Corporate Travel Management (North) Ltd,98369858,104.80,T&S UK - Public Transport
,BEIS,UKRI - AHRC,19/12/2018,T&S UK - Public Transport,GCRF - Programme Delivery,Corporate Travel Management (North) Ltd,98369858,10.00,T&S UK - Public Transport
,BEIS,UKRI - AHRC,19/12/2018,T&S UK - Public Transport,GCRF - Programme Delivery,Corporate Travel Management (North) Ltd,98369858,-402.80,T&S UK - Public Transport
,BEIS,UKRI - AHRC,19/12/2018,T&S UK - Public Transport,GCRF - Programme Delivery,Corporate Travel Management (North) Ltd,98369858,1.00,T&S UK - Public Transport
,BEIS,UKRI - AHRC,19/12/2018,T&S UK - Public Transport,GCRF - Programme Delivery,Corporate Travel Management (North) Ltd,98369858,69.80,T&S UK - Public Transport
,BEIS,UKRI - AHRC,19/12/2018,T&S UK - Public Transport,GCRF - Programme Delivery,Corporate Travel Management (North) Ltd,98369858,1.00,T&S UK - Public Transport
,BEIS,UKRI - AHRC,19/12/2018,T&S UK - Public Transport,GCRF - Programme Delivery,Corporate Travel Management (North) Ltd,98369858,105.80,T&S UK - Public Transport
,BEIS,UKRI - AHRC,19/12/2018,T&S UK - Public Transport,GCRF - Programme Delivery,Corporate Travel Management (North) Ltd,98369858,2.00,T&S UK - Public Transport
,BEIS,UKRI - AHRC,19/12/2018,T&S UK - Public Transport,GCRF - Programme Delivery,Corporate Travel Management (North) Ltd,98369858,31.30,T&S UK - Public Transport
,BEIS,UKRI - AHRC,19/12/2018,T&S UK - Public Transport,GCRF - Programme Delivery,Corporate Travel Management (North) Ltd,98369858,11.60,T&S UK - Public Transport
,BEIS,UKRI - AHRC,19/12/2018,T&S UK - Public Transport,GCRF - Programme Delivery,Corporate Travel Management (North) Ltd,98369858,111.00,T&S UK - Public Transport
,BEIS,UKRI - AHRC,19/12/2018,T&S UK - Public Transport,GCRF - Programme Delivery,Corporate Travel Management (North) Ltd,98369858,111.00,T&S UK - Public Transport
,BEIS,UKRI - AHRC,19/12/2018,T&S UK - Public Transport,GCRF - Programme Delivery,Corporate Travel Management (North) Ltd,98369858,160.30,T&S UK - Public Transport
,BEIS,UKRI - AHRC,19/12/2018,T&S UK - Public Transport,GCRF - Programme Delivery,Corporate Travel Management (North) Ltd,98369858,41.20,T&S UK - Public Transport
,BEIS,UKRI - AHRC,19/12/2018,T&S UK - Public Transport,GCRF - Programme Delivery,Corporate Travel Management (North) Ltd,98369858,108.70,T&S UK - Public Transport
,BEIS,UKRI - AHRC,19/12/2018,T&S UK - Public Transport,GCRF - Programme Delivery,Corporate Travel Management (North) Ltd,98369858,52.60,T&S UK - Public Transport
,BEIS,UKRI - AHRC,19/12/2018,T&S UK - Public Transport,GCRF - Programme Delivery,Corporate Travel Management (North) Ltd,98369858,30.00,T&S UK - Public Transport
,BEIS,UKRI - AHRC,19/12/2018,T&S UK - Public Transport,GCRF - Programme Delivery,Corporate Travel Management (North) Ltd,98369858,37.30,T&S UK - Public Transport
,BEIS,UKRI - AHRC,19/12/2018,T&S UK - Public Transport,GCRF - Programme Delivery,Corporate Travel Management (North) Ltd,98369858,2.00,T&S UK - Public Transport
,BEIS,UKRI - AHRC,19/12/2018,T&S UK - Public Transport,GCRF - Programme Delivery,Corporate Travel Management (North) Ltd,98369858,108.70,T&S UK - Public Transport
,BEIS,UKRI - AHRC,19/12/2018,T&S UK - Public Transport,GCRF - Programme Delivery,Corporate Travel Management (North) Ltd,98369858,37.30,T&S UK - Public Transport
,BEIS,UKRI - AHRC,19/12/2018,T&S UK - Public Transport,GCRF - Programme Delivery,Corporate Travel Management (North) Ltd,98369858,1.00,T&S UK - Public Transport
,BEIS,UKRI - AHRC,19/12/2018,T&S UK - Public Transport,GCRF - Programme Delivery,Corporate Travel Management (North) Ltd,98369858,200.50,T&S UK - Public Transport
,BEIS,UKRI - AHRC,19/12/2018,T&S UK - Public Transport,GCRF - Programme Delivery,Corporate Travel Management (North) Ltd,98369858,1.00,T&S UK - Public Transport
,BEIS,UKRI - AHRC,19/12/2018,T&S UK - Public Transport,GCRF - Programme Delivery,Corporate Travel Management (North) Ltd,98369858,37.30,T&S UK - Public Transport
,BEIS,UKRI - AHRC,19/12/2018,T&S UK - Public Transport,HERA JRP Project,Corporate Travel Management (North) Ltd,98369858,40.30,T&S UK - Public Transport
,BEIS,UKRI - AHRC,19/12/2018,T&S UK - Public Transport,HERA JRP Project,Corporate Travel Management (North) Ltd,98369858,63.20,T&S UK - Public Transport
,BEIS,UKRI - AHRC,19/12/2018,T&S UK - Public Transport,HR,Corporate Travel Management (North) Ltd,98369858,1.00,T&S UK - Public Transport
,BEIS,UKRI - AHRC,19/12/2018,T&S UK - Public Transport,HR,Corporate Travel Management (North) Ltd,98369858,171.60,T&S UK - Public Transport
,BEIS,UKRI - AHRC,19/12/2018,T&S UK - Public Transport,HR,Corporate Travel Management (North) Ltd,98369858,114.80,T&S UK - Public Transport
,BEIS,UKRI - AHRC,19/12/2018,T&S UK - Public Transport,HR,Corporate Travel Management (North) Ltd,98369858,1.00,T&S UK - Public Transport
,BEIS,UKRI - AHRC,19/12/2018,T&S UK - Public Transport,HR,Corporate Travel Management (North) Ltd,98369858,171.60,T&S UK - Public Transport
,BEIS,UKRI - AHRC,19/12/2018,T&S UK - Public Transport,HR,Corporate Travel Management (North) Ltd,98369858,171.60,T&S UK - Public Transport
,BEIS,UKRI - AHRC,19/12/2018,T&S UK - Public Transport,HR,Corporate Travel Management (North) Ltd,98369858,171.60,T&S UK - Public Transport
,BEIS,UKRI - AHRC,19/12/2018,T&S UK - Public Transport,HR,Corporate Travel Management (North) Ltd,98369858,139.60,T&S UK - Public Transport
,BEIS,UKRI - AHRC,19/12/2018,T&S UK - Public Transport,HR,Corporate Travel Management (North) Ltd,98369858,23.00,T&S UK - Public Transport
,BEIS,UKRI - AHRC,19/12/2018,T&S UK - Public Transport,HR,Corporate Travel Management (North) Ltd,98369858,178.00,T&S UK - Public Transport
,BEIS,UKRI - AHRC,19/12/2018,T&S UK - Public Transport,"Histories,Culture & Heritage",Corporate Travel Management (North) Ltd,98369858,1.00,T&S UK - Public Transport
,BEIS,UKRI - AHRC,19/12/2018,T&S UK - Public Transport,"Histories,Culture & Heritage",Corporate Travel Management (North) Ltd,98369858,267.20,T&S UK - Public Transport
,BEIS,UKRI - AHRC,19/12/2018,T&S UK - Public Transport,"Histories,Culture & Heritage",Corporate Travel Management (North) Ltd,98369858,67.90,T&S UK - Public Transport
,BEIS,UKRI - AHRC,19/12/2018,T&S UK - Public Transport,"Histories,Culture & Heritage",Corporate Travel Management (North) Ltd,98369858,1.00,T&S UK - Public Transport
,BEIS,UKRI - AHRC,19/12/2018,T&S UK - Public Transport,"Histories,Culture & Heritage",Corporate Travel Management (North) Ltd,98369858,169.00,T&S UK - Public Transport
,BEIS,UKRI - AHRC,19/12/2018,T&S UK - Public Transport,"Histories,Culture & Heritage",Corporate Travel Management (North) Ltd,98369858,46.60,T&S UK - Public Transport
,BEIS,UKRI - AHRC,19/12/2018,T&S UK - Public Transport,"Histories,Culture & Heritage",Corporate Travel Management (North) Ltd,98369858,30.90,T&S UK - Public Transport
,BEIS,UKRI - AHRC,19/12/2018,T&S UK - Public Transport,"Histories,Culture & Heritage",Corporate Travel Management (North) Ltd,98369858,1.00,T&S UK - Public Transport
,BEIS,UKRI - AHRC,19/12/2018,T&S UK - Public Transport,"Histories,Culture & Heritage",Corporate Travel Management (North) Ltd,98369858,115.00,T&S UK - Public Transport
,BEIS,UKRI - AHRC,19/12/2018,T&S UK - Public Transport,"Histories,Culture & Heritage",Corporate Travel Management (North) Ltd,98369858,12.40,T&S UK - Public Transport
,BEIS,UKRI - AHRC,19/12/2018,T&S UK - Public Transport,"Histories,Culture & Heritage",Corporate Travel Management (North) Ltd,98369858,15.10,T&S UK - Public Transport
,BEIS,UKRI - AHRC,19/12/2018,T&S UK - Public Transport,"Histories,Culture & Heritage",Corporate Travel Management (North) Ltd,98369858,21.90,T&S UK - Public Transport
,BEIS,UKRI - AHRC,19/12/2018,T&S UK - Public Transport,"Histories,Culture & Heritage",Corporate Travel Management (North) Ltd,98369858,1.00,T&S UK - Public Transport
,BEIS,UKRI - AHRC,19/12/2018,T&S UK - Public Transport,"Histories,Culture & Heritage",Corporate Travel Management (North) Ltd,98369858,115.00,T&S UK - Public Transport
,BEIS,UKRI - AHRC,19/12/2018,T&S UK - Public Transport,"Histories,Culture & Heritage",Corporate Travel Management (North) Ltd,98369858,69.20,T&S UK - Public Transport
,BEIS,UKRI - AHRC,19/12/2018,T&S UK - Public Transport,"Histories,Culture & Heritage",Corporate Travel Management (North) Ltd,98369858,217.40,T&S UK - Public Transport
,BEIS,UKRI - AHRC,19/12/2018,T&S UK - Public Transport,"Histories,Culture & Heritage",Corporate Travel Management (North) Ltd,98369858,72.10,T&S UK - Public Transport
,BEIS,UKRI - AHRC,19/12/2018,T&S UK - Public Transport,"Histories,Culture & Heritage",Corporate Travel Management (North) Ltd,98369858,1.00,T&S UK - Public Transport
,BEIS,UKRI - AHRC,19/12/2018,T&S UK - Public Transport,"Histories,Culture & Heritage",Corporate Travel Management (North) Ltd,98369858,37.00,T&S UK - Public Transport
,BEIS,UKRI - AHRC,19/12/2018,T&S UK - Public Transport,"Histories,Culture & Heritage",Corporate Travel Management (North) Ltd,98369858,120.90,T&S UK - Public Transport
,BEIS,UKRI - AHRC,19/12/2018,T&S UK - Public Transport,"Histories,Culture & Heritage",Corporate Travel Management (North) Ltd,98369858,1.00,T&S UK - Public Transport
,BEIS,UKRI - AHRC,19/12/2018,T&S UK - Public Transport,"Histories,Culture & Heritage",Corporate Travel Management (North) Ltd,98369858,80.60,T&S UK - Public Transport
,BEIS,UKRI - AHRC,19/12/2018,T&S UK - Public Transport,"Histories,Culture & Heritage",Corporate Travel Management (North) Ltd,98369858,124.30,T&S UK - Public Transport
,BEIS,UKRI - AHRC,19/12/2018,T&S UK - Public Transport,"Histories,Culture & Heritage",Corporate Travel Management (North) Ltd,98369858,30.90,T&S UK - Public Transport
,BEIS,UKRI - AHRC,19/12/2018,T&S UK - Public Transport,"Histories,Culture & Heritage",Corporate Travel Management (North) Ltd,98369858,88.90,T&S UK - Public Transport
,BEIS,UKRI - AHRC,19/12/2018,T&S UK - Public Transport,"Histories,Culture & Heritage",Corporate Travel Management (North) Ltd,98369858,139.60,T&S UK - Public Transport
,BEIS,UKRI - AHRC,19/12/2018,T&S UK - Public Transport,"Histories,Culture & Heritage",Corporate Travel Management (North) Ltd,98369858,126.80,T&S UK - Public Transport
,BEIS,UKRI - AHRC,19/12/2018,T&S UK - Public Transport,"Histories,Culture & Heritage",Corporate Travel Management (North) Ltd,98369858,44.00,T&S UK - Public Transport
,BEIS,UKRI - AHRC,19/12/2018,T&S UK - Public Transport,"Histories,Culture & Heritage",Corporate Travel Management (North) Ltd,98369858,89.00,T&S UK - Public Transport
,BEIS,UKRI - AHRC,19/12/2018,T&S UK - Public Transport,"Histories,Culture & Heritage",Corporate Travel Management (North) Ltd,98369858,117.10,T&S UK - Public Transport
,BEIS,UKRI - AHRC,19/12/2018,T&S UK - Public Transport,"Histories,Culture & Heritage",Corporate Travel Management (North) Ltd,98369858,105.70,T&S UK - Public Transport
,BEIS,UKRI - AHRC,19/12/2018,T&S UK - Public Transport,IS,Corporate Travel Management (North) Ltd,98369858,139.60,T&S UK - Public Transport
,BEIS,UKRI - AHRC,19/12/2018,T&S UK - Public Transport,Industrial Strategy Challenge Fund (ISCF) - Creative Clusters,Corporate Travel Management (North) Ltd,98369858,102.00,T&S UK - Public Transport
,BEIS,UKRI - AHRC,19/12/2018,T&S UK - Public Transport,Industrial Strategy Challenge Fund (ISCF) - Creative Clusters,Corporate Travel Management (North) Ltd,98369858,1.00,T&S UK - Public Transport
,BEIS,UKRI - AHRC,19/12/2018,T&S UK - Public Transport,Industrial Strategy Challenge Fund (ISCF) - Creative Clusters,Corporate Travel Management (North) Ltd,98369858,146.00,T&S UK - Public Transport
,BEIS,UKRI - AHRC,19/12/2018,T&S UK - Public Transport,Industrial Strategy Challenge Fund (ISCF) - Creative Clusters,Corporate Travel Management (North) Ltd,98369858,1.00,T&S UK - Public Transport
,BEIS,UKRI - AHRC,19/12/2018,T&S UK - Public Transport,Industrial Strategy Challenge Fund (ISCF) - Creative Clusters,Corporate Travel Management (North) Ltd,98369858,50.70,T&S UK - Public Transport
,BEIS,UKRI - AHRC,19/12/2018,T&S UK - Public Transport,Industrial Strategy Challenge Fund (ISCF) - Creative Clusters,Corporate Travel Management (North) Ltd,98369858,217.40,T&S UK - Public Transport
,BEIS,UKRI - AHRC,19/12/2018,T&S UK - Public Transport,International,Corporate Travel Management (North) Ltd,98369858,22.50,T&S UK - Public Transport
,BEIS,UKRI - AHRC,19/12/2018,T&S UK - Public Transport,International,Corporate Travel Management (North) Ltd,98369858,59.30,T&S UK - Public Transport
,BEIS,UKRI - AHRC,19/12/2018,T&S UK - Public Transport,"Languages,Literature & International Engagement",Corporate Travel Management (North) Ltd,98369858,100.70,T&S UK - Public Transport
,BEIS,UKRI - AHRC,19/12/2018,T&S UK - Public Transport,"Languages,Literature & International Engagement",Corporate Travel Management (North) Ltd,98369858,67.90,T&S UK - Public Transport
,BEIS,UKRI - AHRC,19/12/2018,T&S UK - Public Transport,"Languages,Literature & International Engagement",Corporate Travel Management (North) Ltd,98369858,139.60,T&S UK - Public Transport
,BEIS,UKRI - AHRC,19/12/2018,T&S UK - Public Transport,"Languages,Literature & International Engagement",Corporate Travel Management (North) Ltd,98369858,1.00,T&S UK - Public Transport
,BEIS,UKRI - AHRC,19/12/2018,T&S UK - Public Transport,"Languages,Literature & International Engagement",Corporate Travel Management (North) Ltd,98369858,26.60,T&S UK - Public Transport
,BEIS,UKRI - AHRC,19/12/2018,T&S UK - Public Transport,"Languages,Literature & International Engagement",Corporate Travel Management (North) Ltd,98369858,11.60,T&S UK - Public Transport
,BEIS,UKRI - AHRC,19/12/2018,T&S UK - Public Transport,"Languages,Literature & International Engagement",Corporate Travel Management (North) Ltd,98369858,47.90,T&S UK - Public Transport
,BEIS,UKRI - AHRC,19/12/2018,T&S UK - Public Transport,"Languages,Literature & International Engagement",Corporate Travel Management (North) Ltd,98369858,1.00,T&S UK - Public Transport
,BEIS,UKRI - AHRC,19/12/2018,T&S UK - Public Transport,"Languages,Literature & International Engagement",Corporate Travel Management (North) Ltd,98369858,240.30,T&S UK - Public Transport
,BEIS,UKRI - AHRC,19/12/2018,T&S UK - Public Transport,Newton Programme Delivery,Corporate Travel Management (North) Ltd,98369858,1.00,T&S UK - Public Transport
,BEIS,UKRI - AHRC,19/12/2018,T&S UK - Public Transport,Newton Programme Delivery,Corporate Travel Management (North) Ltd,98369858,62.80,T&S UK - Public Transport
,BEIS,UKRI - AHRC,19/12/2018,T&S UK - Public Transport,PSU Project Office,Corporate Travel Management (North) Ltd,98369858,140.30,T&S UK - Public Transport
,BEIS,UKRI - AHRC,19/12/2018,T&S UK - Public Transport,PSU Project Office,Corporate Travel Management (North) Ltd,98369858,70.60,T&S UK - Public Transport
,BEIS,UKRI - AHRC,19/12/2018,T&S UK - Public Transport,PSU Project Office,Corporate Travel Management (North) Ltd,98369858,46.80,T&S UK - Public Transport
,BEIS,UKRI - AHRC,19/12/2018,T&S UK - Public Transport,PSU Project Office,Corporate Travel Management (North) Ltd,98369858,157.90,T&S UK - Public Transport
,BEIS,UKRI - AHRC,19/12/2018,T&S UK - Public Transport,PSU Project Office,Corporate Travel Management (North) Ltd,98369858,31.30,T&S UK - Public Transport
,BEIS,UKRI - AHRC,19/12/2018,T&S UK - Public Transport,PSU Project Office,Corporate Travel Management (North) Ltd,98369858,11.60,T&S UK - Public Transport
,BEIS,UKRI - AHRC,19/12/2018,T&S UK - Public Transport,PSU Project Office,Corporate Travel Management (North) Ltd,98369858,1.00,T&S UK - Public Transport
,BEIS,UKRI - AHRC,19/12/2018,T&S UK - Public Transport,PSU Project Office,Corporate Travel Management (North) Ltd,98369858,279.20,T&S UK - Public Transport
,BEIS,UKRI - AHRC,19/12/2018,T&S UK - Public Transport,SMT,Corporate Travel Management (North) Ltd,98369858,-26.50,T&S UK - Public Transport
,BEIS,UKRI - AHRC,19/12/2018,T&S UK - Public Transport,SMT,Corporate Travel Management (North) Ltd,98369858,-22.90,T&S UK - Public Transport
,BEIS,UKRI - AHRC,19/12/2018,T&S UK - Public Transport,SMT,Corporate Travel Management (North) Ltd,98369858,1.00,T&S UK - Public Transport
,BEIS,UKRI - AHRC,19/12/2018,T&S UK - Public Transport,SMT,Corporate Travel Management (North) Ltd,98369858,86.50,T&S UK - Public Transport
,BEIS,UKRI - AHRC,19/12/2018,T&S UK - Public Transport,SMT,Corporate Travel Management (North) Ltd,98369858,1.00,T&S UK - Public Transport
,BEIS,UKRI - AHRC,19/12/2018,T&S UK - Public Transport,SMT,Corporate Travel Management (North) Ltd,98369858,99.70,T&S UK - Public Transport
,BEIS,UKRI - AHRC,19/12/2018,T&S UK - Public Transport,SMT,Corporate Travel Management (North) Ltd,98369858,157.90,T&S UK - Public Transport
,BEIS,UKRI - AHRC,19/12/2018,T&S UK - Public Transport,SMT,Corporate Travel Management (North) Ltd,98369858,99.80,T&S UK - Public Transport
,BEIS,UKRI - AHRC,19/12/2018,T&S UK - Public Transport,SMT,Corporate Travel Management (North) Ltd,98369858,1.00,T&S UK - Public Transport
,BEIS,UKRI - AHRC,19/12/2018,T&S UK - Public Transport,SMT,Corporate Travel Management (North) Ltd,98369858,79.00,T&S UK - Public Transport
,BEIS,UKRI - AHRC,19/12/2018,T&S UK - Public Transport,SMT,Corporate Travel Management (North) Ltd,98369858,1.00,T&S UK - Public Transport
,BEIS,UKRI - AHRC,19/12/2018,T&S UK - Public Transport,SMT,Corporate Travel Management (North) Ltd,98369858,12.30,T&S UK - Public Transport
,BEIS,UKRI - AHRC,19/12/2018,T&S UK - Public Transport,SMT,Corporate Travel Management (North) Ltd,98369858,23.50,T&S UK - Public Transport
,BEIS,UKRI - AHRC,19/12/2018,T&S UK - Public Transport,SMT,Corporate Travel Management (North) Ltd,98369858,2.00,T&S UK - Public Transport
,BEIS,UKRI - AHRC,19/12/2018,T&S UK - Public Transport,SMT,Corporate Travel Management (North) Ltd,98369858,172.00,T&S UK - Public Transport
,BEIS,UKRI - AHRC,19/12/2018,T&S UK - Public Transport,SMT,Corporate Travel Management (North) Ltd,98369858,24.60,T&S UK - Public Transport
,BEIS,UKRI - AHRC,19/12/2018,T&S UK - Public Transport,SMT,Corporate Travel Management (North) Ltd,98369858,74.10,T&S UK - Public Transport
,BEIS,UKRI - AHRC,19/12/2018,T&S UK - Public Transport,SMT,Corporate Travel Management (North) Ltd,98369858,1.00,T&S UK - Public Transport
,BEIS,UKRI - AHRC,19/12/2018,T&S UK - Public Transport,SMT,Corporate Travel Management (North) Ltd,98369858,184.40,T&S UK - Public Transport
,BEIS,UKRI - AHRC,19/12/2018,T&S UK - Public Transport,SMT,Corporate Travel Management (North) Ltd,98369858,158.50,T&S UK - Public Transport
,BEIS,UKRI - AHRC,19/12/2018,T&S UK - Public Transport,SMT,Corporate Travel Management (North) Ltd,98369858,1.00,T&S UK - Public Transport
,BEIS,UKRI - AHRC,19/12/2018,T&S UK - Public Transport,SMT,Corporate Travel Management (North) Ltd,98369858,105.00,T&S UK - Public Transport
,BEIS,UKRI - AHRC,19/12/2018,T&S UK - Public Transport,SMT,Corporate Travel Management (North) Ltd,98369858,1.00,T&S UK - Public Transport
,BEIS,UKRI - AHRC,19/12/2018,T&S UK - Public Transport,SMT,Corporate Travel Management (North) Ltd,98369858,32.60,T&S UK - Public Transport
,BEIS,UKRI - AHRC,19/12/2018,T&S UK - Public Transport,SMT,Corporate Travel Management (North) Ltd,98369858,55.50,T&S UK - Public Transport
,BEIS,UKRI - AHRC,19/12/2018,T&S UK - Public Transport,SMT,Corporate Travel Management (North) Ltd,98369858,71.20,T&S UK - Public Transport
,BEIS,UKRI - AHRC,19/12/2018,T&S UK - Public Transport,SMT,Corporate Travel Management (North) Ltd,98369858,85.60,T&S UK - Public Transport
,BEIS,UKRI - AHRC,19/12/2018,T&S UK - Public Transport,SMT,Corporate Travel Management (North) Ltd,98369858,45.00,T&S UK - Public Transport
,BEIS,UKRI - AHRC,19/12/2018,T&S UK - Public Transport,SMT,Corporate Travel Management (North) Ltd,98369858,55.50,T&S UK - Public Transport
,BEIS,UKRI - AHRC,19/12/2018,T&S UK - Public Transport,SMT,Corporate Travel Management (North) Ltd,98369858,66.80,T&S UK - Public Transport
,BEIS,UKRI - AHRC,19/12/2018,T&S UK - Public Transport,SMT,Corporate Travel Management (North) Ltd,98369858,94.70,T&S UK - Public Transport
,BEIS,UKRI - AHRC,19/12/2018,T&S UK - Public Transport,SMT,Corporate Travel Management (North) Ltd,98369858,51.40,T&S UK - Public Transport
,BEIS,UKRI - AHRC,19/12/2018,T&S UK - Public Transport,SMT,Corporate Travel Management (North) Ltd,98369858,32.60,T&S UK - Public Transport
,BEIS,UKRI - AHRC,19/12/2018,T&S UK - Public Transport,SMT,Corporate Travel Management (North) Ltd,98369858,6.50,T&S UK - Public Transport
,BEIS,UKRI - AHRC,19/12/2018,T&S UK - Public Transport,SMT,Corporate Travel Management (North) Ltd,98369858,31.50,T&S UK - Public Transport
,BEIS,UKRI - AHRC,19/12/2018,T&S UK - Public Transport,SMT,Corporate Travel Management (North) Ltd,98369858,2.00,T&S UK - Public Transport
,BEIS,UKRI - AHRC,19/12/2018,T&S UK - Public Transport,SMT,Corporate Travel Management (North) Ltd,98369858,71.00,T&S UK - Public Transport
,BEIS,UKRI - AHRC,19/12/2018,T&S UK - Public Transport,SMT,Corporate Travel Management (North) Ltd,98369858,27.90,T&S UK - Public Transport
,BEIS,UKRI - AHRC,19/12/2018,T&S UK - Public Transport,SMT,Corporate Travel Management (North) Ltd,98369858,28.20,T&S UK - Public Transport
,BEIS,UKRI - AHRC,19/12/2018,T&S UK - Public Transport,SMT,Corporate Travel Management (North) Ltd,98369858,26.50,T&S UK - Public Transport
,BEIS,UKRI - AHRC,19/12/2018,T&S UK - Public Transport,SMT,Corporate Travel Management (North) Ltd,98369858,10.50,T&S UK - Public Transport
,BEIS,UKRI - AHRC,19/12/2018,T&S UK - Public Transport,SMT,Corporate Travel Management (North) Ltd,98369858,1.00,T&S UK - Public Transport
,BEIS,UKRI - AHRC,19/12/2018,T&S UK - Public Transport,SMT,Corporate Travel Management (North) Ltd,98369858,10.40,T&S UK - Public Transport
,BEIS,UKRI - AHRC,19/12/2018,T&S UK - Public Transport,SMT,Corporate Travel Management (North) Ltd,98369858,31.50,T&S UK - Public Transport
,BEIS,UKRI - AHRC,19/12/2018,T&S UK - Public Transport,SMT,Corporate Travel Management (North) Ltd,98369858,27.00,T&S UK - Public Transport
,BEIS,UKRI - AHRC,19/12/2018,T&S UK - Public Transport,SMT,Corporate Travel Management (North) Ltd,98369858,1.00,T&S UK - Public Transport
,BEIS,UKRI - AHRC,19/12/2018,T&S UK - Public Transport,SMT,Corporate Travel Management (North) Ltd,98369858,133.60,T&S UK - Public Transport
,BEIS,UKRI - AHRC,19/12/2018,T&S UK - Public Transport,SMT,Corporate Travel Management (North) Ltd,98369858,52.00,T&S UK - Public Transport
,BEIS,UKRI - AHRC,19/12/2018,T&S UK - Public Transport,SMT,Corporate Travel Management (North) Ltd,98369858,85.50,T&S UK - Public Transport
,BEIS,UKRI - AHRC,19/12/2018,T&S UK - Public Transport,SMT,Corporate Travel Management (North) Ltd,98369858,62.50,T&S UK - Public Transport
,BEIS,UKRI - AHRC,19/12/2018,T&S UK - Public Transport,SMT,Corporate Travel Management (North) Ltd,98369858,48.80,T&S UK - Public Transport
,BEIS,UKRI - AHRC,19/12/2018,T&S UK - Public Transport,SMT,Corporate Travel Management (North) Ltd,98369858,16.00,T&S UK - Public Transport
,BEIS,UKRI - AHRC,19/12/2018,T&S UK - Public Transport,SMT,Corporate Travel Management (North) Ltd,98369858,26.60,T&S UK - Public Transport
,BEIS,UKRI - AHRC,19/12/2018,T&S UK - Public Transport,SMT,Corporate Travel Management (North) Ltd,98369858,1.00,T&S UK - Public Transport
,BEIS,UKRI - AHRC,19/12/2018,T&S UK - Public Transport,SMT,Corporate Travel Management (North) Ltd,98369858,71.00,T&S UK - Public Transport
,BEIS,UKRI - AHRC,19/12/2018,T&S UK - Public Transport,SMT,Corporate Travel Management (North) Ltd,98369858,42.80,T&S UK - Public Transport
,BEIS,UKRI - AHRC,19/12/2018,T&S UK - Public Transport,SMT,Corporate Travel Management (North) Ltd,98369858,94.70,T&S UK - Public Transport
,BEIS,UKRI - AHRC,19/12/2018,T&S UK - Public Transport,SMT,Corporate Travel Management (North) Ltd,98369858,1.00,T&S UK - Public Transport
,BEIS,UKRI - AHRC,19/12/2018,T&S UK - Public Transport,SMT,Corporate Travel Management (North) Ltd,98369858,85.80,T&S UK - Public Transport
,BEIS,UKRI - AHRC,19/12/2018,T&S UK - Public Transport,SMT,Corporate Travel Management (North) Ltd,98369858,74.40,T&S UK - Public Transport
,BEIS,UKRI - AHRC,19/12/2018,T&S UK - Public Transport,SMT,Corporate Travel Management (North) Ltd,98369858,133.60,T&S UK - Public Transport
,BEIS,UKRI - AHRC,19/12/2018,T&S UK - Public Transport,SMT,Corporate Travel Management (North) Ltd,98369858,94.70,T&S UK - Public Transport
,BEIS,UKRI - AHRC,19/12/2018,T&S UK - Public Transport,SMT,Corporate Travel Management (North) Ltd,98369858,79.00,T&S UK - Public Transport
,BEIS,UKRI - AHRC,19/12/2018,T&S UK - Public Transport,SMT,Corporate Travel Management (North) Ltd,98369858,24.40,T&S UK - Public Transport
,BEIS,UKRI - AHRC,19/12/2018,T&S UK - Public Transport,SMT,Corporate Travel Management (North) Ltd,98369858,27.90,T&S UK - Public Transport
,BEIS,UKRI - AHRC,19/12/2018,T&S UK - Public Transport,SMT,Corporate Travel Management (North) Ltd,98369858,140.30,T&S UK - Public Transport
,BEIS,UKRI - AHRC,19/12/2018,T&S UK - Public Transport,SMT,Corporate Travel Management (North) Ltd,98369858,1.00,T&S UK - Public Transport
,BEIS,UKRI - AHRC,19/12/2018,T&S UK - Public Transport,SMT,Corporate Travel Management (North) Ltd,98369858,39.80,T&S UK - Public Transport
,BEIS,UKRI - AHRC,19/12/2018,T&S UK - Public Transport,SMT,Corporate Travel Management (North) Ltd,98369858,117.50,T&S UK - Public Transport
,BEIS,UKRI - AHRC,19/12/2018,T&S UK - Public Transport,SMT,Corporate Travel Management (North) Ltd,98369858,5.00,T&S UK - Public Transport
,BEIS,UKRI - AHRC,19/12/2018,T&S UK - Public Transport,SMT,Corporate Travel Management (North) Ltd,98369858,-69.40,T&S UK - Public Transport
,BEIS,UKRI - AHRC,19/12/2018,T&S UK - Public Transport,SMT,Corporate Travel Management (North) Ltd,98369858,1.00,T&S UK - Public Transport
,BEIS,UKRI - AHRC,19/12/2018,T&S UK - Public Transport,SMT,Corporate Travel Management (North) Ltd,98369858,120.40,T&S UK - Public Transport
,BEIS,UKRI - AHRC,19/12/2018,T&S UK - Public Transport,SMT,Corporate Travel Management (North) Ltd,98369858,86.50,T&S UK - Public Transport
,BEIS,UKRI - AHRC,19/12/2018,T&S UK - Public Transport,SMT,Corporate Travel Management (North) Ltd,98369858,19.90,T&S UK - Public Transport
,BEIS,UKRI - AHRC,19/12/2018,T&S UK - Public Transport,SMT,Corporate Travel Management (North) Ltd,98369858,1.00,T&S UK - Public Transport
,BEIS,UKRI - AHRC,19/12/2018,T&S UK - Public Transport,SMT,Corporate Travel Management (North) Ltd,98369858,62.50,T&S UK - Public Transport
,BEIS,UKRI - AHRC,19/12/2018,T&S UK - Public Transport,SMT,Corporate Travel Management (North) Ltd,98369858,38.20,T&S UK - Public Transport
,BEIS,UKRI - AHRC,19/12/2018,T&S UK - Public Transport,SMT,Corporate Travel Management (North) Ltd,98369858,86.00,T&S UK - Public Transport
,BEIS,UKRI - AHRC,19/12/2018,T&S UK - Public Transport,SMT,Corporate Travel Management (North) Ltd,98369858,86.00,T&S UK - Public Transport
,BEIS,UKRI - AHRC,19/12/2018,T&S UK - Public Transport,SMT,Corporate Travel Management (North) Ltd,98369858,68.80,T&S UK - Public Transport
,BEIS,UKRI - AHRC,19/12/2018,T&S UK - Public Transport,SMT,Corporate Travel Management (North) Ltd,98369858,22.50,T&S UK - Public Transport
,BEIS,UKRI - AHRC,19/12/2018,T&S UK - Public Transport,Secretariat,Corporate Travel Management (North) Ltd,98369858,2.00,T&S UK - Public Transport
,BEIS,UKRI - AHRC,19/12/2018,T&S UK - Public Transport,Secretariat,Corporate Travel Management (North) Ltd,98369858,60.60,T&S UK - Public Transport
,BEIS,UKRI - AHRC,19/12/2018,T&S UK - Public Transport,Secretariat,Corporate Travel Management (North) Ltd,98369858,50.70,T&S UK - Public Transport
,BEIS,UKRI - AHRC,19/12/2018,T&S UK - Public Transport,Skills,Corporate Travel Management (North) Ltd,98369858,158.30,T&S UK - Public Transport
,BEIS,UKRI - AHRC,19/12/2018,T&S UK - Public Transport,Skills,Corporate Travel Management (North) Ltd,98369858,199.50,T&S UK - Public Transport
,BEIS,UKRI - AHRC,19/12/2018,T&S UK - Public Transport,Skills,Corporate Travel Management (North) Ltd,98369858,30.00,T&S UK - Public Transport
,BEIS,UKRI - AHRC,19/12/2018,T&S UK - Public Transport,Skills,Corporate Travel Management (North) Ltd,98369858,11.60,T&S UK - Public Transport
,BEIS,UKRI - AHRC,19/12/2018,T&S UK - Public Transport,Skills,Corporate Travel Management (North) Ltd,98369858,132.80,T&S UK - Public Transport
,BEIS,UKRI - AHRC,19/12/2018,T&S UK - Public Transport,Skills,Corporate Travel Management (North) Ltd,98369858,99.80,T&S UK - Public Transport
,BEIS,UKRI - AHRC,19/12/2018,T&S UK - Public Transport,Skills,Corporate Travel Management (North) Ltd,98369858,41.50,T&S UK - Public Transport
,BEIS,UKRI - AHRC,10/12/2018,Research Grant Expenditure,Research Grants,Courtauld Institute of Art,98347712,14977.54,Research Grant Expenditure
,BEIS,UKRI - AHRC,10/12/2018,Research Grant Expenditure,JPI Cultural Heritage,Courtauld Institute of Art,98347725,2663.01,Research Grant Expenditure
,BEIS,UKRI - AHRC,10/12/2018,Research Grant Expenditure,JPI Cultural Heritage,Courtauld Institute of Art,98347778,-3916.89,Research Grant Expenditure
,BEIS,UKRI - AHRC,10/12/2018,Research Grant Expenditure,RCUK Newton Programme,Coventry University,98347521,10120.69,Research Grant Expenditure
,BEIS,UKRI - AHRC,10/12/2018,Research Grant Expenditure,Creative Economy,Coventry University,98347773,-1.28,Research Grant Expenditure
,BEIS,UKRI - AHRC,10/12/2018,Fellowships,Research Fellowships,De Montfort University,98346707,36278.83,Fellowships
,BEIS,UKRI - AHRC,10/12/2018,Research Grant Expenditure,JPI Cultural Heritage,De Montfort University,98347646,13222.05,Research Grant Expenditure
,BEIS,UKRI - AHRC,10/12/2018,Research Grant Expenditure,Follow-on Fund,De Montfort University,98347765,24574.17,Research Grant Expenditure
,BEIS,UKRI - AHRC,19/12/2018,International Subscriptions,Business Process & Analysis,Digital Science & Research Solutions Inc,98369176,50000.00,International Subscriptions
,BEIS,UKRI - AHRC,18/12/2018,Research Grant Expenditure,RCUK Global Challenges Research Fund (RCUK GCRF),Economic & Social Research Council,98366733,21828.10,Research Grant Expenditure
,BEIS,UKRI - AHRC,18/12/2018,Research Grant Expenditure,RCUK Global Challenges Research Fund (RCUK GCRF),Economic & Social Research Council,98366743,47090.50,Research Grant Expenditure
,BEIS,UKRI - AHRC,18/12/2018,Research Grant Expenditure,RCUK Global Challenges Research Fund (RCUK GCRF),Economic & Social Research Council,98366759,21842.65,Research Grant Expenditure
,BEIS,UKRI - AHRC,18/12/2018,Research Grant Expenditure,RCUK Global Challenges Research Fund (RCUK GCRF),Economic & Social Research Council,98366772,36744.00,Research Grant Expenditure
,BEIS,UKRI - AHRC,18/12/2018,Research Grant Expenditure,Cross Council Responsive Mode Awards,Economic & Social Research Council,98366776,14086.98,Research Grant Expenditure
,BEIS,UKRI - AHRC,18/12/2018,Research Grant Expenditure,RCUK Global Challenges Research Fund (RCUK GCRF),Economic & Social Research Council,98366781,38826.50,Research Grant Expenditure
,BEIS,UKRI - AHRC,18/12/2018,Research Grant Expenditure,RCUK Global Challenges Research Fund (RCUK GCRF),Economic & Social Research Council,98366785,18896.35,Research Grant Expenditure
,BEIS,UKRI - AHRC,18/12/2018,Research Grant Expenditure,RCUK Global Challenges Research Fund (RCUK GCRF),Economic & Social Research Council,98366793,46571.80,Research Grant Expenditure
,BEIS,UKRI - AHRC,18/12/2018,Research Grant Expenditure,Urban Living,Economic & Social Research Council,98366795,4685.53,Research Grant Expenditure
,BEIS,UKRI - AHRC,18/12/2018,Research Grant Expenditure,Urban Living,Economic & Social Research Council,98366797,4001.04,Research Grant Expenditure
,BEIS,UKRI - AHRC,18/12/2018,Research Grant Expenditure,Urban Living,Economic & Social Research Council,98366799,4525.08,Research Grant Expenditure
,BEIS,UKRI - AHRC,18/12/2018,Research Grant Expenditure,Urban Living,Economic & Social Research Council,98366803,3921.89,Research Grant Expenditure
,BEIS,UKRI - AHRC,18/12/2018,Research Grant Expenditure,Urban Living,Economic & Social Research Council,98366805,3336.08,Research Grant Expenditure
,BEIS,UKRI - AHRC,18/12/2018,Research Grant Expenditure,Urban Living,Economic & Social Research Council,98366807,3743.85,Research Grant Expenditure
,BEIS,UKRI - AHRC,18/12/2018,Research Grant Expenditure,Cross Council Responsive Mode Awards,Economic & Social Research Council,98366809,15890.03,Research Grant Expenditure
,BEIS,UKRI - AHRC,18/12/2018,Research Grant Expenditure,Global Challenges Research Fund (GCRF),Economic & Social Research Council,98366811,6370.06,Research Grant Expenditure
,BEIS,UKRI - AHRC,18/12/2018,Research Grant Expenditure,Global Challenges Research Fund (GCRF),Economic & Social Research Council,98366813,16559.90,Research Grant Expenditure
,BEIS,UKRI - AHRC,18/12/2018,Research Grant Expenditure,Global Challenges Research Fund (GCRF),Economic & Social Research Council,98366815,17232.61,Research Grant Expenditure
,BEIS,UKRI - AHRC,18/12/2018,Research Grant Expenditure,Global Challenges Research Fund (GCRF),Economic & Social Research Council,98366817,13933.95,Research Grant Expenditure
,BEIS,UKRI - AHRC,18/12/2018,Research Grant Expenditure,Commissioned Research,Economic & Social Research Council,98366822,6089.15,Research Grant Expenditure
,BEIS,UKRI - AHRC,18/12/2018,Research Grant Expenditure,Global Challenges Research Fund (GCRF),Economic & Social Research Council,98366829,35041.02,Research Grant Expenditure
,BEIS,UKRI - AHRC,18/12/2018,Research Grant Expenditure,Urban Living,Economic & Social Research Council,98366833,3925.29,Research Grant Expenditure
,BEIS,UKRI - AHRC,18/12/2018,Research Grant Expenditure,Urban Living,Economic & Social Research Council,98366846,3977.16,Research Grant Expenditure
,BEIS,UKRI - AHRC,18/12/2018,Research Grant Expenditure,Commissioned Research,Economic & Social Research Council,98367262,10059.12,Research Grant Expenditure
,BEIS,UKRI - AHRC,18/12/2018,Research Grant Expenditure,Commissioned Research,Economic & Social Research Council,98367265,8503.88,Research Grant Expenditure
,BEIS,UKRI - AHRC,18/12/2018,Research Grant Expenditure,Commissioned Research,Economic & Social Research Council,98367270,7765.04,Research Grant Expenditure
,BEIS,UKRI - AHRC,18/12/2018,Research Grant Expenditure,Commissioned Research,Economic & Social Research Council,98367275,6728.90,Research Grant Expenditure
,BEIS,UKRI - AHRC,18/12/2018,Research Grant Expenditure,RCUK Global Challenges Research Fund (RCUK GCRF),Economic & Social Research Council,98367288,51129.90,Research Grant Expenditure
,BEIS,UKRI - AHRC,18/12/2018,Research Grant Expenditure,Cross Council Responsive Mode Awards,Economic & Social Research Council,98367316,41404.58,Research Grant Expenditure
,BEIS,UKRI - AHRC,18/12/2018,Research Grant Expenditure,Cross Council Responsive Mode Awards,Economic & Social Research Council,98367319,29027.54,Research Grant Expenditure
,BEIS,UKRI - AHRC,18/12/2018,Research Grant Expenditure,Commissioned Research,Economic & Social Research Council,98367322,27009.57,Research Grant Expenditure
,BEIS,UKRI - AHRC,18/12/2018,Research Grant Expenditure,Urban Living,Economic & Social Research Council,98367327,7111.40,Research Grant Expenditure
,BEIS,UKRI - AHRC,18/12/2018,Research Grant Expenditure,Urban Living,Economic & Social Research Council,98367335,3527.65,Research Grant Expenditure
,BEIS,UKRI - AHRC,18/12/2018,Research Grant Expenditure,Urban Living,Economic & Social Research Council,98367343,7216.28,Research Grant Expenditure
,BEIS,UKRI - AHRC,18/12/2018,Research Grant Expenditure,Urban Living,Economic & Social Research Council,98367351,3466.63,Research Grant Expenditure
,BEIS,UKRI - AHRC,18/12/2018,Research Grant Expenditure,Urban Living,Economic & Social Research Council,98367358,2498.12,Research Grant Expenditure
,BEIS,UKRI - AHRC,18/12/2018,Research Grant Expenditure,Urban Living,Economic & Social Research Council,98367365,5692.00,Research Grant Expenditure
,BEIS,UKRI - AHRC,18/12/2018,Research Grant Expenditure,Anti-microbial Resistance (AMR),Economic & Social Research Council,98367370,26563.44,Research Grant Expenditure
,BEIS,UKRI - AHRC,18/12/2018,Research Grant Expenditure,Digital Transformations,Economic & Social Research Council,98367373,7847.06,Research Grant Expenditure
,BEIS,UKRI - AHRC,18/12/2018,Research Grant Expenditure,Digital Transformations,Economic & Social Research Council,98367377,7176.91,Research Grant Expenditure
,BEIS,UKRI - AHRC,18/12/2018,Research Grant Expenditure,Digital Transformations,Economic & Social Research Council,98367379,5543.41,Research Grant Expenditure
,BEIS,UKRI - AHRC,18/12/2018,Research Grant Expenditure,Digital Transformations,Economic & Social Research Council,98367381,6270.67,Research Grant Expenditure
,BEIS,UKRI - AHRC,18/12/2018,Research Grant Expenditure,Cross Council Responsive Mode Awards,Economic & Social Research Council,98367383,12500.39,Research Grant Expenditure
,BEIS,UKRI - AHRC,18/12/2018,Research Grant Expenditure,Digital Transformations,Economic & Social Research Council,98367385,8697.38,Research Grant Expenditure
,BEIS,UKRI - AHRC,18/12/2018,Research Grant Expenditure,Digital Transformations,Economic & Social Research Council,98367388,5081.33,Research Grant Expenditure
,BEIS,UKRI - AHRC,18/12/2018,Research Grant Expenditure,Digital Transformations,Economic & Social Research Council,98367389,11853.41,Research Grant Expenditure
,BEIS,UKRI - AHRC,18/12/2018,Research Grant Expenditure,Urban Living,Economic & Social Research Council,98367393,6299.70,Research Grant Expenditure
,BEIS,UKRI - AHRC,27/12/2018,Research Grant Expenditure,Connected Communities Programme,Economic & Social Research Council,98368222,28728.83,Research Grant Expenditure
,BEIS,UKRI - AHRC,27/12/2018,Research Grant Expenditure,Global Uncertainties Programme,Economic & Social Research Council,98368223,2898.63,Research Grant Expenditure
,BEIS,UKRI - AHRC,27/12/2018,Research Grant Expenditure,Global Challenges Research Fund (GCRF),Economic & Social Research Council,98368224,16407.33,Research Grant Expenditure
,BEIS,UKRI - AHRC,27/12/2018,Research Grant Expenditure,Global Challenges Research Fund (GCRF),Economic & Social Research Council,98368225,21731.28,Research Grant Expenditure
,BEIS,UKRI - AHRC,27/12/2018,Research Grant Expenditure,Global Challenges Research Fund (GCRF),Economic & Social Research Council,98368240,16283.64,Research Grant Expenditure
,BEIS,UKRI - AHRC,27/12/2018,Research Grant Expenditure,Global Challenges Research Fund (GCRF),Economic & Social Research Council,98368241,16986.73,Research Grant Expenditure
,BEIS,UKRI - AHRC,14/12/2018,Other Staff Benefits,Corporate Services,EDENRED (UK GROUP) LTD,98366527,1000.00,Other Staff Benefits
,BEIS,UKRI - AHRC,19/12/2018,Nursery Deductions,Balance Sheet,EDENRED (UK GROUP) LTD,98368045,4337.00,Nursery Deductions
,BEIS,UKRI - AHRC,21/12/2018,Other Staff Benefits,Corporate Services,EDENRED (UK GROUP) LTD,98368044,9.37,Other Staff Benefits
,BEIS,UKRI - AHRC,04/12/2018,Recharges From Councils - General,Industrial Strategy Challenge Fund (ISCF) - Creative Clusters,Engineering & Physical Sciences Research Council,98352583,2849.03,Recharges From Councils - General
,BEIS,UKRI - AHRC,04/12/2018,Recharges From Councils - General,Industrial Strategy Challenge Fund (ISCF) - Creative Clusters,Engineering & Physical Sciences Research Council,98352595,-5698.06,Recharges From Councils - General
,BEIS,UKRI - AHRC,04/12/2018,Recharges From Councils - General,Industrial Strategy Challenge Fund (ISCF) - Creative Clusters,Engineering & Physical Sciences Research Council,98352598,2849.03,Recharges From Councils - General
,BEIS,UKRI - AHRC,04/12/2018,Recharges From Councils - General,Industrial Strategy Challenge Fund (ISCF) - Creative Clusters,Engineering & Physical Sciences Research Council,98352599,2849.03,Recharges From Councils - General
,BEIS,UKRI - AHRC,11/12/2018,Other Programme Costs,RCUK Other,Engineering & Physical Sciences Research Council,98355288,232758.16,Other Programme Costs
,BEIS,UKRI - AHRC,18/12/2018,Research Grant Expenditure,NPIF Research Talent (RCUK Innovation Fellowships),Engineering & Physical Sciences Research Council,98369263,13825.97,Research Grant Expenditure
,BEIS,UKRI - AHRC,18/12/2018,Research Grant Expenditure,NPIF Research Talent (RCUK Innovation Fellowships),Engineering & Physical Sciences Research Council,98369269,21516.37,Research Grant Expenditure
,BEIS,UKRI - AHRC,18/12/2018,Research Grant Expenditure,NPIF Research Talent (RCUK Innovation Fellowships),Engineering & Physical Sciences Research Council,98369274,12345.07,Research Grant Expenditure
,BEIS,UKRI - AHRC,18/12/2018,Research Grant Expenditure,NPIF Research Talent (RCUK Innovation Fellowships),Engineering & Physical Sciences Research Council,98369277,7006.61,Research Grant Expenditure
,BEIS,UKRI - AHRC,18/12/2018,Research Grant Expenditure,Digital Economy,Engineering & Physical Sciences Research Council,98369295,25597.49,Research Grant Expenditure
,BEIS,UKRI - AHRC,18/12/2018,Research Grant Expenditure,Digital Economy,Engineering & Physical Sciences Research Council,98369298,25681.85,Research Grant Expenditure
,BEIS,UKRI - AHRC,18/12/2018,Research Grant Expenditure,Digital Economy,Engineering & Physical Sciences Research Council,98369433,13971.40,Research Grant Expenditure
,BEIS,UKRI - AHRC,18/12/2018,Research Grant Expenditure,Digital Economy,Engineering & Physical Sciences Research Council,98369437,6203.54,Research Grant Expenditure
,BEIS,UKRI - AHRC,18/12/2018,Research Grant Expenditure,Digital Economy,Engineering & Physical Sciences Research Council,98369450,21065.71,Research Grant Expenditure
,BEIS,UKRI - AHRC,18/12/2018,Research Grant Expenditure,Digital Economy,Engineering & Physical Sciences Research Council,98369455,10485.34,Research Grant Expenditure
,BEIS,UKRI - AHRC,18/12/2018,Research Grant Expenditure,Digital Economy,Engineering & Physical Sciences Research Council,98369462,17620.49,Research Grant Expenditure
,BEIS,UKRI - AHRC,18/12/2018,Research Grant Expenditure,Digital Economy,Engineering & Physical Sciences Research Council,98369468,35317.86,Research Grant Expenditure
,BEIS,UKRI - AHRC,31/12/2018,Legal & Professional Services,Corporate Services,unspecified,98374389,2905.37,Legal & Professional Services
,BEIS,UKRI - AHRC,05/12/2018,Hospitality,Communications,Gerard Silverstone t/a Geri Silverstone Communications Consultants,98355287,1890.00,Hospitality
,BEIS,UKRI - AHRC,10/12/2018,Research Grant Expenditure,Anti-microbial Resistance (AMR),Glasgow School of Art,98347564,33812.22,Research Grant Expenditure
,BEIS,UKRI - AHRC,10/12/2018,Research Grant Expenditure,Anti-microbial Resistance (AMR),Glasgow School of Art,98347566,29928.19,Research Grant Expenditure
,BEIS,UKRI - AHRC,10/12/2018,Research Grant Expenditure,Anti-microbial Resistance (AMR),Glasgow School of Art,98347571,25796.23,Research Grant Expenditure
,BEIS,UKRI - AHRC,10/12/2018,Research Grant Expenditure,Networks & Workshops,Glasgow School of Art,98347734,1785.16,Research Grant Expenditure
,BEIS,UKRI - AHRC,10/12/2018,Research Grant Expenditure,Networks & Workshops,Glasgow School of Art,98347818,24850.30,Research Grant Expenditure
,BEIS,UKRI - AHRC,10/12/2018,Research Grant Expenditure,RCUK Global Challenges Research Fund (RCUK GCRF),Goldsmiths College University of London,98347597,203857.00,Research Grant Expenditure
,BEIS,UKRI - AHRC,10/12/2018,Research Grant Expenditure,Research Grants,Goldsmiths College University of London,98347607,71272.74,Research Grant Expenditure
,BEIS,UKRI - AHRC,10/12/2018,Research Grant Expenditure,Global Challenges Research Fund (GCRF),Goldsmiths College University of London,98347748,-2394.65,Research Grant Expenditure
,BEIS,UKRI - AHRC,10/12/2018,Research Grant Expenditure,Creative Economy,Goldsmiths College University of London,98347775,-0.01,Research Grant Expenditure
,BEIS,UKRI - AHRC,10/12/2018,Fellowships,Research Fellowships,Goldsmiths College University of London,98347881,22263.79,Fellowships
,BEIS,UKRI - AHRC,14/12/2018,Council & Committee Honoraria,New Programme Development,GRACE LEES-MAFFEI,98364637,170.00,Council & Committee Honoraria
,BEIS,UKRI - AHRC,03/12/2018,Contract Staff,Finance,Hays Specialist Recruitment Ltd,98348024,1566.24,Contract Staff
,BEIS,UKRI - AHRC,03/12/2018,Contract Staff,Finance,Hays Specialist Recruitment Ltd,98348029,939.74,Contract Staff
,BEIS,UKRI - AHRC,10/12/2018,Recruitment Costs,Finance,Hays Specialist Recruitment Ltd,98363128,1816.50,Recruitment Costs
,BEIS,UKRI - AHRC,18/12/2018,Recruitment Costs,Finance,Hays Specialist Recruitment Ltd,98369089,1816.50,Recruitment Costs
,BEIS,UKRI - AHRC,10/12/2018,Research Grant Expenditure,Research Grants,Historic Environment Scotland (GRANT),98347461,35494.52,Research Grant Expenditure
,BEIS,UKRI - AHRC,10/12/2018,Research Grant Expenditure,Networks & Workshops,Historic Royal Palaces,98347662,9027.57,Research Grant Expenditure
,BEIS,UKRI - AHRC,10/12/2018,Fellowships,Research Fellowships,Historic Royal Palaces,98347870,35841.68,Fellowships
,BEIS,UKRI - AHRC,12/12/2018,NI Payable Salaries,Balance Sheet,HM Revenue & Customs,98364291,89981.71,NI Payable Salaries
,BEIS,UKRI - AHRC,12/12/2018,PAYE Payable Salaries,Balance Sheet,HM Revenue & Customs,98364292,85327.36,PAYE Payable Salaries
,BEIS,UKRI - AHRC,12/12/2018,Student Loans,Balance Sheet,HM Revenue & Customs,98364293,3980.00,Student Loans
,BEIS,UKRI - AHRC,12/12/2018,Apprenticeship Levy,Corporate Services,HM Revenue & Customs,98364294,2362.00,Apprenticeship Levy
,BEIS,UKRI - AHRC,10/12/2018,Research Grant Expenditure,Global Challenges Research Fund (GCRF),Institute of Development Studies,98347473,53182.76,Research Grant Expenditure
,BEIS,UKRI - AHRC,21/12/2018,Advertising & Promotion,Communications,Itsdevelopmental Ltd,98371698,320.00,Advertising & Promotion
,BEIS,UKRI - AHRC,10/12/2018,Research Grant Expenditure,Research Grants,Keele University,98347578,61185.74,Research Grant Expenditure
,BEIS,UKRI - AHRC,10/12/2018,Fellowships,Research Fellowships,Keele University,98347841,23234.12,Fellowships
,BEIS,UKRI - AHRC,10/12/2018,Fellowships,Research Fellowships,Keele University,98347850,20201.40,Fellowships
,BEIS,UKRI - AHRC,10/12/2018,Fellowships,Research Fellowships,King's College London,98346705,40367.20,Fellowships
,BEIS,UKRI - AHRC,10/12/2018,Research Grant Expenditure,Open World Research Initiative (OWRI).,King's College London,98347450,194277.13,Research Grant Expenditure
,BEIS,UKRI - AHRC,10/12/2018,Research Grant Expenditure,Research Grants,King's College London,98347550,67745.11,Research Grant Expenditure
,BEIS,UKRI - AHRC,10/12/2018,Research Grant Expenditure,Follow-on Fund,King's College London,98347635,19263.07,Research Grant Expenditure
,BEIS,UKRI - AHRC,10/12/2018,Research Grant Expenditure,Networks & Workshops,King's College London,98347639,6047.11,Research Grant Expenditure
,BEIS,UKRI - AHRC,10/12/2018,Fellowships,Research Fellowships,King's College London,98347838,25394.75,Fellowships
,BEIS,UKRI - AHRC,10/12/2018,Fellowships,Research Fellowships,King's College London,98347866,26847.06,Fellowships
,BEIS,UKRI - AHRC,10/12/2018,Fellowships,Research Fellowships,Kingston University,98347833,14354.40,Fellowships
,BEIS,UKRI - AHRC,10/12/2018,Research Grant Expenditure,RCUK Newton Programme,Lancaster University,98347429,4997.94,Research Grant Expenditure
,BEIS,UKRI - AHRC,10/12/2018,Research Grant Expenditure,Research Grants,Lancaster University,98347437,67036.93,Research Grant Expenditure
,BEIS,UKRI - AHRC,10/12/2018,Research Grant Expenditure,Design: Strategic Initiatives,Lancaster University,98347520,57375.07,Research Grant Expenditure
,BEIS,UKRI - AHRC,10/12/2018,Research Grant Expenditure,RCUK Newton Programme,Lancaster University,98347522,9473.63,Research Grant Expenditure
,BEIS,UKRI - AHRC,10/12/2018,Research Grant Expenditure,Research Grants,Lancaster University,98347542,62323.20,Research Grant Expenditure
,BEIS,UKRI - AHRC,10/12/2018,Research Grant Expenditure,Anti-microbial Resistance (AMR),Lancaster University,98347584,27116.02,Research Grant Expenditure
,BEIS,UKRI - AHRC,10/12/2018,Research Grant Expenditure,Networks & Workshops,Lancaster University,98347627,5138.37,Research Grant Expenditure
,BEIS,UKRI - AHRC,10/12/2018,Research Grant Expenditure,Care for the Future,Lancaster University,98347640,4992.27,Research Grant Expenditure
,BEIS,UKRI - AHRC,10/12/2018,Research Grant Expenditure,Research Grants,Lancaster University,98347723,11061.24,Research Grant Expenditure
,BEIS,UKRI - AHRC,10/12/2018,Research Grant Expenditure,Networks & Workshops,Lancaster University,98347738,2937.26,Research Grant Expenditure
,BEIS,UKRI - AHRC,10/12/2018,Research Grant Expenditure,Creative Economy,Lancaster University,98347771,-496.50,Research Grant Expenditure
,BEIS,UKRI - AHRC,10/12/2018,Research Grant Expenditure,Newton Programme,Liverpool John Moores University,98347688,16485.42,Research Grant Expenditure
,BEIS,UKRI - AHRC,10/12/2018,Fellowships,Research Fellowships,Liverpool John Moores University,98347880,32544.68,Fellowships
,BEIS,UKRI - AHRC,10/12/2018,Research Grant Expenditure,Global Challenges Research Fund (GCRF),London School of Economics and Political Science,98347475,58713.89,Research Grant Expenditure
,BEIS,UKRI - AHRC,10/12/2018,Research Grant Expenditure,Research Grants,London School of Economics and Political Science,98347613,68392.56,Research Grant Expenditure
,BEIS,UKRI - AHRC,10/12/2018,Research Grant Expenditure,Research Grants,Loughborough University,98347459,47203.53,Research Grant Expenditure
,BEIS,UKRI - AHRC,10/12/2018,Research Grant Expenditure,Networks & Workshops,Loughborough University,98347548,4361.73,Research Grant Expenditure
,BEIS,UKRI - AHRC,10/12/2018,Research Grant Expenditure,Global Challenges Research Fund (GCRF),Loughborough University,98347598,13452.55,Research Grant Expenditure
,BEIS,UKRI - AHRC,10/12/2018,Research Grant Expenditure,Newton Programme,Loughborough University,98347686,18324.11,Research Grant Expenditure
,BEIS,UKRI - AHRC,10/12/2018,Fellowships,Research Fellowships,Loughborough University,98347879,25823.77,Fellowships
,BEIS,UKRI - AHRC,10/12/2018,Fellowships,Research Fellowships,Loughborough University,98347879,25823.77,Fellowships
,BEIS,UKRI - AHRC,10/12/2018,Research Grant Expenditure,Networks & Workshops,Manchester Metropolitan University,98347501,5510.86,Research Grant Expenditure
,BEIS,UKRI - AHRC,10/12/2018,Research Grant Expenditure,Research Grants,Manchester Metropolitan University,98347528,58747.98,Research Grant Expenditure
,BEIS,UKRI - AHRC,10/12/2018,Research Grant Expenditure,Networks & Workshops,Manchester Metropolitan University,98347601,4832.91,Research Grant Expenditure
,BEIS,UKRI - AHRC,10/12/2018,Research Grant Expenditure,Research Grants,Manchester Metropolitan University,98347622,25642.28,Research Grant Expenditure
,BEIS,UKRI - AHRC,10/12/2018,Research Grant Expenditure,Follow-on Fund,Manchester Metropolitan University,98347777,14262.89,Research Grant Expenditure
,BEIS,UKRI - AHRC,27/12/2018,Research Grant Expenditure,RCUK Global Challenges Research Fund (RCUK GCRF),Medical Research Council,98373046,13968.41,Research Grant Expenditure
,BEIS,UKRI - AHRC,10/12/2018,Research Grant Expenditure,Research Grants,National Museums of Scotland,98347513,32523.87,Research Grant Expenditure
,BEIS,UKRI - AHRC,10/12/2018,Research Grant Expenditure,Networks & Workshops,National Museums of Scotland,98347657,5601.26,Research Grant Expenditure
,BEIS,UKRI - AHRC,04/12/2018,Research Grant Expenditure,RCUK Global Challenges Research Fund (RCUK GCRF),Natural Environment Research Council,98352645,17334.50,Research Grant Expenditure
,BEIS,UKRI - AHRC,27/12/2018,Secondments,PSU JRS,Natural Environment Research Council,98373064,9968.74,Secondments
,BEIS,UKRI - AHRC,10/12/2018,Research Grant Expenditure,Industrial Strategy Challenge Fund (ISCF) - Creative Clusters,NESTA,98347691,315868.13,Research Grant Expenditure
,BEIS,UKRI - AHRC,04/12/2018,Non-staff travel and subsistance,Newton Programme,Non Employee Expenses Supplier,98352009,130.05,Non-staff travel and subsistance
,BEIS,UKRI - AHRC,04/12/2018,Non-staff travel and subsistance,Fund for International Collaboration,Non Employee Expenses Supplier,98352010,379.19,Non-staff travel and subsistance
,BEIS,UKRI - AHRC,04/12/2018,Non-staff travel and subsistance,Fund for International Collaboration,Non Employee Expenses Supplier,98352011,127.06,Non-staff travel and subsistance
,BEIS,UKRI - AHRC,04/12/2018,Non-staff travel and subsistance,Fund for International Collaboration,Non Employee Expenses Supplier,98352012,1261.96,Non-staff travel and subsistance
,BEIS,UKRI - AHRC,04/12/2018,Non-staff travel and subsistance,Fund for International Collaboration,Non Employee Expenses Supplier,98352013,2442.91,Non-staff travel and subsistance
,BEIS,UKRI - AHRC,04/12/2018,Non-staff travel and subsistance,Fund for International Collaboration,Non Employee Expenses Supplier,98352014,574.91,Non-staff travel and subsistance
,BEIS,UKRI - AHRC,04/12/2018,Non-staff travel and subsistance,Fund for International Collaboration,Non Employee Expenses Supplier,98352015,151.00,Non-staff travel and subsistance
,BEIS,UKRI - AHRC,04/12/2018,Non-staff travel and subsistance,Fund for International Collaboration,Non Employee Expenses Supplier,98352016,85.66,Non-staff travel and subsistance
,BEIS,UKRI - AHRC,04/12/2018,Non-staff travel and subsistance,Fund for International Collaboration,Non Employee Expenses Supplier,98352017,658.71,Non-staff travel and subsistance
,BEIS,UKRI - AHRC,04/12/2018,Non-staff travel and subsistance,Fund for International Collaboration,Non Employee Expenses Supplier,98352018,1011.13,Non-staff travel and subsistance
,BEIS,UKRI - AHRC,04/12/2018,Non-staff travel and subsistance,Fund for International Collaboration,Non Employee Expenses Supplier,98352019,1164.91,Non-staff travel and subsistance
,BEIS,UKRI - AHRC,04/12/2018,Non-staff travel and subsistance,Fund for International Collaboration,Non Employee Expenses Supplier,98352020,3143.99,Non-staff travel and subsistance
,BEIS,UKRI - AHRC,04/12/2018,Non-staff travel and subsistance,Fund for International Collaboration,Non Employee Expenses Supplier,98352021,885.70,Non-staff travel and subsistance
,BEIS,UKRI - AHRC,04/12/2018,Non-staff travel and subsistance,Fund for International Collaboration,Non Employee Expenses Supplier,98352022,2470.77,Non-staff travel and subsistance
,BEIS,UKRI - AHRC,04/12/2018,Non-staff travel and subsistance,Newton Programme,Non Employee Expenses Supplier,98352023,844.17,Non-staff travel and subsistance
,BEIS,UKRI - AHRC,04/12/2018,Non-staff travel and subsistance,Communications,Non Employee Expenses Supplier,98352024,106.90,Non-staff travel and subsistance
,BEIS,UKRI - AHRC,04/12/2018,Non-staff travel and subsistance,"Languages,Literature & International Engagement",Non Employee Expenses Supplier,98352025,96.38,Non-staff travel and subsistance
,BEIS,UKRI - AHRC,04/12/2018,Non-staff travel and subsistance,"Languages,Literature & International Engagement",Non Employee Expenses Supplier,98352026,56.24,Non-staff travel and subsistance
,BEIS,UKRI - AHRC,04/12/2018,Non-staff travel and subsistance,Fund for International Collaboration,Non Employee Expenses Supplier,98352028,1915.16,Non-staff travel and subsistance
,BEIS,UKRI - AHRC,04/12/2018,Non-staff travel and subsistance,Fund for International Collaboration,Non Employee Expenses Supplier,98352029,2533.04,Non-staff travel and subsistance
,BEIS,UKRI - AHRC,04/12/2018,Non-staff travel and subsistance,"Languages,Literature & International Engagement",Non Employee Expenses Supplier,98352030,177.75,Non-staff travel and subsistance
,BEIS,UKRI - AHRC,04/12/2018,Non-staff travel and subsistance,GCRF - Programme Delivery,Non Employee Expenses Supplier,98352031,39.00,Non-staff travel and subsistance
,BEIS,UKRI - AHRC,04/12/2018,Non-staff travel and subsistance,GCRF - Programme Delivery,Non Employee Expenses Supplier,98352032,186.90,Non-staff travel and subsistance
,BEIS,UKRI - AHRC,04/12/2018,Non-staff travel and subsistance,"Languages,Literature & International Engagement",Non Employee Expenses Supplier,98352033,143.28,Non-staff travel and subsistance
,BEIS,UKRI - AHRC,04/12/2018,Non-staff travel and subsistance,T-AP,Non Employee Expenses Supplier,98352034,93.00,Non-staff travel and subsistance
,BEIS,UKRI - AHRC,04/12/2018,Non-staff travel and subsistance,GCRF - Programme Delivery,Non Employee Expenses Supplier,98352035,220.30,Non-staff travel and subsistance
,BEIS,UKRI - AHRC,04/12/2018,Non-staff travel and subsistance,GCRF - Programme Delivery,Non Employee Expenses Supplier,98352036,50.50,Non-staff travel and subsistance
,BEIS,UKRI - AHRC,04/12/2018,Non-staff travel and subsistance,SMT,Non Employee Expenses Supplier,98352037,102.38,Non-staff travel and subsistance
,BEIS,UKRI - AHRC,04/12/2018,Non-staff travel and subsistance,SMT,Non Employee Expenses Supplier,98352038,7.57,Non-staff travel and subsistance
,BEIS,UKRI - AHRC,04/12/2018,Non-staff travel and subsistance,"Languages,Literature & International Engagement",Non Employee Expenses Supplier,98352039,105.30,Non-staff travel and subsistance
,BEIS,UKRI - AHRC,04/12/2018,Non-staff travel and subsistance,"Languages,Literature & International Engagement",Non Employee Expenses Supplier,98352040,109.39,Non-staff travel and subsistance
,BEIS,UKRI - AHRC,04/12/2018,Non-staff travel and subsistance,Newton Programme,Non Employee Expenses Supplier,98352041,1676.62,Non-staff travel and subsistance
,BEIS,UKRI - AHRC,04/12/2018,Non-staff travel and subsistance,SMT,Non Employee Expenses Supplier,98352042,63.10,Non-staff travel and subsistance
,BEIS,UKRI - AHRC,04/12/2018,Non-staff travel and subsistance,SMT,Non Employee Expenses Supplier,98352043,66.00,Non-staff travel and subsistance
,BEIS,UKRI - AHRC,04/12/2018,Non-staff travel and subsistance,SMT,Non Employee Expenses Supplier,98352044,145.00,Non-staff travel and subsistance
,BEIS,UKRI - AHRC,04/12/2018,Non-staff travel and subsistance,SMT,Non Employee Expenses Supplier,98352045,155.90,Non-staff travel and subsistance
,BEIS,UKRI - AHRC,04/12/2018,Non-staff travel and subsistance,SMT,Non Employee Expenses Supplier,98352046,463.46,Non-staff travel and subsistance
,BEIS,UKRI - AHRC,04/12/2018,Non-staff travel and subsistance,SMT,Non Employee Expenses Supplier,98352047,74.25,Non-staff travel and subsistance
,BEIS,UKRI - AHRC,04/12/2018,Non-staff travel and subsistance,SMT,Non Employee Expenses Supplier,98352048,57.40,Non-staff travel and subsistance
,BEIS,UKRI - AHRC,04/12/2018,Non-staff travel and subsistance,SMT,Non Employee Expenses Supplier,98352049,122.60,Non-staff travel and subsistance
,BEIS,UKRI - AHRC,04/12/2018,Non-staff travel and subsistance,SMT,Non Employee Expenses Supplier,98352050,135.48,Non-staff travel and subsistance
,BEIS,UKRI - AHRC,04/12/2018,Non-staff travel and subsistance,SMT,Non Employee Expenses Supplier,98352051,514.09,Non-staff travel and subsistance
,BEIS,UKRI - AHRC,04/12/2018,Non-staff travel and subsistance,SMT,Non Employee Expenses Supplier,98352052,115.24,Non-staff travel and subsistance
,BEIS,UKRI - AHRC,04/12/2018,Non-staff travel and subsistance,SMT,Non Employee Expenses Supplier,98352053,199.43,Non-staff travel and subsistance
,BEIS,UKRI - AHRC,05/12/2018,Non-staff travel and subsistance,SMT,Non Employee Expenses Supplier,98352066,293.02,Non-staff travel and subsistance
,BEIS,UKRI - AHRC,13/12/2018,Non-staff travel and subsistance,"Languages,Literature & International Engagement",Non Employee Expenses Supplier,98366053,293.54,Non-staff travel and subsistance
,BEIS,UKRI - AHRC,13/12/2018,Non-staff travel and subsistance,"AHRC - Strategic Planning, Evidence & Impact",Non Employee Expenses Supplier,98366054,120.00,Non-staff travel and subsistance
,BEIS,UKRI - AHRC,13/12/2018,Non-staff travel and subsistance,Creative Arts & Digital Humanities,Non Employee Expenses Supplier,98366055,171.60,Non-staff travel and subsistance
,BEIS,UKRI - AHRC,13/12/2018,Non-staff travel and subsistance,Creative Arts & Digital Humanities,Non Employee Expenses Supplier,98366056,100.50,Non-staff travel and subsistance
,BEIS,UKRI - AHRC,13/12/2018,Non-staff travel and subsistance,"Histories,Culture & Heritage",Non Employee Expenses Supplier,98366057,133.40,Non-staff travel and subsistance
,BEIS,UKRI - AHRC,13/12/2018,Non-staff travel and subsistance,"Languages,Literature & International Engagement",Non Employee Expenses Supplier,98366058,122.34,Non-staff travel and subsistance
,BEIS,UKRI - AHRC,13/12/2018,Non-staff travel and subsistance,"Histories,Culture & Heritage",Non Employee Expenses Supplier,98366059,101.70,Non-staff travel and subsistance
,BEIS,UKRI - AHRC,13/12/2018,Non-staff travel and subsistance,Fund for International Collaboration,Non Employee Expenses Supplier,98366060,1543.67,Non-staff travel and subsistance
,BEIS,UKRI - AHRC,13/12/2018,Non-staff travel and subsistance,GCRF - Programme Delivery,Non Employee Expenses Supplier,98366061,179.20,Non-staff travel and subsistance
,BEIS,UKRI - AHRC,13/12/2018,Non-staff travel and subsistance,Communications,Non Employee Expenses Supplier,98366062,2000.00,Non-staff travel and subsistance
,BEIS,UKRI - AHRC,13/12/2018,Non-staff travel and subsistance,Communications,Non Employee Expenses Supplier,98366063,2000.00,Non-staff travel and subsistance
,BEIS,UKRI - AHRC,13/12/2018,Non-staff travel and subsistance,Communications,Non Employee Expenses Supplier,98366064,2000.00,Non-staff travel and subsistance
,BEIS,UKRI - AHRC,18/12/2018,Non-staff travel and subsistance,Fund for International Collaboration,Non Employee Expenses Supplier,98369588,855.21,Non-staff travel and subsistance
,BEIS,UKRI - AHRC,18/12/2018,Non-staff travel and subsistance,Fund for International Collaboration,Non Employee Expenses Supplier,98369589,689.15,Non-staff travel and subsistance
,BEIS,UKRI - AHRC,18/12/2018,Non-staff travel and subsistance,Fund for International Collaboration,Non Employee Expenses Supplier,98369590,104.90,Non-staff travel and subsistance
,BEIS,UKRI - AHRC,18/12/2018,Non-staff travel and subsistance,Fund for International Collaboration,Non Employee Expenses Supplier,98369591,630.48,Non-staff travel and subsistance
,BEIS,UKRI - AHRC,18/12/2018,Non-staff travel and subsistance,Fund for International Collaboration,Non Employee Expenses Supplier,98369592,43.98,Non-staff travel and subsistance
,BEIS,UKRI - AHRC,18/12/2018,Non-staff travel and subsistance,Fund for International Collaboration,Non Employee Expenses Supplier,98369593,2517.06,Non-staff travel and subsistance
,BEIS,UKRI - AHRC,18/12/2018,Non-staff travel and subsistance,"AHRC - Strategic Planning, Evidence & Impact",Non Employee Expenses Supplier,98369594,105.20,Non-staff travel and subsistance
,BEIS,UKRI - AHRC,18/12/2018,Non-staff travel and subsistance,Fund for International Collaboration,Non Employee Expenses Supplier,98369595,2006.61,Non-staff travel and subsistance
,BEIS,UKRI - AHRC,18/12/2018,Non-staff travel and subsistance,Fund for International Collaboration,Non Employee Expenses Supplier,98369596,2256.10,Non-staff travel and subsistance
,BEIS,UKRI - AHRC,18/12/2018,Non-staff travel and subsistance,"Histories,Culture & Heritage",Non Employee Expenses Supplier,98369597,162.40,Non-staff travel and subsistance
,BEIS,UKRI - AHRC,18/12/2018,Non-staff travel and subsistance,GCRF - Programme Delivery,Non Employee Expenses Supplier,98369598,229.80,Non-staff travel and subsistance
,BEIS,UKRI - AHRC,18/12/2018,Non-staff travel and subsistance,GCRF - Programme Delivery,Non Employee Expenses Supplier,98369599,103.20,Non-staff travel and subsistance
,BEIS,UKRI - AHRC,18/12/2018,Non-staff travel and subsistance,Creative Arts & Digital Humanities,Non Employee Expenses Supplier,98369600,171.60,Non-staff travel and subsistance
,BEIS,UKRI - AHRC,18/12/2018,Non-staff travel and subsistance,Creative Arts & Digital Humanities,Non Employee Expenses Supplier,98369601,198.60,Non-staff travel and subsistance
,BEIS,UKRI - AHRC,18/12/2018,Non-staff travel and subsistance,GCRF - Programme Delivery,Non Employee Expenses Supplier,98369602,180.00,Non-staff travel and subsistance
,BEIS,UKRI - AHRC,18/12/2018,Non-staff travel and subsistance,"Histories,Culture & Heritage",Non Employee Expenses Supplier,98369603,97.84,Non-staff travel and subsistance
,BEIS,UKRI - AHRC,18/12/2018,Non-staff travel and subsistance,"Histories,Culture & Heritage",Non Employee Expenses Supplier,98369604,123.50,Non-staff travel and subsistance
,BEIS,UKRI - AHRC,18/12/2018,Non-staff travel and subsistance,Creative Arts & Digital Humanities,Non Employee Expenses Supplier,98369605,56.15,Non-staff travel and subsistance
,BEIS,UKRI - AHRC,18/12/2018,Non-staff travel and subsistance,"Histories,Culture & Heritage",Non Employee Expenses Supplier,98369606,37.80,Non-staff travel and subsistance
,BEIS,UKRI - AHRC,18/12/2018,Non-staff travel and subsistance,Creative Arts & Digital Humanities,Non Employee Expenses Supplier,98369607,233.40,Non-staff travel and subsistance
,BEIS,UKRI - AHRC,18/12/2018,Non-staff travel and subsistance,GCRF - Programme Delivery,Non Employee Expenses Supplier,98369608,236.33,Non-staff travel and subsistance
,BEIS,UKRI - AHRC,18/12/2018,Non-staff travel and subsistance,GCRF - Programme Delivery,Non Employee Expenses Supplier,98369609,155.55,Non-staff travel and subsistance
,BEIS,UKRI - AHRC,18/12/2018,Non-staff travel and subsistance,GCRF - Programme Delivery,Non Employee Expenses Supplier,98369610,160.76,Non-staff travel and subsistance
,BEIS,UKRI - AHRC,28/12/2018,Non-staff travel and subsistance,GCRF - Programme Delivery,Non Employee Expenses Supplier,98373447,187.60,Non-staff travel and subsistance
,BEIS,UKRI - AHRC,28/12/2018,Non-staff travel and subsistance,"Histories,Culture & Heritage",Non Employee Expenses Supplier,98373448,22.70,Non-staff travel and subsistance
,BEIS,UKRI - AHRC,28/12/2018,Non-staff travel and subsistance,"AHRC - Strategic Planning, Evidence & Impact",Non Employee Expenses Supplier,98373449,81.10,Non-staff travel and subsistance
,BEIS,UKRI - AHRC,28/12/2018,Non-staff travel and subsistance,"Histories,Culture & Heritage",Non Employee Expenses Supplier,98373450,161.94,Non-staff travel and subsistance
,BEIS,UKRI - AHRC,28/12/2018,Non-staff travel and subsistance,SMT,Non Employee Expenses Supplier,98373451,74.40,Non-staff travel and subsistance
,BEIS,UKRI - AHRC,28/12/2018,Non-staff travel and subsistance,SMT,Non Employee Expenses Supplier,98373452,33.67,Non-staff travel and subsistance
,BEIS,UKRI - AHRC,28/12/2018,Non-staff travel and subsistance,Fund for International Collaboration,Non Employee Expenses Supplier,98373453,56.70,Non-staff travel and subsistance
,BEIS,UKRI - AHRC,28/12/2018,Non-staff travel and subsistance,"AHRC - Strategic Planning, Evidence & Impact",Non Employee Expenses Supplier,98373454,111.25,Non-staff travel and subsistance
,BEIS,UKRI - AHRC,28/12/2018,Non-staff travel and subsistance,Fund for International Collaboration,Non Employee Expenses Supplier,98373455,2295.33,Non-staff travel and subsistance
,BEIS,UKRI - AHRC,28/12/2018,Non-staff travel and subsistance,Fund for International Collaboration,Non Employee Expenses Supplier,98373456,868.10,Non-staff travel and subsistance
,BEIS,UKRI - AHRC,28/12/2018,Non-staff travel and subsistance,Fund for International Collaboration,Non Employee Expenses Supplier,98373457,65.21,Non-staff travel and subsistance
,BEIS,UKRI - AHRC,28/12/2018,Non-staff travel and subsistance,Finance,Non Employee Expenses Supplier,98373458,29.52,Non-staff travel and subsistance
,BEIS,UKRI - AHRC,28/12/2018,Non-staff travel and subsistance,Fund for International Collaboration,Non Employee Expenses Supplier,98373459,1286.33,Non-staff travel and subsistance
,BEIS,UKRI - AHRC,28/12/2018,Non-staff travel and subsistance,"Histories,Culture & Heritage",Non Employee Expenses Supplier,98373460,70.90,Non-staff travel and subsistance
,BEIS,UKRI - AHRC,28/12/2018,Non-staff travel and subsistance,"Languages,Literature & International Engagement",Non Employee Expenses Supplier,98373461,153.40,Non-staff travel and subsistance
,BEIS,UKRI - AHRC,28/12/2018,Non-staff travel and subsistance,Fund for International Collaboration,Non Employee Expenses Supplier,98373462,2131.17,Non-staff travel and subsistance
,BEIS,UKRI - AHRC,28/12/2018,Non-staff travel and subsistance,Newton Programme Delivery,Non Employee Expenses Supplier,98373463,107.90,Non-staff travel and subsistance
,BEIS,UKRI - AHRC,28/12/2018,Non-staff travel and subsistance,"Histories,Culture & Heritage",Non Employee Expenses Supplier,98373464,137.88,Non-staff travel and subsistance
,BEIS,UKRI - AHRC,28/12/2018,Non-staff travel and subsistance,"Languages,Literature & International Engagement",Non Employee Expenses Supplier,98373465,170.25,Non-staff travel and subsistance
,BEIS,UKRI - AHRC,28/12/2018,Non-staff travel and subsistance,Communications,Non Employee Expenses Supplier,98373466,2000.00,Non-staff travel and subsistance
,BEIS,UKRI - AHRC,10/12/2018,Research Grant Expenditure,Networks & Workshops,Northumbria University,98347628,4221.12,Research Grant Expenditure
,BEIS,UKRI - AHRC,10/12/2018,Research Grant Expenditure,Research Grants,Northumbria University,98347668,21499.96,Research Grant Expenditure
,BEIS,UKRI - AHRC,10/12/2018,Research Grant Expenditure,Research Grants,Northumbria University,98347668,11480.30,Research Grant Expenditure
,BEIS,UKRI - AHRC,10/12/2018,Research Grant Expenditure,Networks & Workshops,Northumbria University,98347692,5890.95,Research Grant Expenditure
,BEIS,UKRI - AHRC,10/12/2018,Research Grant Expenditure,Research Grants,Northumbria University,98347730,16586.17,Research Grant Expenditure
,BEIS,UKRI - AHRC,10/12/2018,Fellowships,Research Fellowships,Northumbria University,98347849,17424.79,Fellowships
,BEIS,UKRI - AHRC,10/12/2018,Fellowships,Research Fellowships,Northumbria University,98347863,18647.83,Fellowships
,BEIS,UKRI - AHRC,10/12/2018,Research Grant Expenditure,Newton Programme,Nottingham Trent University,98347709,19604.52,Research Grant Expenditure
,BEIS,UKRI - AHRC,10/12/2018,Fellowships,Research Fellowships,Nottingham Trent University,98347864,23426.31,Fellowships
,BEIS,UKRI - AHRC,10/12/2018,Fellowships,Research Fellowships,Nottingham Trent University,98347871,27459.54,Fellowships
,BEIS,UKRI - AHRC,10/12/2018,Catering Contracts,HR,Officedrop Ltd,98352704,192.00,Catering Contracts
,BEIS,UKRI - AHRC,10/12/2018,Catering Contracts,HR,Officedrop Ltd,98352725,144.00,Catering Contracts
,BEIS,UKRI - AHRC,12/12/2018,Recruitment Costs,HR,Onefix Recruitment Ltd,98364753,261.00,Recruitment Costs
,BEIS,UKRI - AHRC,20/12/2018,Recruitment Costs,PSU Project Office,Onefix Recruitment Ltd,98371133,261.00,Recruitment Costs
,BEIS,UKRI - AHRC,21/12/2018,Recruitment Costs,HR,Onefix Recruitment Ltd,98365384,261.00,Recruitment Costs
,BEIS,UKRI - AHRC,10/12/2018,Research Grant Expenditure,Research Grants,Oxford Brookes University,98347615,61274.29,Research Grant Expenditure
,BEIS,UKRI - AHRC,10/12/2018,Research Grant Expenditure,Networks & Workshops,Oxford Brookes University,98347739,3233.06,Research Grant Expenditure
,BEIS,UKRI - AHRC,13/12/2018,Union Deductions,Balance Sheet,PCS Union,98361867,180.17,Union Deductions
,BEIS,UKRI - AHRC,12/12/2018,Purchase of non capital equipment,IS,Premier Farnell UK Ltd T/A Farnell Onecall,98364908,13.48,Purchase of non capital equipment
,BEIS,UKRI - AHRC,17/12/2018,Printing & Stationery,PSU Project Office,Premier Farnell UK Ltd T/A Farnell Onecall,98367758,5.65,Printing & Stationery
,BEIS,UKRI - AHRC,10/12/2018,Research Grant Expenditure,Research Grants,Queen Mary University of London,98347544,16937.30,Research Grant Expenditure
,BEIS,UKRI - AHRC,10/12/2018,Research Grant Expenditure,Networks & Workshops,Queen Mary University of London,98347629,6048.55,Research Grant Expenditure
,BEIS,UKRI - AHRC,10/12/2018,Research Grant Expenditure,Creative Economy,Queen Mary University of London,98347631,20143.56,Research Grant Expenditure
,BEIS,UKRI - AHRC,10/12/2018,Research Grant Expenditure,Global Challenges Research Fund (GCRF),Queen Mary University of London,98347750,-0.03,Research Grant Expenditure
,BEIS,UKRI - AHRC,10/12/2018,Research Grant Expenditure,Research Grants,Queen's University Belfast GRANT,98347410,40387.32,Research Grant Expenditure
,BEIS,UKRI - AHRC,10/12/2018,Research Grant Expenditure,Research Grants,Queen's University Belfast GRANT,98347455,59471.97,Research Grant Expenditure
,BEIS,UKRI - AHRC,10/12/2018,Research Grant Expenditure,Global Uncertainties Programme,Queen's University Belfast GRANT,98347476,40618.59,Research Grant Expenditure
,BEIS,UKRI - AHRC,10/12/2018,Research Grant Expenditure,Care for the Future,Queen's University Belfast GRANT,98347484,27886.63,Research Grant Expenditure
,BEIS,UKRI - AHRC,10/12/2018,Research Grant Expenditure,Connected Communities Programme,Queen's University Belfast GRANT,98347484,27886.54,Research Grant Expenditure
,BEIS,UKRI - AHRC,10/12/2018,Research Grant Expenditure,Research Grants,Queen's University Belfast GRANT,98347488,50608.22,Research Grant Expenditure
,BEIS,UKRI - AHRC,10/12/2018,Research Grant Expenditure,Research Grants,Queen's University Belfast GRANT,98347511,54598.69,Research Grant Expenditure
,BEIS,UKRI - AHRC,10/12/2018,Research Grant Expenditure,Open World Research Initiative (OWRI).,Queen's University Belfast GRANT,98347524,93477.09,Research Grant Expenditure
,BEIS,UKRI - AHRC,10/12/2018,Research Grant Expenditure,Research Grants,Queen's University Belfast GRANT,98347530,46380.73,Research Grant Expenditure
,BEIS,UKRI - AHRC,10/12/2018,Research Grant Expenditure,Research Grants,Queen's University Belfast GRANT,98347665,20365.47,Research Grant Expenditure
,BEIS,UKRI - AHRC,10/12/2018,Research Grant Expenditure,Research Grants,Queen's University Belfast GRANT,98347665,20365.47,Research Grant Expenditure
,BEIS,UKRI - AHRC,10/12/2018,Research Grant Expenditure,Networks & Workshops,Queen's University Belfast GRANT,98347742,7041.47,Research Grant Expenditure
,BEIS,UKRI - AHRC,10/12/2018,Research Grant Expenditure,Global Challenges Research Fund (GCRF),Queen's University Belfast GRANT,98347745,-5318.98,Research Grant Expenditure
,BEIS,UKRI - AHRC,07/12/2018,Advertising & Promotion,Communications,Robin Zahler T/A Robin Zahler Design and Photography,98357398,187.50,Advertising & Promotion
,BEIS,UKRI - AHRC,10/12/2018,Research Grant Expenditure,Research Grants,Roehampton University (University of Roehampton),98347716,26302.85,Research Grant Expenditure
,BEIS,UKRI - AHRC,10/12/2018,Research Grant Expenditure,Research Grants,Royal College of Music,98347527,55791.69,Research Grant Expenditure
,BEIS,UKRI - AHRC,10/12/2018,Research Grant Expenditure,Research Grants,Royal College of Music,98347714,45933.15,Research Grant Expenditure
,BEIS,UKRI - AHRC,10/12/2018,Research Grant Expenditure,Research Grants,"Royal Holloway, University of London",98347447,19992.44,Research Grant Expenditure
,BEIS,UKRI - AHRC,10/12/2018,Research Grant Expenditure,Research Grants,"Royal Holloway, University of London",98347462,73404.96,Research Grant Expenditure
,BEIS,UKRI - AHRC,10/12/2018,Capital Grants & Equipment to HEIs,Global Challenges Research Fund (GCRF),"Royal Holloway, University of London",98347490,1600.00,Capital Grants & Equipment to HEIs
,BEIS,UKRI - AHRC,10/12/2018,Research Grant Expenditure,Global Challenges Research Fund (GCRF),"Royal Holloway, University of London",98347490,41628.80,Research Grant Expenditure
,BEIS,UKRI - AHRC,10/12/2018,Research Grant Expenditure,Creative Economy,"Royal Holloway, University of London",98347534,344097.19,Research Grant Expenditure
,BEIS,UKRI - AHRC,10/12/2018,Research Grant Expenditure,Research Grants,"Royal Holloway, University of London",98347649,32782.77,Research Grant Expenditure
,BEIS,UKRI - AHRC,10/12/2018,Research Grant Expenditure,Research Grants,"Royal Holloway, University of London",98347649,32782.77,Research Grant Expenditure
,BEIS,UKRI - AHRC,10/12/2018,Research Grant Expenditure,RCUK Newton Programme,"Royal Holloway, University of London",98347674,29801.43,Research Grant Expenditure
,BEIS,UKRI - AHRC,10/12/2018,Research Grant Expenditure,RCUK Newton Programme,"Royal Holloway, University of London",98347674,29801.43,Research Grant Expenditure
,BEIS,UKRI - AHRC,10/12/2018,Research Grant Expenditure,Industrial Strategy Challenge Fund (ISCF) - Creative Clusters,"Royal Holloway, University of London",98347708,304684.74,Research Grant Expenditure
,BEIS,UKRI - AHRC,10/12/2018,Fellowships,Research Fellowships,"Royal Holloway, University of London",98347848,27391.76,Fellowships
,BEIS,UKRI - AHRC,13/12/2018,Purchase of non capital equipment,IS,RS Components,98365378,7.68,Purchase of non capital equipment
,BEIS,UKRI - AHRC,07/12/2018,Advertising & Promotion,Communications,Rumba Graphic Design Ltd,98354429,3690.00,Advertising & Promotion
,BEIS,UKRI - AHRC,10/12/2018,Research Grant Expenditure,Follow-on Fund,Science Museum Group,98347696,80574.08,Research Grant Expenditure
,BEIS,UKRI - AHRC,10/12/2018,Research Grant Expenditure,Networks & Workshops,Sheffield Hallam University,98347671,5110.66,Research Grant Expenditure
,BEIS,UKRI - AHRC,10/12/2018,Research Grant Expenditure,Research Grants,"SOAS, University of London",98347463,29970.10,Research Grant Expenditure
,BEIS,UKRI - AHRC,10/12/2018,Research Grant Expenditure,Research Grants,"SOAS, University of London",98347492,48033.85,Research Grant Expenditure
,BEIS,UKRI - AHRC,10/12/2018,Research Grant Expenditure,Research Grants,"SOAS, University of London",98347499,69234.47,Research Grant Expenditure
,BEIS,UKRI - AHRC,10/12/2018,Research Grant Expenditure,Research Grants,"SOAS, University of London",98347554,65737.44,Research Grant Expenditure
,BEIS,UKRI - AHRC,10/12/2018,Research Grant Expenditure,Global Challenges Research Fund (GCRF),"SOAS, University of London",98347591,153580.33,Research Grant Expenditure
,BEIS,UKRI - AHRC,10/12/2018,Fellowships,Research Fellowships,"SOAS, University of London",98347857,23422.19,Fellowships
,BEIS,UKRI - AHRC,05/12/2018,Advertising & Promotion,Communications,Sophie Toumazis T/A TPR Media Consultants,98354527,3600.00,Advertising & Promotion
,BEIS,UKRI - AHRC,14/12/2018,Health & Safety (inc. Medicals & Opticians),Corporate Services,Swindon Occupational Medical Services Ltd,98364544,2400.00,Health & Safety (inc. Medicals & Opticians)
,BEIS,UKRI - AHRC,21/12/2018,Voluntary Deductions,Balance Sheet,Swindon Office Sports and Social Club,98361866,98.00,Voluntary Deductions
,BEIS,UKRI - AHRC,10/12/2018,Fellowships,Research Fellowships,Tate Galleries,98346715,23607.77,Fellowships
,BEIS,UKRI - AHRC,10/12/2018,Research Grant Expenditure,Audience of the Future (ISCF 2),The National Film & Television School,98347699,601281.95,Research Grant Expenditure
,BEIS,UKRI - AHRC,19/12/2018,Hospitality,SMT,The National Film & Television School,98370074,258.95,Hospitality
,BEIS,UKRI - AHRC,10/12/2018,Fellowships,Research Fellowships,The Open University,98346704,7129.54,Fellowships
,BEIS,UKRI - AHRC,10/12/2018,Research Grant Expenditure,Research Grants,The Open University,98347412,54044.39,Research Grant Expenditure
,BEIS,UKRI - AHRC,10/12/2018,Research Grant Expenditure,Research Grants,The Open University,98347448,66261.97,Research Grant Expenditure
,BEIS,UKRI - AHRC,10/12/2018,Research Grant Expenditure,Research Grants,The Open University,98347468,49390.49,Research Grant Expenditure
,BEIS,UKRI - AHRC,10/12/2018,Research Grant Expenditure,Research Grants,The Open University,98347575,36992.76,Research Grant Expenditure
,BEIS,UKRI - AHRC,10/12/2018,Research Grant Expenditure,Networks & Workshops,The Open University,98347634,5198.19,Research Grant Expenditure
,BEIS,UKRI - AHRC,10/12/2018,Research Grant Expenditure,JPI Cultural Heritage,The Open University,98347652,13150.67,Research Grant Expenditure
,BEIS,UKRI - AHRC,10/12/2018,Research Grant Expenditure,Research Grants,The Royal Central School of Speech and Drama,98347664,47574.45,Research Grant Expenditure
,BEIS,UKRI - AHRC,10/12/2018,Research Grant Expenditure,Research Grants,The Royal Central School of Speech and Drama,98347664,47574.45,Research Grant Expenditure
,BEIS,UKRI - AHRC,10/12/2018,Research Grant Expenditure,Research Grants,The University of Manchester,98347416,45521.16,Research Grant Expenditure
,BEIS,UKRI - AHRC,10/12/2018,Research Grant Expenditure,Research Grants,The University of Manchester,98347425,55274.95,Research Grant Expenditure
,BEIS,UKRI - AHRC,10/12/2018,Research Grant Expenditure,Research Grants,The University of Manchester,98347442,67207.81,Research Grant Expenditure
,BEIS,UKRI - AHRC,10/12/2018,Research Grant Expenditure,Open World Research Initiative (OWRI).,The University of Manchester,98347451,195501.31,Research Grant Expenditure
,BEIS,UKRI - AHRC,10/12/2018,Research Grant Expenditure,Research Grants,The University of Manchester,98347469,28162.85,Research Grant Expenditure
,BEIS,UKRI - AHRC,10/12/2018,Research Grant Expenditure,Research Grants,The University of Manchester,98347469,28390.96,Research Grant Expenditure
,BEIS,UKRI - AHRC,10/12/2018,Research Grant Expenditure,Research Grants,The University of Manchester,98347469,28390.96,Research Grant Expenditure
,BEIS,UKRI - AHRC,10/12/2018,Research Grant Expenditure,Research Grants,The University of Manchester,98347469,28390.96,Research Grant Expenditure
,BEIS,UKRI - AHRC,10/12/2018,Research Grant Expenditure,Research Grants,The University of Manchester,98347469,28162.85,Research Grant Expenditure
,BEIS,UKRI - AHRC,10/12/2018,Research Grant Expenditure,Research Grants,The University of Manchester,98347469,28390.96,Research Grant Expenditure
,BEIS,UKRI - AHRC,10/12/2018,Research Grant Expenditure,Research Grants,The University of Manchester,98347506,59968.35,Research Grant Expenditure
,BEIS,UKRI - AHRC,10/12/2018,Research Grant Expenditure,Research Grants,The University of Manchester,98347556,30832.62,Research Grant Expenditure
,BEIS,UKRI - AHRC,10/12/2018,Research Grant Expenditure,Global Challenges Research Fund (GCRF),The University of Manchester,98347594,5000.00,Research Grant Expenditure
,BEIS,UKRI - AHRC,10/12/2018,Research Grant Expenditure,Research Grants,The University of Manchester,98347648,56814.89,Research Grant Expenditure
,BEIS,UKRI - AHRC,10/12/2018,Research Grant Expenditure,Research Grants,The University of Manchester,98347651,57920.36,Research Grant Expenditure
,BEIS,UKRI - AHRC,10/12/2018,Research Grant Expenditure,Research Grants,The University of Manchester,98347693,67324.13,Research Grant Expenditure
,BEIS,UKRI - AHRC,10/12/2018,Research Grant Expenditure,Connected Communities Programme,The University of Manchester,98347711,47166.47,Research Grant Expenditure
,BEIS,UKRI - AHRC,10/12/2018,Fellowships,Research Fellowships,The University of Manchester,98347861,21784.67,Fellowships
,BEIS,UKRI - AHRC,18/12/2018,Computing Consumables,Corporate Services,UK Shared Business Services Ltd,98369662,8504.57,Computing Consumables
,BEIS,UKRI - AHRC,10/12/2018,Research Grant Expenditure,Networks & Workshops,University College Chester,98347585,3095.52,Research Grant Expenditure
,BEIS,UKRI - AHRC,10/12/2018,Research Grant Expenditure,Care for the Future,University College London,98347411,101592.85,Research Grant Expenditure
,BEIS,UKRI - AHRC,10/12/2018,Research Grant Expenditure,Research Grants,University College London,98347423,30313.57,Research Grant Expenditure
,BEIS,UKRI - AHRC,10/12/2018,Research Grant Expenditure,Global Challenges Research Fund (GCRF),University College London,98347477,40977.88,Research Grant Expenditure
,BEIS,UKRI - AHRC,10/12/2018,Research Grant Expenditure,Research Grants,University College London,98347481,41678.63,Research Grant Expenditure
,BEIS,UKRI - AHRC,10/12/2018,Research Grant Expenditure,Science and Heritage Programme,University College London,98347504,76720.08,Research Grant Expenditure
,BEIS,UKRI - AHRC,10/12/2018,Research Grant Expenditure,Research Grants,University College London,98347551,32720.48,Research Grant Expenditure
,BEIS,UKRI - AHRC,10/12/2018,Research Grant Expenditure,Anti-microbial Resistance (AMR),University College London,98347565,33859.45,Research Grant Expenditure
,BEIS,UKRI - AHRC,10/12/2018,Research Grant Expenditure,Anti-microbial Resistance (AMR),University College London,98347569,36798.06,Research Grant Expenditure
,BEIS,UKRI - AHRC,10/12/2018,Research Grant Expenditure,Global Challenges Research Fund (GCRF),University College London,98347589,115336.62,Research Grant Expenditure
,BEIS,UKRI - AHRC,10/12/2018,Research Grant Expenditure,Research Grants,University College London,98347606,62196.03,Research Grant Expenditure
,BEIS,UKRI - AHRC,10/12/2018,Research Grant Expenditure,Research Grants,University College London,98347608,33825.56,Research Grant Expenditure
,BEIS,UKRI - AHRC,10/12/2018,Research Grant Expenditure,Research Grants,University College London,98347611,29782.92,Research Grant Expenditure
,BEIS,UKRI - AHRC,10/12/2018,Research Grant Expenditure,JPI Cultural Heritage,University College London,98347644,8064.52,Research Grant Expenditure
,BEIS,UKRI - AHRC,10/12/2018,Research Grant Expenditure,JPI Cultural Heritage,University College London,98347644,8064.52,Research Grant Expenditure
,BEIS,UKRI - AHRC,10/12/2018,Research Grant Expenditure,Networks & Workshops,University College London,98347733,472.97,Research Grant Expenditure
,BEIS,UKRI - AHRC,10/12/2018,Fellowships,Research Fellowships,University College London,98347840,22720.46,Fellowships
,BEIS,UKRI - AHRC,10/12/2018,Research Grant Expenditure,Research Grants,University of Aberdeen,98347715,43246.06,Research Grant Expenditure
,BEIS,UKRI - AHRC,10/12/2018,Research Grant Expenditure,Follow-on Fund,University of Aberdeen,98347760,-0.01,Research Grant Expenditure
,BEIS,UKRI - AHRC,10/12/2018,Fellowships,Research Fellowships,University of Aberdeen,98347851,17986.97,Fellowships
,BEIS,UKRI - AHRC,10/12/2018,Research Grant Expenditure,Industrial Strategy Challenge Fund (ISCF) - Creative Clusters,University of Abertay Dundee,98347704,284280.90,Research Grant Expenditure
,BEIS,UKRI - AHRC,10/12/2018,Research Grant Expenditure,Global Uncertainties Programme,University of Bath,98347417,10102.89,Research Grant Expenditure
,BEIS,UKRI - AHRC,10/12/2018,Research Grant Expenditure,Global Challenges Research Fund (GCRF),University of Bedfordshire,98347617,4999.00,Research Grant Expenditure
,BEIS,UKRI - AHRC,10/12/2018,Research Grant Expenditure,Research Grants,University of Birmingham GRANT,98347458,52210.90,Research Grant Expenditure
,BEIS,UKRI - AHRC,10/12/2018,Research Grant Expenditure,Care for the Future,University of Birmingham GRANT,98347486,27596.07,Research Grant Expenditure
,BEIS,UKRI - AHRC,10/12/2018,Research Grant Expenditure,Connected Communities Programme,University of Birmingham GRANT,98347486,27595.97,Research Grant Expenditure
,BEIS,UKRI - AHRC,10/12/2018,Research Grant Expenditure,Research Grants,University of Birmingham GRANT,98347491,31143.65,Research Grant Expenditure
,BEIS,UKRI - AHRC,10/12/2018,Research Grant Expenditure,Research Grants,University of Birmingham GRANT,98347497,40170.11,Research Grant Expenditure
,BEIS,UKRI - AHRC,10/12/2018,Research Grant Expenditure,Research Grants,University of Birmingham GRANT,98347541,24026.79,Research Grant Expenditure
,BEIS,UKRI - AHRC,10/12/2018,Research Grant Expenditure,Networks & Workshops,University of Birmingham GRANT,98347546,3500.39,Research Grant Expenditure
,BEIS,UKRI - AHRC,10/12/2018,Research Grant Expenditure,Research Grants,University of Birmingham GRANT,98347583,39908.31,Research Grant Expenditure
,BEIS,UKRI - AHRC,10/12/2018,Research Grant Expenditure,Global Challenges Research Fund (GCRF),University of Birmingham GRANT,98347595,7712.50,Research Grant Expenditure
,BEIS,UKRI - AHRC,10/12/2018,Research Grant Expenditure,Creative Economy,University of Birmingham GRANT,98347630,19670.77,Research Grant Expenditure
,BEIS,UKRI - AHRC,10/12/2018,Research Grant Expenditure,Networks & Workshops,University of Birmingham GRANT,98347659,3831.74,Research Grant Expenditure
,BEIS,UKRI - AHRC,10/12/2018,Research Grant Expenditure,Networks & Workshops,University of Birmingham GRANT,98347732,4243.83,Research Grant Expenditure
,BEIS,UKRI - AHRC,10/12/2018,Research Grant Expenditure,Global Challenges Research Fund (GCRF),University of Birmingham GRANT,98347747,13262.49,Research Grant Expenditure
,BEIS,UKRI - AHRC,10/12/2018,Fellowships,Research Fellowships,University of Birmingham GRANT,98347853,22691.28,Fellowships
,BEIS,UKRI - AHRC,10/12/2018,Fellowships,Research Fellowships,University of Birmingham GRANT,98347878,25746.88,Fellowships
,BEIS,UKRI - AHRC,10/12/2018,Fellowships,Research Fellowships,University of Birmingham GRANT,98347883,43081.36,Fellowships
,BEIS,UKRI - AHRC,10/12/2018,Research Grant Expenditure,Research Grants,University of Bradford,98347560,10157.00,Research Grant Expenditure
,BEIS,UKRI - AHRC,10/12/2018,Research Grant Expenditure,Research Grants,University of Bradford,98347720,18730.99,Research Grant Expenditure
,BEIS,UKRI - AHRC,10/12/2018,Research Grant Expenditure,Research Grants,University of Bristol GRANT,98347464,64426.18,Research Grant Expenditure
,BEIS,UKRI - AHRC,10/12/2018,Research Grant Expenditure,RCUK Newton Programme,University of Bristol GRANT,98347672,40297.88,Research Grant Expenditure
,BEIS,UKRI - AHRC,10/12/2018,Research Grant Expenditure,Networks & Workshops,University of Bristol GRANT,98347729,4309.98,Research Grant Expenditure
,BEIS,UKRI - AHRC,10/12/2018,Research Grant Expenditure,Networks & Workshops,University of Bristol GRANT,98347736,-6087.48,Research Grant Expenditure
,BEIS,UKRI - AHRC,10/12/2018,Research Grant Expenditure,Follow-on Fund,University of Bristol GRANT,98347740,20028.52,Research Grant Expenditure
,BEIS,UKRI - AHRC,10/12/2018,Research Grant Expenditure,Global Challenges Research Fund (GCRF),University of Bristol GRANT,98347743,-23264.20,Research Grant Expenditure
,BEIS,UKRI - AHRC,10/12/2018,Research Grant Expenditure,Global Challenges Research Fund (GCRF),University of Bristol GRANT,98347746,-2496.90,Research Grant Expenditure
,BEIS,UKRI - AHRC,10/12/2018,Research Grant Expenditure,Networks & Workshops,University of Bristol GRANT,98347752,5310.01,Research Grant Expenditure
,BEIS,UKRI - AHRC,10/12/2018,Research Grant Expenditure,Networks & Workshops,University of Bristol GRANT,98347768,-4071.55,Research Grant Expenditure
,BEIS,UKRI - AHRC,10/12/2018,Research Grant Expenditure,Networks & Workshops,University of Bristol GRANT,98347779,-4476.97,Research Grant Expenditure
,BEIS,UKRI - AHRC,10/12/2018,Fellowships,Research Fellowships,University of Bristol GRANT,98347837,33567.98,Fellowships
,BEIS,UKRI - AHRC,10/12/2018,Fellowships,Research Fellowships,University of Bristol GRANT,98347860,21202.34,Fellowships
,BEIS,UKRI - AHRC,10/12/2018,Research Grant Expenditure,Research Grants,University of Cambridge,98347413,51903.85,Research Grant Expenditure
,BEIS,UKRI - AHRC,10/12/2018,Research Grant Expenditure,Research Grants,University of Cambridge,98347433,56013.69,Research Grant Expenditure
,BEIS,UKRI - AHRC,10/12/2018,Research Grant Expenditure,Open World Research Initiative (OWRI).,University of Cambridge,98347453,210414.11,Research Grant Expenditure
,BEIS,UKRI - AHRC,10/12/2018,Research Grant Expenditure,Research Grants,University of Cambridge,98347478,29180.34,Research Grant Expenditure
,BEIS,UKRI - AHRC,10/12/2018,Research Grant Expenditure,Global Challenges Research Fund (GCRF),University of Cambridge,98347489,4800.00,Research Grant Expenditure
,BEIS,UKRI - AHRC,10/12/2018,Research Grant Expenditure,Research Grants,University of Cambridge,98347500,61576.11,Research Grant Expenditure
,BEIS,UKRI - AHRC,10/12/2018,Research Grant Expenditure,Research Grants,University of Cambridge,98347510,54719.30,Research Grant Expenditure
,BEIS,UKRI - AHRC,10/12/2018,Research Grant Expenditure,Anti-microbial Resistance (AMR),University of Cambridge,98347567,26538.32,Research Grant Expenditure
,BEIS,UKRI - AHRC,10/12/2018,Research Grant Expenditure,Follow-on Fund,University of Cambridge,98347762,5522.62,Research Grant Expenditure
,BEIS,UKRI - AHRC,10/12/2018,Research Grant Expenditure,Research Grants,University of Central Lancashire,98347418,13649.99,Research Grant Expenditure
,BEIS,UKRI - AHRC,10/12/2018,Research Grant Expenditure,Research Grants,University of Dundee,98347625,24034.58,Research Grant Expenditure
,BEIS,UKRI - AHRC,10/12/2018,Research Grant Expenditure,Research Grants,University of Durham,98347426,49611.02,Research Grant Expenditure
,BEIS,UKRI - AHRC,10/12/2018,Research Grant Expenditure,Research Grants,University of Durham,98347449,16350.33,Research Grant Expenditure
,BEIS,UKRI - AHRC,10/12/2018,Research Grant Expenditure,Research Grants,University of Durham,98347457,58971.05,Research Grant Expenditure
,BEIS,UKRI - AHRC,10/12/2018,Research Grant Expenditure,Research Grants,University of Durham,98347498,58788.57,Research Grant Expenditure
,BEIS,UKRI - AHRC,10/12/2018,Research Grant Expenditure,Research Grants,University of Durham,98347603,34522.40,Research Grant Expenditure
,BEIS,UKRI - AHRC,10/12/2018,Research Grant Expenditure,Research Grants,University of Durham,98347609,63718.08,Research Grant Expenditure
,BEIS,UKRI - AHRC,10/12/2018,Research Grant Expenditure,Networks & Workshops,University of Durham,98347656,8850.61,Research Grant Expenditure
,BEIS,UKRI - AHRC,10/12/2018,Research Grant Expenditure,JPI Cultural Heritage,University of Durham,98347727,9263.55,Research Grant Expenditure
,BEIS,UKRI - AHRC,10/12/2018,Research Grant Expenditure,Networks & Workshops,University of Durham,98347751,2023.57,Research Grant Expenditure
,BEIS,UKRI - AHRC,10/12/2018,Fellowships,Research Fellowships,University of Durham,98347858,24623.57,Fellowships
,BEIS,UKRI - AHRC,10/12/2018,Research Grant Expenditure,Research Grants,University of East Anglia,98347480,46409.57,Research Grant Expenditure
,BEIS,UKRI - AHRC,10/12/2018,Research Grant Expenditure,Research Grants,University of East Anglia,98347502,26920.46,Research Grant Expenditure
,BEIS,UKRI - AHRC,10/12/2018,Research Grant Expenditure,Research Grants,University of East Anglia,98347610,32579.89,Research Grant Expenditure
,BEIS,UKRI - AHRC,10/12/2018,Research Grant Expenditure,Research Grants,University of East Anglia,98347684,22967.45,Research Grant Expenditure
,BEIS,UKRI - AHRC,10/12/2018,Fellowships,Research Fellowships,University of East Anglia,98347872,23309.50,Fellowships
,BEIS,UKRI - AHRC,10/12/2018,Fellowships,Research Fellowships,University of East Anglia,98347875,29576.37,Fellowships
,BEIS,UKRI - AHRC,10/12/2018,Fellowships,Research Fellowships,University of Edinburgh,98346709,3678.70,Fellowships
,BEIS,UKRI - AHRC,10/12/2018,Research Grant Expenditure,Research Grants,University of Edinburgh,98347559,8677.63,Research Grant Expenditure
,BEIS,UKRI - AHRC,10/12/2018,Research Grant Expenditure,Industrial Strategy Challenge Fund (ISCF) - Creative Clusters,University of Edinburgh,98347700,304798.82,Research Grant Expenditure
,BEIS,UKRI - AHRC,10/12/2018,Research Grant Expenditure,Research Grants,University of Edinburgh,98347737,13960.21,Research Grant Expenditure
,BEIS,UKRI - AHRC,10/12/2018,Research Grant Expenditure,Follow-on Fund,University of Edinburgh,98347755,-0.06,Research Grant Expenditure
,BEIS,UKRI - AHRC,10/12/2018,Fellowships,Research Fellowships,University of Edinburgh,98347854,17137.47,Fellowships
,BEIS,UKRI - AHRC,10/12/2018,Fellowships,Research Fellowships,University of Edinburgh,98347873,34753.66,Fellowships
,BEIS,UKRI - AHRC,10/12/2018,Fellowships,Research Fellowships,University of Edinburgh,98347873,34753.66,Fellowships
,BEIS,UKRI - AHRC,10/12/2018,Fellowships,Research Fellowships,University of Edinburgh,98347876,22391.62,Fellowships
,BEIS,UKRI - AHRC,10/12/2018,Research Grant Expenditure,Care for the Future,University of Essex,98347612,11413.30,Research Grant Expenditure
,BEIS,UKRI - AHRC,10/12/2018,Research Grant Expenditure,Connected Communities Programme,University of Essex,98347612,11413.26,Research Grant Expenditure
,BEIS,UKRI - AHRC,10/12/2018,Research Grant Expenditure,Research Grants,University of Essex,98347718,-18644.26,Research Grant Expenditure
,BEIS,UKRI - AHRC,10/12/2018,Research Grant Expenditure,Global Challenges Research Fund (GCRF),University of Essex,98347749,12509.78,Research Grant Expenditure
,BEIS,UKRI - AHRC,10/12/2018,Fellowships,Research Fellowships,University of Essex,98347869,32184.94,Fellowships
,BEIS,UKRI - AHRC,10/12/2018,Research Grant Expenditure,Research Grants,University of Exeter,98347441,42002.93,Research Grant Expenditure
,BEIS,UKRI - AHRC,10/12/2018,Research Grant Expenditure,Research Grants,University of Exeter,98347526,25605.32,Research Grant Expenditure
,BEIS,UKRI - AHRC,10/12/2018,Research Grant Expenditure,Research Grants,University of Exeter,98347529,53383.92,Research Grant Expenditure
,BEIS,UKRI - AHRC,10/12/2018,Research Grant Expenditure,Research Grants,University of Exeter,98347531,24175.70,Research Grant Expenditure
,BEIS,UKRI - AHRC,10/12/2018,Research Grant Expenditure,Networks & Workshops,University of Exeter,98347536,4674.82,Research Grant Expenditure
,BEIS,UKRI - AHRC,10/12/2018,Research Grant Expenditure,Anti-microbial Resistance (AMR),University of Exeter,98347563,22085.88,Research Grant Expenditure
,BEIS,UKRI - AHRC,10/12/2018,Research Grant Expenditure,Research Grants,University of Exeter,98347574,63512.41,Research Grant Expenditure
,BEIS,UKRI - AHRC,10/12/2018,Research Grant Expenditure,Follow-on Fund,University of Exeter,98347624,21037.85,Research Grant Expenditure
,BEIS,UKRI - AHRC,10/12/2018,Research Grant Expenditure,Care for the Future,University of Exeter,98347626,94365.54,Research Grant Expenditure
,BEIS,UKRI - AHRC,10/12/2018,Research Grant Expenditure,Research Grants,University of Exeter,98347660,81585.13,Research Grant Expenditure
,BEIS,UKRI - AHRC,10/12/2018,Research Grant Expenditure,Research Grants,University of Exeter,98347678,19890.46,Research Grant Expenditure
,BEIS,UKRI - AHRC,10/12/2018,Fellowships,Research Fellowships,University of Exeter,98347852,22683.54,Fellowships
,BEIS,UKRI - AHRC,10/12/2018,Research Grant Expenditure,Research Grants,University of Glasgow,98347414,44777.27,Research Grant Expenditure
,BEIS,UKRI - AHRC,10/12/2018,Research Grant Expenditure,Research Grants,University of Glasgow,98347436,23369.20,Research Grant Expenditure
,BEIS,UKRI - AHRC,10/12/2018,Research Grant Expenditure,Research Grants,University of Glasgow,98347495,40416.75,Research Grant Expenditure
,BEIS,UKRI - AHRC,10/12/2018,Research Grant Expenditure,Research Grants,University of Glasgow,98347582,42748.04,Research Grant Expenditure
,BEIS,UKRI - AHRC,10/12/2018,Research Grant Expenditure,Research Grants,University of Glasgow,98347619,56065.49,Research Grant Expenditure
,BEIS,UKRI - AHRC,10/12/2018,Research Grant Expenditure,Creative Economy,University of Glasgow,98347632,20161.41,Research Grant Expenditure
,BEIS,UKRI - AHRC,10/12/2018,Research Grant Expenditure,Networks & Workshops,University of Glasgow,98347636,4579.97,Research Grant Expenditure
,BEIS,UKRI - AHRC,10/12/2018,Research Grant Expenditure,Networks & Workshops,University of Glasgow,98347666,4885.26,Research Grant Expenditure
,BEIS,UKRI - AHRC,10/12/2018,Research Grant Expenditure,Research Grants,University of Glasgow,98347697,72191.97,Research Grant Expenditure
,BEIS,UKRI - AHRC,10/12/2018,Research Grant Expenditure,Research Grants,University of Glasgow,98347697,72191.97,Research Grant Expenditure
,BEIS,UKRI - AHRC,10/12/2018,Fellowships,Research Fellowships,University of Glasgow,98347839,22236.40,Fellowships
,BEIS,UKRI - AHRC,10/12/2018,Fellowships,Research Fellowships,University of Glasgow,98347846,21100.28,Fellowships
,BEIS,UKRI - AHRC,10/12/2018,Fellowships,Research Fellowships,University of Glasgow,98347868,28182.93,Fellowships
,BEIS,UKRI - AHRC,10/12/2018,Fellowships,Research Fellowships,University of Glasgow,98347885,19701.28,Fellowships
,BEIS,UKRI - AHRC,10/12/2018,Fellowships,Research Fellowships,University of Glasgow,98347885,19701.28,Fellowships
,BEIS,UKRI - AHRC,10/12/2018,Research Grant Expenditure,Care for the Future,University of Hertfordshire,98347485,25734.64,Research Grant Expenditure
,BEIS,UKRI - AHRC,10/12/2018,Research Grant Expenditure,Connected Communities Programme,University of Hertfordshire,98347485,25734.59,Research Grant Expenditure
,BEIS,UKRI - AHRC,10/12/2018,Fellowships,Research Fellowships,University of Huddersfield,98346708,19700.02,Fellowships
,BEIS,UKRI - AHRC,10/12/2018,Research Grant Expenditure,RCUK Global Challenges Research Fund (RCUK GCRF),University of Huddersfield,98347599,274300.00,Research Grant Expenditure
,BEIS,UKRI - AHRC,10/12/2018,Research Grant Expenditure,Follow-on Fund,University of Huddersfield,98347623,20127.50,Research Grant Expenditure
,BEIS,UKRI - AHRC,10/12/2018,Research Grant Expenditure,Follow-on Fund,University of Huddersfield,98347680,80497.13,Research Grant Expenditure
,BEIS,UKRI - AHRC,10/12/2018,Research Grant Expenditure,Research Grants,University of Hull,98347557,30862.64,Research Grant Expenditure
,BEIS,UKRI - AHRC,10/12/2018,Research Grant Expenditure,JPI Cultural Heritage,University of Hull,98347695,11191.91,Research Grant Expenditure
,BEIS,UKRI - AHRC,10/12/2018,Research Grant Expenditure,Research Grants,University of Hull,98347724,44181.74,Research Grant Expenditure
,BEIS,UKRI - AHRC,10/12/2018,Research Grant Expenditure,Follow-on Fund,University of Hull,98347757,-1.36,Research Grant Expenditure
,BEIS,UKRI - AHRC,10/12/2018,Research Grant Expenditure,Research Grants,University of Kent,98347482,26645.19,Research Grant Expenditure
,BEIS,UKRI - AHRC,10/12/2018,Research Grant Expenditure,Care for the Future,University of Kent,98347483,20937.06,Research Grant Expenditure
,BEIS,UKRI - AHRC,10/12/2018,Research Grant Expenditure,Connected Communities Programme,University of Kent,98347483,20937.02,Research Grant Expenditure
,BEIS,UKRI - AHRC,10/12/2018,Research Grant Expenditure,Research Grants,University of Kent,98347508,67449.18,Research Grant Expenditure
,BEIS,UKRI - AHRC,10/12/2018,Research Grant Expenditure,Research Grants,University of Kent,98347540,38310.54,Research Grant Expenditure
,BEIS,UKRI - AHRC,10/12/2018,Research Grant Expenditure,Networks & Workshops,University of Kent,98347561,4503.44,Research Grant Expenditure
,BEIS,UKRI - AHRC,10/12/2018,Research Grant Expenditure,Research Grants,University of Kent,98347721,45963.30,Research Grant Expenditure
,BEIS,UKRI - AHRC,10/12/2018,Fellowships,Research Fellowships,University of Kent,98347867,31628.95,Fellowships
,BEIS,UKRI - AHRC,10/12/2018,Fellowships,Research Fellowships,University of Leeds,98346706,29332.63,Fellowships
,BEIS,UKRI - AHRC,10/12/2018,Research Grant Expenditure,Research Grants,University of Leeds,98347420,36068.56,Research Grant Expenditure
,BEIS,UKRI - AHRC,10/12/2018,Research Grant Expenditure,Research Grants,University of Leeds,98347494,72396.78,Research Grant Expenditure
,BEIS,UKRI - AHRC,10/12/2018,Research Grant Expenditure,Research Grants,University of Leeds,98347516,23536.80,Research Grant Expenditure
,BEIS,UKRI - AHRC,10/12/2018,Research Grant Expenditure,Networks & Workshops,University of Leeds,98347537,4543.40,Research Grant Expenditure
,BEIS,UKRI - AHRC,10/12/2018,Research Grant Expenditure,Research Grants,University of Leeds,98347545,63313.38,Research Grant Expenditure
,BEIS,UKRI - AHRC,10/12/2018,Research Grant Expenditure,Anti-microbial Resistance (AMR),University of Leeds,98347570,25743.37,Research Grant Expenditure
,BEIS,UKRI - AHRC,10/12/2018,Research Grant Expenditure,Research Grants,University of Leeds,98347577,33879.45,Research Grant Expenditure
,BEIS,UKRI - AHRC,10/12/2018,Research Grant Expenditure,Global Challenges Research Fund (GCRF),University of Leeds,98347587,118115.06,Research Grant Expenditure
,BEIS,UKRI - AHRC,10/12/2018,Research Grant Expenditure,Global Challenges Research Fund (GCRF),University of Leeds,98347600,4952.00,Research Grant Expenditure
,BEIS,UKRI - AHRC,10/12/2018,Research Grant Expenditure,Networks & Workshops,University of Leeds,98347667,4297.81,Research Grant Expenditure
,BEIS,UKRI - AHRC,10/12/2018,Research Grant Expenditure,Research Grants,University of Leeds,98347689,20251.67,Research Grant Expenditure
,BEIS,UKRI - AHRC,10/12/2018,Research Grant Expenditure,Newton Programme,University of Leeds,98347694,16546.06,Research Grant Expenditure
,BEIS,UKRI - AHRC,10/12/2018,Research Grant Expenditure,Industrial Strategy Challenge Fund (ISCF) - Creative Clusters,University of Leeds,98347701,299289.46,Research Grant Expenditure
,BEIS,UKRI - AHRC,10/12/2018,Research Grant Expenditure,Care for the Future,University of Leeds,98347717,-44106.37,Research Grant Expenditure
,BEIS,UKRI - AHRC,10/12/2018,Research Grant Expenditure,Research Grants,University of Leeds,98347744,-38.80,Research Grant Expenditure
,BEIS,UKRI - AHRC,10/12/2018,Research Grant Expenditure,Follow-on Fund,University of Leeds,98347754,-1375.06,Research Grant Expenditure
,BEIS,UKRI - AHRC,10/12/2018,Research Grant Expenditure,Research Grants,University of Leicester,98347512,50772.37,Research Grant Expenditure
,BEIS,UKRI - AHRC,10/12/2018,Research Grant Expenditure,Research Grants,University of Leicester,98347552,60619.51,Research Grant Expenditure
,BEIS,UKRI - AHRC,10/12/2018,Research Grant Expenditure,Research Grants,University of Leicester,98347605,67835.63,Research Grant Expenditure
,BEIS,UKRI - AHRC,10/12/2018,Hospitality,"Histories,Culture & Heritage",University of Leicester,98363027,4539.90,Hospitality
,BEIS,UKRI - AHRC,10/12/2018,Research Grant Expenditure,Networks & Workshops,University of Lincoln,98347658,6624.10,Research Grant Expenditure
,BEIS,UKRI - AHRC,10/12/2018,Research Grant Expenditure,Research Grants,University of Liverpool,98347487,49114.19,Research Grant Expenditure
,BEIS,UKRI - AHRC,10/12/2018,Research Grant Expenditure,Research Grants,University of Liverpool,98347573,47206.29,Research Grant Expenditure
,BEIS,UKRI - AHRC,10/12/2018,Research Grant Expenditure,Global Challenges Research Fund (GCRF),University of Liverpool,98347590,114362.69,Research Grant Expenditure
,BEIS,UKRI - AHRC,10/12/2018,Research Grant Expenditure,Newton Programme,University of Liverpool,98347642,23355.34,Research Grant Expenditure
,BEIS,UKRI - AHRC,10/12/2018,Research Grant Expenditure,Research Grants,University of Liverpool,98347669,48171.34,Research Grant Expenditure
,BEIS,UKRI - AHRC,10/12/2018,Research Grant Expenditure,Research Grants,University of Liverpool,98347673,20222.92,Research Grant Expenditure
,BEIS,UKRI - AHRC,10/12/2018,Research Grant Expenditure,Follow-on Fund,University of Liverpool,98347761,18712.01,Research Grant Expenditure
,BEIS,UKRI - AHRC,10/12/2018,Fellowships,Research Fellowships,University of Liverpool,98347844,18561.19,Fellowships
,BEIS,UKRI - AHRC,10/12/2018,Research Grant Expenditure,Science in Culture,University of London,98347430,8444.03,Research Grant Expenditure
,BEIS,UKRI - AHRC,10/12/2018,Research Grant Expenditure,Networks & Workshops,University of London,98347538,6337.96,Research Grant Expenditure
,BEIS,UKRI - AHRC,10/12/2018,Fellowships,Research Fellowships,University of Newcastle Upon Tyne,98346713,29684.74,Fellowships
,BEIS,UKRI - AHRC,10/12/2018,Research Grant Expenditure,Research Grants,University of Newcastle Upon Tyne,98347419,36655.04,Research Grant Expenditure
,BEIS,UKRI - AHRC,10/12/2018,Research Grant Expenditure,Research Grants,University of Newcastle Upon Tyne,98347454,52499.95,Research Grant Expenditure
,BEIS,UKRI - AHRC,10/12/2018,Research Grant Expenditure,RCUK Newton Programme,University of Newcastle Upon Tyne,98347472,26672.00,Research Grant Expenditure
,BEIS,UKRI - AHRC,10/12/2018,Research Grant Expenditure,Research Grants,University of Newcastle Upon Tyne,98347525,34454.78,Research Grant Expenditure
,BEIS,UKRI - AHRC,10/12/2018,Research Grant Expenditure,Networks & Workshops,University of Newcastle Upon Tyne,98347547,4559.30,Research Grant Expenditure
,BEIS,UKRI - AHRC,10/12/2018,Research Grant Expenditure,Research Grants,University of Newcastle Upon Tyne,98347620,59830.37,Research Grant Expenditure
,BEIS,UKRI - AHRC,10/12/2018,Research Grant Expenditure,Creative Economy,University of Newcastle Upon Tyne,98347633,25519.01,Research Grant Expenditure
,BEIS,UKRI - AHRC,10/12/2018,Research Grant Expenditure,Research Grants,University of Newcastle Upon Tyne,98347670,54407.74,Research Grant Expenditure
,BEIS,UKRI - AHRC,10/12/2018,Fellowships,Research Fellowships,University of Newcastle Upon Tyne,98347884,22504.01,Fellowships
,BEIS,UKRI - AHRC,10/12/2018,Research Grant Expenditure,Care for the Future,University of Nottingham,98347408,12283.05,Research Grant Expenditure
,BEIS,UKRI - AHRC,10/12/2018,Research Grant Expenditure,Connected Communities Programme,University of Nottingham,98347408,12283.03,Research Grant Expenditure
,BEIS,UKRI - AHRC,10/12/2018,Research Grant Expenditure,Research Grants,University of Nottingham,98347415,36490.28,Research Grant Expenditure
,BEIS,UKRI - AHRC,10/12/2018,Research Grant Expenditure,Care for the Future,University of Nottingham,98347519,73246.45,Research Grant Expenditure
,BEIS,UKRI - AHRC,10/12/2018,Research Grant Expenditure,Research Grants,University of Nottingham,98347543,47834.47,Research Grant Expenditure
,BEIS,UKRI - AHRC,10/12/2018,Research Grant Expenditure,Research Grants,University of Nottingham,98347576,53145.01,Research Grant Expenditure
,BEIS,UKRI - AHRC,10/12/2018,Research Grant Expenditure,Global Challenges Research Fund (GCRF),University of Nottingham,98347588,103068.31,Research Grant Expenditure
,BEIS,UKRI - AHRC,10/12/2018,Research Grant Expenditure,RCUK Newton Programme,University of Nottingham,98347683,39117.56,Research Grant Expenditure
,BEIS,UKRI - AHRC,10/12/2018,Research Grant Expenditure,Connected Communities Programme,University of Nottingham,98347713,-526.83,Research Grant Expenditure
,BEIS,UKRI - AHRC,10/12/2018,Research Grant Expenditure,Networks & Workshops,University of Nottingham,98347735,4744.50,Research Grant Expenditure
,BEIS,UKRI - AHRC,10/12/2018,Research Grant Expenditure,Follow-on Fund,University of Nottingham,98347753,-3690.60,Research Grant Expenditure
,BEIS,UKRI - AHRC,10/12/2018,Fellowships,Research Fellowships,University of Nottingham,98347856,31035.79,Fellowships
,BEIS,UKRI - AHRC,10/12/2018,Fellowships,Research Fellowships,University of Oxford,98346710,26775.94,Fellowships
,BEIS,UKRI - AHRC,10/12/2018,Fellowships,Research Fellowships,University of Oxford,98346711,35260.19,Fellowships
,BEIS,UKRI - AHRC,10/12/2018,Fellowships,Research Fellowships,University of Oxford,98346712,27559.76,Fellowships
,BEIS,UKRI - AHRC,10/12/2018,Research Grant Expenditure,Research Grants,University of Oxford,98347424,40176.96,Research Grant Expenditure
,BEIS,UKRI - AHRC,10/12/2018,Research Grant Expenditure,Research Grants,University of Oxford,98347428,59260.75,Research Grant Expenditure
,BEIS,UKRI - AHRC,10/12/2018,Research Grant Expenditure,Research Grants,University of Oxford,98347432,57134.56,Research Grant Expenditure
,BEIS,UKRI - AHRC,10/12/2018,Research Grant Expenditure,Research Grants,University of Oxford,98347440,51282.68,Research Grant Expenditure
,BEIS,UKRI - AHRC,10/12/2018,Research Grant Expenditure,Research Grants,University of Oxford,98347445,45288.59,Research Grant Expenditure
,BEIS,UKRI - AHRC,10/12/2018,Research Grant Expenditure,Open World Research Initiative (OWRI).,University of Oxford,98347452,199094.85,Research Grant Expenditure
,BEIS,UKRI - AHRC,10/12/2018,Research Grant Expenditure,Global Uncertainties Programme,University of Oxford,98347474,42718.07,Research Grant Expenditure
,BEIS,UKRI - AHRC,10/12/2018,Research Grant Expenditure,JPI Cultural Heritage,University of Oxford,98347645,15321.29,Research Grant Expenditure
,BEIS,UKRI - AHRC,10/12/2018,Research Grant Expenditure,Follow-on Fund,University of Oxford,98347655,20161.97,Research Grant Expenditure
,BEIS,UKRI - AHRC,10/12/2018,Research Grant Expenditure,Research Grants,University of Oxford,98347679,61957.28,Research Grant Expenditure
,BEIS,UKRI - AHRC,10/12/2018,Research Grant Expenditure,Research Grants,University of Oxford,98347690,62238.72,Research Grant Expenditure
,BEIS,UKRI - AHRC,10/12/2018,Research Grant Expenditure,Follow-on Fund,University of Oxford,98347759,-0.03,Research Grant Expenditure
,BEIS,UKRI - AHRC,10/12/2018,Fellowships,Research Fellowships,University of Plymouth,98347862,23218.25,Fellowships
,BEIS,UKRI - AHRC,10/12/2018,Research Grant Expenditure,Research Grants,University of Reading,98347422,54500.73,Research Grant Expenditure
,BEIS,UKRI - AHRC,10/12/2018,Research Grant Expenditure,Research Grants,University of Reading,98347435,50274.25,Research Grant Expenditure
,BEIS,UKRI - AHRC,10/12/2018,Research Grant Expenditure,Research Grants,University of Reading,98347653,67145.01,Research Grant Expenditure
,BEIS,UKRI - AHRC,10/12/2018,Research Grant Expenditure,Research Grants,University of Reading,98347677,47138.48,Research Grant Expenditure
,BEIS,UKRI - AHRC,10/12/2018,Research Grant Expenditure,Follow-on Fund,University of Reading,98347681,80543.40,Research Grant Expenditure
,BEIS,UKRI - AHRC,10/12/2018,Research Grant Expenditure,Research Grants,University of Reading,98347722,25309.84,Research Grant Expenditure
,BEIS,UKRI - AHRC,10/12/2018,Research Grant Expenditure,Creative Economy,University of Reading,98347770,-5753.83,Research Grant Expenditure
,BEIS,UKRI - AHRC,10/12/2018,Research Grant Expenditure,Newton Programme,University of Salford,98347643,11637.76,Research Grant Expenditure
,BEIS,UKRI - AHRC,10/12/2018,Research Grant Expenditure,Newton Programme,University of Salford,98347698,15503.14,Research Grant Expenditure
,BEIS,UKRI - AHRC,10/12/2018,Fellowships,Research Fellowships,University of Sheffield,98346714,29779.86,Fellowships
,BEIS,UKRI - AHRC,10/12/2018,Research Grant Expenditure,Research Grants,University of Sheffield,98347443,39740.62,Research Grant Expenditure
,BEIS,UKRI - AHRC,10/12/2018,Research Grant Expenditure,Research Grants,University of Sheffield,98347514,34337.93,Research Grant Expenditure
,BEIS,UKRI - AHRC,10/12/2018,Research Grant Expenditure,Research Grants,University of Sheffield,98347579,33947.05,Research Grant Expenditure
,BEIS,UKRI - AHRC,10/12/2018,Research Grant Expenditure,Research Grants,University of Sheffield,98347580,30267.78,Research Grant Expenditure
,BEIS,UKRI - AHRC,10/12/2018,Research Grant Expenditure,Research Grants,University of Sheffield,98347618,52381.55,Research Grant Expenditure
,BEIS,UKRI - AHRC,10/12/2018,Research Grant Expenditure,Networks & Workshops,University of Sheffield,98347719,-400.20,Research Grant Expenditure
,BEIS,UKRI - AHRC,10/12/2018,Research Grant Expenditure,Follow-on Fund,University of Sheffield,98347767,19150.65,Research Grant Expenditure
,BEIS,UKRI - AHRC,10/12/2018,Research Grant Expenditure,Creative Economy,University of Sheffield,98347774,-2014.88,Research Grant Expenditure
,BEIS,UKRI - AHRC,10/12/2018,Fellowships,Research Fellowships,University of Sheffield,98347834,18720.42,Fellowships
,BEIS,UKRI - AHRC,10/12/2018,Fellowships,Research Fellowships,University of Sheffield,98347835,13839.40,Fellowships
,BEIS,UKRI - AHRC,10/12/2018,Fellowships,Research Fellowships,University of Sheffield,98347859,27810.86,Fellowships
,BEIS,UKRI - AHRC,10/12/2018,Research Grant Expenditure,Research Grants,University of Southampton GRANT,98347465,44127.03,Research Grant Expenditure
,BEIS,UKRI - AHRC,10/12/2018,Research Grant Expenditure,Research Grants,University of Southampton GRANT,98347539,54819.66,Research Grant Expenditure
,BEIS,UKRI - AHRC,10/12/2018,Research Grant Expenditure,Research Grants,University of Southampton GRANT,98347676,65849.56,Research Grant Expenditure
,BEIS,UKRI - AHRC,10/12/2018,Fellowships,Research Fellowships,University of Southampton GRANT,98347843,25087.12,Fellowships
,BEIS,UKRI - AHRC,10/12/2018,Fellowships,Research Fellowships,University of St Andrews,98347832,31052.97,Fellowships
,BEIS,UKRI - AHRC,10/12/2018,Fellowships,Research Fellowships,University of St Andrews,98347836,18935.98,Fellowships
,BEIS,UKRI - AHRC,10/12/2018,Research Grant Expenditure,Research Grants,University of Stirling,98347421,7018.80,Research Grant Expenditure
,BEIS,UKRI - AHRC,10/12/2018,Fellowships,Research Fellowships,University of Stirling,98347874,30663.34,Fellowships
,BEIS,UKRI - AHRC,10/12/2018,Research Grant Expenditure,Research Grants,University of Strathclyde,98347647,54541.72,Research Grant Expenditure
,BEIS,UKRI - AHRC,10/12/2018,Research Grant Expenditure,Research Grants,University of Surrey,98347439,34525.86,Research Grant Expenditure
,BEIS,UKRI - AHRC,10/12/2018,Research Grant Expenditure,Research Grants,University of Surrey,98347467,37470.25,Research Grant Expenditure
,BEIS,UKRI - AHRC,10/12/2018,Research Grant Expenditure,Research Grants,University of Surrey,98347479,31954.94,Research Grant Expenditure
,BEIS,UKRI - AHRC,10/12/2018,Research Grant Expenditure,Research Grants,University of Surrey,98347496,46945.33,Research Grant Expenditure
,BEIS,UKRI - AHRC,10/12/2018,Research Grant Expenditure,Research Grants,University of Surrey,98347523,22283.10,Research Grant Expenditure
,BEIS,UKRI - AHRC,10/12/2018,Research Grant Expenditure,Research Grants,University of Surrey,98347616,34330.04,Research Grant Expenditure
,BEIS,UKRI - AHRC,10/12/2018,Research Grant Expenditure,Creative Economy,University of Surrey,98347769,-0.44,Research Grant Expenditure
,BEIS,UKRI - AHRC,10/12/2018,Fellowships,Research Fellowships,University of Surrey,98347877,19569.52,Fellowships
,BEIS,UKRI - AHRC,10/12/2018,Research Grant Expenditure,Networks & Workshops,University of Sussex,98347503,4416.84,Research Grant Expenditure
,BEIS,UKRI - AHRC,10/12/2018,Research Grant Expenditure,Research Grants,University of Sussex,98347517,43156.88,Research Grant Expenditure
,BEIS,UKRI - AHRC,10/12/2018,Research Grant Expenditure,Research Grants,University of Sussex,98347675,49594.42,Research Grant Expenditure
,BEIS,UKRI - AHRC,10/12/2018,Research Grant Expenditure,Global Challenges Research Fund (GCRF),University of Sussex,98347685,33408.07,Research Grant Expenditure
,BEIS,UKRI - AHRC,10/12/2018,Research Grant Expenditure,Global Challenges Research Fund (GCRF),University of Sussex,98347685,33408.07,Research Grant Expenditure
,BEIS,UKRI - AHRC,10/12/2018,Research Grant Expenditure,Global Challenges Research Fund (GCRF),University of Sussex,98347685,33408.07,Research Grant Expenditure
,BEIS,UKRI - AHRC,10/12/2018,Research Grant Expenditure,Global Challenges Research Fund (GCRF),University of Sussex,98347685,33408.07,Research Grant Expenditure
,BEIS,UKRI - AHRC,10/12/2018,Research Grant Expenditure,Networks & Workshops,University of Sussex,98347776,-747.20,Research Grant Expenditure
,BEIS,UKRI - AHRC,10/12/2018,Fellowships,Research Fellowships,University of Sussex,98347847,25404.41,Fellowships
,BEIS,UKRI - AHRC,10/12/2018,Fellowships,Research Fellowships,University of Sussex,98347865,21679.99,Fellowships
,BEIS,UKRI - AHRC,10/12/2018,Research Grant Expenditure,Research Grants,University of the Arts London,98347553,31581.98,Research Grant Expenditure
,BEIS,UKRI - AHRC,10/12/2018,Research Grant Expenditure,Research Grants,University of the Arts London,98347650,44877.19,Research Grant Expenditure
,BEIS,UKRI - AHRC,10/12/2018,Research Grant Expenditure,Industrial Strategy Challenge Fund (ISCF) - Creative Clusters,University of the Arts London,98347702,301892.91,Research Grant Expenditure
,BEIS,UKRI - AHRC,10/12/2018,Research Grant Expenditure,Commissioned Research,University of the Arts London,98347780,-16096.90,Research Grant Expenditure
,BEIS,UKRI - AHRC,10/12/2018,Research Grant Expenditure,Research Grants,University of the West of England,98347558,16308.01,Research Grant Expenditure
,BEIS,UKRI - AHRC,10/12/2018,Research Grant Expenditure,Networks & Workshops,University of the West of England,98347638,8649.50,Research Grant Expenditure
,BEIS,UKRI - AHRC,10/12/2018,Research Grant Expenditure,Industrial Strategy Challenge Fund (ISCF) - Creative Clusters,University of the West of England,98347705,305793.17,Research Grant Expenditure
,BEIS,UKRI - AHRC,10/12/2018,Research Grant Expenditure,Research Grants,University of the West of England,98347731,78232.34,Research Grant Expenditure
,BEIS,UKRI - AHRC,10/12/2018,Research Grant Expenditure,Research Grants,University of Ulster,98347518,24311.69,Research Grant Expenditure
,BEIS,UKRI - AHRC,10/12/2018,Research Grant Expenditure,Industrial Strategy Challenge Fund (ISCF) - Creative Clusters,University of Ulster,98347703,304944.77,Research Grant Expenditure
,BEIS,UKRI - AHRC,10/12/2018,Research Grant Expenditure,Research Grants,University of Warwick,98347427,36390.33,Research Grant Expenditure
,BEIS,UKRI - AHRC,10/12/2018,Research Grant Expenditure,Research Grants,University of Warwick,98347444,54610.42,Research Grant Expenditure
,BEIS,UKRI - AHRC,10/12/2018,Research Grant Expenditure,Research Grants,University of Warwick,98347446,26452.72,Research Grant Expenditure
,BEIS,UKRI - AHRC,10/12/2018,Research Grant Expenditure,Research Grants,University of Warwick,98347466,22739.65,Research Grant Expenditure
,BEIS,UKRI - AHRC,10/12/2018,Research Grant Expenditure,Research Grants,University of Warwick,98347471,45682.53,Research Grant Expenditure
,BEIS,UKRI - AHRC,10/12/2018,Research Grant Expenditure,Networks & Workshops,University of Warwick,98347535,4533.83,Research Grant Expenditure
,BEIS,UKRI - AHRC,10/12/2018,Research Grant Expenditure,Networks & Workshops,University of Warwick,98347602,3478.34,Research Grant Expenditure
,BEIS,UKRI - AHRC,10/12/2018,Research Grant Expenditure,JPI Cultural Heritage,University of Warwick,98347654,8814.10,Research Grant Expenditure
,BEIS,UKRI - AHRC,10/12/2018,Research Grant Expenditure,Research Grants,University of Warwick,98347663,57062.38,Research Grant Expenditure
,BEIS,UKRI - AHRC,10/12/2018,Fellowships,Research Fellowships,University of West London,98347882,21701.78,Fellowships
,BEIS,UKRI - AHRC,10/12/2018,Research Grant Expenditure,Research Grants,University of Westminster,98347438,45211.15,Research Grant Expenditure
,BEIS,UKRI - AHRC,10/12/2018,Research Grant Expenditure,Networks & Workshops,University of Westminster,98347764,-10858.89,Research Grant Expenditure
,BEIS,UKRI - AHRC,10/12/2018,Research Grant Expenditure,Networks & Workshops,University of Winchester,98347562,5787.51,Research Grant Expenditure
,BEIS,UKRI - AHRC,10/12/2018,Research Grant Expenditure,Research Grants,University of Wolverhampton,98347515,54643.52,Research Grant Expenditure
,BEIS,UKRI - AHRC,10/12/2018,Research Grant Expenditure,Research Grants,University of York,98347409,36461.61,Research Grant Expenditure
,BEIS,UKRI - AHRC,10/12/2018,Research Grant Expenditure,Anti-microbial Resistance (AMR),University of York,98347568,29895.21,Research Grant Expenditure
,BEIS,UKRI - AHRC,10/12/2018,Research Grant Expenditure,Global Challenges Research Fund (GCRF),University of York,98347593,12699.24,Research Grant Expenditure
,BEIS,UKRI - AHRC,10/12/2018,Research Grant Expenditure,Research Grants,University of York,98347604,22873.45,Research Grant Expenditure
,BEIS,UKRI - AHRC,10/12/2018,Research Grant Expenditure,Industrial Strategy Challenge Fund (ISCF) - Creative Clusters,University of York,98347706,300299.57,Research Grant Expenditure
,BEIS,UKRI - AHRC,10/12/2018,Research Grant Expenditure,Research Grants,University of York,98347756,19370.31,Research Grant Expenditure
,BEIS,UKRI - AHRC,14/12/2018,Council & Committee Honoraria,New Programme Development,Unspecified,98357090,170.00,Council & Committee Honoraria
,BEIS,UKRI - AHRC,27/12/2018,Council & Committee Honoraria,New Programme Development,Unspecified,98222191,170.00,Council & Committee Honoraria
,BEIS,UKRI - AHRC,14/12/2018,Council & Committee Honoraria,New Programme Development,Unspecified,98364635,170.00,Council & Committee Honoraria
,BEIS,UKRI - AHRC,03/12/2018,Health & Safety (inc. Medicals & Opticians),HR,Unspecified,98350263,100.00,Health & Safety (inc. Medicals & Opticians)
,BEIS,UKRI - AHRC,04/12/2018,T&S UK - Other Charges,Communications,Unspecified,98352789,8.94,T&S UK - Other Charges
,BEIS,UKRI - AHRC,07/12/2018,Advertising & Promotion,Communications,Unspecified,98357521,3625.00,Advertising & Promotion
,BEIS,UKRI - AHRC,07/12/2018,T&S UK - Other Charges,"Histories,Culture & Heritage",Unspecified,98360770,8.01,T&S UK - Other Charges
,BEIS,UKRI - AHRC,07/12/2018,T&S UK - Public Transport,"Histories,Culture & Heritage",Unspecified,98360770,14.00,T&S UK - Public Transport
,BEIS,UKRI - AHRC,07/12/2018,T&S UK - Public Transport,"Histories,Culture & Heritage",Unspecified,98360770,84.74,T&S UK - Public Transport
,BEIS,UKRI - AHRC,07/12/2018,T&S UK - Subsistence,"Histories,Culture & Heritage",Unspecified,98360770,55.36,T&S UK - Subsistence
,BEIS,UKRI - AHRC,07/12/2018,T&S UK - Subsistence,"Histories,Culture & Heritage",Unspecified,98360770,7.11,T&S UK - Subsistence
,BEIS,UKRI - AHRC,07/12/2018,T&S UK - Public Transport,"Histories,Culture & Heritage",Unspecified,98360771,2.00,T&S UK - Public Transport
,BEIS,UKRI - AHRC,07/12/2018,T&S UK - Public Transport,"Histories,Culture & Heritage",Unspecified,98360771,22.80,T&S UK - Public Transport
,BEIS,UKRI - AHRC,07/12/2018,T&S UK - Mileage,SMT,Unspecified,98360772,70.20,T&S UK - Mileage
,BEIS,UKRI - AHRC,07/12/2018,T&S UK - Other Charges,SMT,Unspecified,98360772,12.84,T&S UK - Other Charges
,BEIS,UKRI - AHRC,07/12/2018,T&S UK - Parking Tolls Congestion Charges,SMT,Unspecified,98360772,10.60,T&S UK - Parking Tolls Congestion Charges
,BEIS,UKRI - AHRC,07/12/2018,T&S UK - Public Transport,SMT,Unspecified,98360772,10.40,T&S UK - Public Transport
,BEIS,UKRI - AHRC,07/12/2018,T&S UK - Subsistence,SMT,Unspecified,98360772,7.20,T&S UK - Subsistence
,BEIS,UKRI - AHRC,07/12/2018,T&S UK - Subsistence,SMT,Unspecified,98360772,23.45,T&S UK - Subsistence
,BEIS,UKRI - AHRC,07/12/2018,T&S UK - Subsistence,SMT,Unspecified,98360772,15.00,T&S UK - Subsistence
,BEIS,UKRI - AHRC,07/12/2018,T&S UK - Public Transport,Creative Arts & Digital Humanities,Unspecified,98360773,34.69,T&S UK - Public Transport
,BEIS,UKRI - AHRC,07/12/2018,T&S UK - Subsistence,Creative Arts & Digital Humanities,Unspecified,98360773,2.60,T&S UK - Subsistence
,BEIS,UKRI - AHRC,07/12/2018,T&S UK - Subsistence,Creative Arts & Digital Humanities,Unspecified,98360773,5.00,T&S UK - Subsistence
,BEIS,UKRI - AHRC,07/12/2018,T&S UK - Public Transport,Communications,Unspecified,98360774,7.00,T&S UK - Public Transport
,BEIS,UKRI - AHRC,07/12/2018,T&S UK - Public Transport,Communications,Unspecified,98360774,188.60,T&S UK - Public Transport
,BEIS,UKRI - AHRC,07/12/2018,T&S UK - Subsistence,Communications,Unspecified,98360774,2.60,T&S UK - Subsistence
,BEIS,UKRI - AHRC,07/12/2018,T&S UK - Subsistence,Communications,Unspecified,98360774,4.09,T&S UK - Subsistence
,BEIS,UKRI - AHRC,07/12/2018,T&S UK - Subsistence,Communications,Unspecified,98360774,17.00,T&S UK - Subsistence
,BEIS,UKRI - AHRC,07/12/2018,T&S UK - Subsistence,Communications,Unspecified,98360774,10.00,T&S UK - Subsistence
,BEIS,UKRI - AHRC,10/12/2018,UK - Professional Memberships & Subscriptions,HR,Unspecified,98361807,57.50,UK - Professional Memberships & Subscriptions
,BEIS,UKRI - AHRC,11/12/2018,T&S UK - Other Charges,HR,Unspecified,98364032,8.80,T&S UK - Other Charges
,BEIS,UKRI - AHRC,11/12/2018,T&S UK - Public Transport,HR,Unspecified,98364032,10.50,T&S UK - Public Transport
,BEIS,UKRI - AHRC,11/12/2018,T&S UK - Vehicle Hire,HR,Unspecified,98364032,26.10,T&S UK - Vehicle Hire
,BEIS,UKRI - AHRC,11/12/2018,T&S UK - Public Transport,"Histories,Culture & Heritage",Unspecified,98364033,22.88,T&S UK - Public Transport
,BEIS,UKRI - AHRC,11/12/2018,T&S UK - Subsistence,"Histories,Culture & Heritage",Unspecified,98364033,11.45,T&S UK - Subsistence
,BEIS,UKRI - AHRC,11/12/2018,T&S UK - Public Transport,Business Process & Analysis,Unspecified,98364034,19.20,T&S UK - Public Transport
,BEIS,UKRI - AHRC,11/12/2018,T&S UK - Subsistence,Business Process & Analysis,Unspecified,98364034,4.34,T&S UK - Subsistence
,BEIS,UKRI - AHRC,11/12/2018,T&S UK - Public Transport,Creative Arts & Digital Humanities,Unspecified,98364035,4.50,T&S UK - Public Transport
,BEIS,UKRI - AHRC,11/12/2018,T&S UK - Public Transport,Creative Arts & Digital Humanities,Unspecified,98364035,11.00,T&S UK - Public Transport
,BEIS,UKRI - AHRC,11/12/2018,T&S UK - Subsistence,Creative Arts & Digital Humanities,Unspecified,98364035,3.20,T&S UK - Subsistence
,BEIS,UKRI - AHRC,11/12/2018,T&S UK - Subsistence,Creative Arts & Digital Humanities,Unspecified,98364035,13.65,T&S UK - Subsistence
,BEIS,UKRI - AHRC,11/12/2018,T&S UK - Subsistence,Creative Arts & Digital Humanities,Unspecified,98364035,5.00,T&S UK - Subsistence
,BEIS,UKRI - AHRC,12/12/2018,Council & Committee Honoraria,New Programme Development,Unspecified,98364631,170.00,Council & Committee Honoraria
,BEIS,UKRI - AHRC,12/12/2018,Council & Committee Honoraria,New Programme Development,Unspecified,98364638,170.00,Council & Committee Honoraria
,BEIS,UKRI - AHRC,12/12/2018,T&S UK - Subsistence,HERA JRP Project,Unspecified,98365017,14.70,T&S UK - Subsistence
,BEIS,UKRI - AHRC,12/12/2018,T&S UK - Subsistence,HERA JRP Project,Unspecified,98365017,10.00,T&S UK - Subsistence
,BEIS,UKRI - AHRC,12/12/2018,T&S UK - Mileage,HR,Unspecified,98365018,162.00,T&S UK - Mileage
,BEIS,UKRI - AHRC,12/12/2018,T&S UK - Other Charges,HR,Unspecified,98365018,61.93,T&S UK - Other Charges
,BEIS,UKRI - AHRC,12/12/2018,T&S UK - Other Charges,HR,Unspecified,98365018,4.99,T&S UK - Other Charges
,BEIS,UKRI - AHRC,12/12/2018,T&S UK - Parking Tolls Congestion Charges,HR,Unspecified,98365018,15.00,T&S UK - Parking Tolls Congestion Charges
,BEIS,UKRI - AHRC,12/12/2018,T&S UK - Subsistence,HR,Unspecified,98365018,2.95,T&S UK - Subsistence
,BEIS,UKRI - AHRC,12/12/2018,T&S UK - Subsistence,HR,Unspecified,98365018,121.81,T&S UK - Subsistence
,BEIS,UKRI - AHRC,12/12/2018,T&S UK - Subsistence,HR,Unspecified,98365018,70.64,T&S UK - Subsistence
,BEIS,UKRI - AHRC,12/12/2018,T&S UK - Subsistence,HR,Unspecified,98365018,15.01,T&S UK - Subsistence
,BEIS,UKRI - AHRC,12/12/2018,T&S UK - Mileage,Creative Arts & Digital Humanities,Unspecified,98365019,6.75,T&S UK - Mileage
,BEIS,UKRI - AHRC,12/12/2018,T&S UK - Subsistence,Corporate Services,Unspecified,98365020,23.00,T&S UK - Subsistence
,BEIS,UKRI - AHRC,12/12/2018,T&S UK - Mileage,Creative Arts & Digital Humanities,Unspecified,98365022,240.90,T&S UK - Mileage
,BEIS,UKRI - AHRC,12/12/2018,T&S UK - Public Transport,"AHRC - Strategic Planning, Evidence & Impact",Unspecified,98365023,5.00,T&S UK - Public Transport
,BEIS,UKRI - AHRC,12/12/2018,T&S UK - Public Transport,Industrial Strategy Challenge Fund (ISCF) - Creative Clusters,Unspecified,98365023,2.00,T&S UK - Public Transport
,BEIS,UKRI - AHRC,12/12/2018,T&S UK - Public Transport,Industrial Strategy Challenge Fund (ISCF) - Creative Clusters,Unspecified,98365023,73.00,T&S UK - Public Transport
,BEIS,UKRI - AHRC,12/12/2018,T&S UK - Public Transport,Industrial Strategy Challenge Fund (ISCF) - Creative Clusters,Unspecified,98365023,17.60,T&S UK - Public Transport
,BEIS,UKRI - AHRC,12/12/2018,T&S UK - Subsistence,Industrial Strategy Challenge Fund (ISCF) - Creative Clusters,Unspecified,98365023,2.90,T&S UK - Subsistence
,BEIS,UKRI - AHRC,12/12/2018,T&S UK - Subsistence,Industrial Strategy Challenge Fund (ISCF) - Creative Clusters,Unspecified,98365023,39.30,T&S UK - Subsistence
,BEIS,UKRI - AHRC,12/12/2018,T&S UK - Subsistence,Industrial Strategy Challenge Fund (ISCF) - Creative Clusters,Unspecified,98365023,23.00,T&S UK - Subsistence
,BEIS,UKRI - AHRC,12/12/2018,T&S UK - Subsistence,Industrial Strategy Challenge Fund (ISCF) - Creative Clusters,Unspecified,98365023,32.50,T&S UK - Subsistence
,BEIS,UKRI - AHRC,12/12/2018,T&S UK - Subsistence,Industrial Strategy Challenge Fund (ISCF) - Creative Clusters,Unspecified,98365023,3.13,T&S UK - Subsistence
,BEIS,UKRI - AHRC,13/12/2018,T&S UK - Other Charges,Business Process & Analysis,Unspecified,98343847,19.50,T&S UK - Other Charges
,BEIS,UKRI - AHRC,13/12/2018,T&S UK - Public Transport,Business Process & Analysis,Unspecified,98343847,30.30,T&S UK - Public Transport
,BEIS,UKRI - AHRC,13/12/2018,T&S UK - Subsistence,Business Process & Analysis,Unspecified,98343847,25.00,T&S UK - Subsistence
,BEIS,UKRI - AHRC,13/12/2018,Advertising & Promotion,Communications,Unspecified,98365302,3600.00,Advertising & Promotion
,BEIS,UKRI - AHRC,13/12/2018,Council & Committee Honoraria,New Programme Development,Unspecified,98365392,230.00,Council & Committee Honoraria
,BEIS,UKRI - AHRC,13/12/2018,T&S UK - Mileage,PSU Project Office,Unspecified,98366497,31.23,T&S UK - Mileage
,BEIS,UKRI - AHRC,13/12/2018,T&S UK - Other Charges,PSU Project Office,Unspecified,98366497,8.50,T&S UK - Other Charges
,BEIS,UKRI - AHRC,13/12/2018,T&S UK - Subsistence,Business Process & Analysis,Unspecified,98366498,23.00,T&S UK - Subsistence
,BEIS,UKRI - AHRC,13/12/2018,T&S UK - Vehicle Hire,Business Process & Analysis,Unspecified,98366499,36.33,T&S UK - Vehicle Hire
,BEIS,UKRI - AHRC,13/12/2018,T&S UK - Public Transport,Creative Arts & Digital Humanities,Unspecified,98366500,9.70,T&S UK - Public Transport
,BEIS,UKRI - AHRC,13/12/2018,T&S UK - Subsistence,Creative Arts & Digital Humanities,Unspecified,98366500,4.69,T&S UK - Subsistence
,BEIS,UKRI - AHRC,13/12/2018,T&S UK - Subsistence,Creative Arts & Digital Humanities,Unspecified,98366500,7.59,T&S UK - Subsistence
,BEIS,UKRI - AHRC,13/12/2018,T&S UK - Subsistence,Creative Arts & Digital Humanities,Unspecified,98366500,3.39,T&S UK - Subsistence
,BEIS,UKRI - AHRC,13/12/2018,T&S UK - Parking Tolls Congestion Charges,Creative Arts & Digital Humanities,Unspecified,98366501,7.50,T&S UK - Parking Tolls Congestion Charges
,BEIS,UKRI - AHRC,13/12/2018,T&S UK - Subsistence,Creative Arts & Digital Humanities,Unspecified,98366501,4.00,T&S UK - Subsistence
,BEIS,UKRI - AHRC,14/12/2018,Council & Committee Honoraria,New Programme Development,Unspecified,98357084,170.00,Council & Committee Honoraria
,BEIS,UKRI - AHRC,14/12/2018,Council & Committee Honoraria,New Programme Development,Unspecified,98357085,170.00,Council & Committee Honoraria
,BEIS,UKRI - AHRC,14/12/2018,Council & Committee Honoraria,New Programme Development,Unspecified,98357086,170.00,Council & Committee Honoraria
,BEIS,UKRI - AHRC,14/12/2018,Council & Committee Honoraria,New Programme Development,Unspecified,98357087,170.00,Council & Committee Honoraria
,BEIS,UKRI - AHRC,14/12/2018,Council & Committee Honoraria,New Programme Development,Unspecified,98357088,230.00,Council & Committee Honoraria
,BEIS,UKRI - AHRC,14/12/2018,Council & Committee Honoraria,New Programme Development,Unspecified,98357089,170.00,Council & Committee Honoraria
,BEIS,UKRI - AHRC,14/12/2018,Council & Committee Honoraria,New Programme Development,Unspecified,98357091,170.00,Council & Committee Honoraria
,BEIS,UKRI - AHRC,14/12/2018,Council & Committee Honoraria,New Programme Development,Unspecified,98357092,170.00,Council & Committee Honoraria
,BEIS,UKRI - AHRC,14/12/2018,Council & Committee Honoraria,New Programme Development,Unspecified,98357093,170.00,Council & Committee Honoraria
,BEIS,UKRI - AHRC,14/12/2018,Council & Committee Honoraria,New Programme Development,Unspecified,98357094,170.00,Council & Committee Honoraria
,BEIS,UKRI - AHRC,14/12/2018,Council & Committee Honoraria,New Programme Development,Unspecified,98364632,170.00,Council & Committee Honoraria
,BEIS,UKRI - AHRC,14/12/2018,Council & Committee Honoraria,New Programme Development,Unspecified,98364633,170.00,Council & Committee Honoraria
,BEIS,UKRI - AHRC,14/12/2018,Council & Committee Honoraria,New Programme Development,Unspecified,98364634,170.00,Council & Committee Honoraria
,BEIS,UKRI - AHRC,14/12/2018,Council & Committee Honoraria,New Programme Development,Unspecified,98364636,230.00,Council & Committee Honoraria
,BEIS,UKRI - AHRC,14/12/2018,Council & Committee Honoraria,New Programme Development,Unspecified,98365391,170.00,Council & Committee Honoraria
,BEIS,UKRI - AHRC,14/12/2018,Council & Committee Honoraria,New Programme Development,Unspecified,98365393,170.00,Council & Committee Honoraria
,BEIS,UKRI - AHRC,14/12/2018,Council & Committee Honoraria,New Programme Development,Unspecified,98365394,170.00,Council & Committee Honoraria
,BEIS,UKRI - AHRC,14/12/2018,Council & Committee Honoraria,New Programme Development,Unspecified,98365395,170.00,Council & Committee Honoraria
,BEIS,UKRI - AHRC,14/12/2018,Council & Committee Honoraria,New Programme Development,Unspecified,98365396,170.00,Council & Committee Honoraria
,BEIS,UKRI - AHRC,14/12/2018,Council & Committee Honoraria,New Programme Development,Unspecified,98365397,170.00,Council & Committee Honoraria
,BEIS,UKRI - AHRC,14/12/2018,T&S UK - Public Transport,HR,Unspecified,98367147,25.40,T&S UK - Public Transport
,BEIS,UKRI - AHRC,17/12/2018,T&S UK - Public Transport,PSU Project Office,Unspecified,98339572,13.80,T&S UK - Public Transport
,BEIS,UKRI - AHRC,17/12/2018,T&S UK - Mileage,SMT,Unspecified,98368720,64.80,T&S UK - Mileage
,BEIS,UKRI - AHRC,17/12/2018,T&S UK - Subsistence,SMT,Unspecified,98368720,6.85,T&S UK - Subsistence
,BEIS,UKRI - AHRC,17/12/2018,T&S UK - Other Charges,Communications,Unspecified,98368721,7.90,T&S UK - Other Charges
,BEIS,UKRI - AHRC,17/12/2018,T&S UK - Public Transport,Communications,Unspecified,98368721,19.60,T&S UK - Public Transport
,BEIS,UKRI - AHRC,17/12/2018,T&S UK - Subsistence,Communications,Unspecified,98368721,13.50,T&S UK - Subsistence
,BEIS,UKRI - AHRC,17/12/2018,T&S UK - Subsistence,Communications,Unspecified,98368721,2.75,T&S UK - Subsistence
,BEIS,UKRI - AHRC,17/12/2018,T&S UK - Other Charges,Creative Arts & Digital Humanities,Unspecified,98368722,5.50,T&S UK - Other Charges
,BEIS,UKRI - AHRC,17/12/2018,T&S UK - Subsistence,Creative Arts & Digital Humanities,Unspecified,98368722,8.52,T&S UK - Subsistence
,BEIS,UKRI - AHRC,17/12/2018,T&S UK - Subsistence,Creative Arts & Digital Humanities,Unspecified,98368722,3.49,T&S UK - Subsistence
,BEIS,UKRI - AHRC,19/12/2018,T&S UK - Mileage,HR,Unspecified,98344652,23.04,T&S UK - Mileage
,BEIS,UKRI - AHRC,19/12/2018,T&S UK - Public Transport,GCRF - Programme Delivery,Unspecified,98370490,11.84,T&S UK - Public Transport
,BEIS,UKRI - AHRC,19/12/2018,T&S UK - Subsistence,"Languages,Literature & International Engagement",Unspecified,98370490,7.77,T&S UK - Subsistence
,BEIS,UKRI - AHRC,19/12/2018,T&S UK - Mileage,PSU Project Office,Unspecified,98370491,18.23,T&S UK - Mileage
,BEIS,UKRI - AHRC,19/12/2018,UK - Professional Memberships & Subscriptions,HR,Unspecified,98370492,135.00,UK - Professional Memberships & Subscriptions
,BEIS,UKRI - AHRC,19/12/2018,UK - Professional Memberships & Subscriptions,HR,Unspecified,98370494,135.00,UK - Professional Memberships & Subscriptions
,BEIS,UKRI - AHRC,19/12/2018,T&S UK - Public Transport,"AHRC - Strategic Planning, Evidence & Impact",Unspecified,98370495,17.77,T&S UK - Public Transport
,BEIS,UKRI - AHRC,19/12/2018,T&S UK - Public Transport,GCRF - Programme Delivery,Unspecified,98370495,5.00,T&S UK - Public Transport
,BEIS,UKRI - AHRC,19/12/2018,T&S UK - Subsistence,"AHRC - Strategic Planning, Evidence & Impact",Unspecified,98370495,3.10,T&S UK - Subsistence
,BEIS,UKRI - AHRC,19/12/2018,T&S UK - Subsistence,GCRF - Programme Delivery,Unspecified,98370495,5.10,T&S UK - Subsistence
,BEIS,UKRI - AHRC,21/12/2018,T&S UK - Subsistence,"Languages,Literature & International Engagement",Unspecified,98372011,5.55,T&S UK - Subsistence
,BEIS,UKRI - AHRC,21/12/2018,T&S UK - Subsistence,"Languages,Literature & International Engagement",Unspecified,98372011,13.13,T&S UK - Subsistence
,BEIS,UKRI - AHRC,21/12/2018,T&S UK - Mileage,PSU Project Office,Unspecified,98372013,51.84,T&S UK - Mileage
,BEIS,UKRI - AHRC,21/12/2018,T&S UK - Public Transport,SMT Strategic Leads,Unspecified,98372015,4.00,T&S UK - Public Transport
,BEIS,UKRI - AHRC,21/12/2018,T&S UK - Public Transport,SMT Strategic Leads,Unspecified,98372015,7.60,T&S UK - Public Transport
,BEIS,UKRI - AHRC,21/12/2018,T&S UK - Public Transport,SMT Strategic Leads,Unspecified,98372016,9.90,T&S UK - Public Transport
,BEIS,UKRI - AHRC,21/12/2018,T&S UK - Subsistence,SMT Strategic Leads,Unspecified,98372016,6.15,T&S UK - Subsistence
,BEIS,UKRI - AHRC,24/12/2018,T&S UK - Other Charges,Newton Programme Delivery,Unspecified,98372921,81.76,T&S UK - Other Charges
,BEIS,UKRI - AHRC,10/12/2018,Research Grant Expenditure,Global Challenges Research Fund (GCRF),UWIC (University of Wales Institute Cardiff),98347592,4958.18,Research Grant Expenditure
,BEIS,UKRI - AHRC,10/12/2018,Fellowships,Research Fellowships,UWIC (University of Wales Institute Cardiff),98347845,20194.66,Fellowships
,BEIS,UKRI - AHRC,12/12/2018,Conferences & Seminars,"AHRC - Strategic Planning, Evidence & Impact",Via-Vox Ltd T/A Powwownow,98364057,19.34,Conferences & Seminars
,BEIS,UKRI - AHRC,10/12/2018,Research Grant Expenditure,Networks & Workshops,Victoria and Albert Museum,98347549,5754.64,Research Grant Expenditure
,BEIS,UKRI - AHRC,13/12/2018,Advertising & Promotion,Communications,Vince Ayris Ltd,98364278,284.95,Advertising & Promotion
,BEIS,UKRI - AHRC,21/12/2018,Recruitment Costs,HR,Warwick University Services Ltd,98370933,245.00,Recruitment Costs
,BEIS,UKRI - AHRC,21/12/2018,Recruitment Costs,PSU Project Office,Warwick University Services Ltd,98370934,245.00,Recruitment Costs
,BEIS,UKRI - AHRC,06/12/2018,Mobile Phone Costs,Corporate Services,West UC Ltd,98354500,326.74,Mobile Phone Costs
,BEIS,UKRI - AHRC,28/12/2018,Mobile Phone Costs,Corporate Services,West UC Ltd,98373823,81.42,Mobile Phone Costs
,BEIS,UKRI - AHRC,28/12/2018,Mobile Phone Costs,Corporate Services,West UC Ltd,98373823,407.08,Mobile Phone Costs
,BEIS,UKRI - BBSRC,12/12/2018,Capital Grants & Equipment to HEIs,FG - Accounts & Business Planning,Royal Veterinary College,98351605,1700.00,Capital Grants & Equipment to HEIs
,BEIS,UKRI - BBSRC,12/12/2018,Fellowships,FG - Accounts & Business Planning,Royal Veterinary College,98349659,25400.95,Fellowships
,BEIS,UKRI - BBSRC,12/12/2018,Research Grant Expenditure,FG - Accounts & Business Planning,Royal Veterinary College,98350357,144047.16,Research Grant Expenditure
,BEIS,UKRI - BBSRC,12/12/2018,Research Grant Expenditure,FG - Accounts & Business Planning,Royal Veterinary College,98350519,58762.40,Research Grant Expenditure
,BEIS,UKRI - BBSRC,12/12/2018,Research Grant Expenditure,FG - Accounts & Business Planning,Royal Veterinary College,98350549,30171.17,Research Grant Expenditure
,BEIS,UKRI - BBSRC,12/12/2018,Research Grant Expenditure,FG - Accounts & Business Planning,Royal Veterinary College,98350588,35109.11,Research Grant Expenditure
,BEIS,UKRI - BBSRC,12/12/2018,Research Grant Expenditure,FG - Accounts & Business Planning,Royal Veterinary College,98350868,29980.37,Research Grant Expenditure
,BEIS,UKRI - BBSRC,12/12/2018,Research Grant Expenditure,FG - Accounts & Business Planning,Royal Veterinary College,98350873,31882.99,Research Grant Expenditure
,BEIS,UKRI - BBSRC,12/12/2018,Research Grant Expenditure,FG - Accounts & Business Planning,Royal Veterinary College,98350882,1863.29,Research Grant Expenditure
,BEIS,UKRI - BBSRC,12/12/2018,Research Grant Expenditure,FG - Accounts & Business Planning,Royal Veterinary College,98350885,25351.43,Research Grant Expenditure
,BEIS,UKRI - BBSRC,12/12/2018,Research Grant Expenditure,FG - Accounts & Business Planning,Royal Veterinary College,98351348,27525.27,Research Grant Expenditure
,BEIS,UKRI - BBSRC,12/12/2018,Research Grant Expenditure,FG - Accounts & Business Planning,Royal Veterinary College,98351385,37946.79,Research Grant Expenditure
,BEIS,UKRI - BBSRC,12/12/2018,Research Grant Expenditure,FG - Accounts & Business Planning,Royal Veterinary College,98351430,57380.45,Research Grant Expenditure
,BEIS,UKRI - BBSRC,12/12/2018,Research Grant Expenditure,FG - Accounts & Business Planning,Royal Veterinary College,98351508,26255.99,Research Grant Expenditure
,BEIS,UKRI - BBSRC,12/12/2018,Research Grant Expenditure,FG - Accounts & Business Planning,Royal Veterinary College,98351534,32458.81,Research Grant Expenditure
,BEIS,UKRI - BBSRC,12/12/2018,Research Grant Expenditure,FG - Accounts & Business Planning,Royal Veterinary College,98351605,28586.42,Research Grant Expenditure
,BEIS,UKRI - BBSRC,12/12/2018,Research Grant Expenditure,FG - Accounts & Business Planning,Royal Veterinary College,98351733,48683.89,Research Grant Expenditure
,BEIS,UKRI - BBSRC,12/12/2018,Research Grant Expenditure,FG - Accounts & Business Planning,Royal Veterinary College,98351749,17502.90,Research Grant Expenditure
,BEIS,UKRI - BBSRC,19/12/2018,Health & Safety (inc. Medicals & Opticians),JBOS Health and Safety,Abbey Business Equipment Ltd,98369152,228.00,Health & Safety (inc. Medicals & Opticians)
,BEIS,UKRI - BBSRC,18/12/2018,Non-Capital Building Construction,JBOS - Maintenance,Abbey Business Equipment Ltd,98369050,"2,520.00",Non-Capital Building Construction
,BEIS,UKRI - BBSRC,24/12/2018,Non-Capital Building Construction,JBOS - Maintenance,Abbey Business Equipment Ltd,98369074,"4,636.80",Non-Capital Building Construction
,BEIS,UKRI - BBSRC,24/12/2018,Non-Capital Building Construction,JBOS - Maintenance,Abbey Business Equipment Ltd,98369074,"5,544.00",Non-Capital Building Construction
,BEIS,UKRI - BBSRC,24/12/2018,Non-Capital Building Construction,JBOS - Maintenance,Abbey Business Equipment Ltd,98369106,"17,287.20",Non-Capital Building Construction
,BEIS,UKRI - BBSRC,24/12/2018,Non-Capital Building Construction,JBOS - Maintenance,Abbey Business Equipment Ltd,98369120,"5,857.49",Non-Capital Building Construction
,BEIS,UKRI - BBSRC,24/12/2018,Non-Capital Building Construction,JBOS - Maintenance,Abbey Business Equipment Ltd,98369133,"5,250.00",Non-Capital Building Construction
,BEIS,UKRI - BBSRC,24/12/2018,Non-Capital Building Construction,JBOS - Maintenance,Abbey Business Equipment Ltd,98369260,"2,970.00",Non-Capital Building Construction
,BEIS,UKRI - BBSRC,24/12/2018,Non-Capital Building Construction,JBOS - Maintenance,Abbey Business Equipment Ltd,98369260,"2,880.00",Non-Capital Building Construction
,BEIS,UKRI - BBSRC,24/12/2018,Non-Capital Building Construction,JBOS - Maintenance,Abbey Business Equipment Ltd,98369260,750.00,Non-Capital Building Construction
,BEIS,UKRI - BBSRC,24/12/2018,Non-Capital Building Construction,JBOS - Maintenance,Abbey Business Equipment Ltd,98369260,"2,484.00",Non-Capital Building Construction
,BEIS,UKRI - BBSRC,24/12/2018,Non-Capital Building Construction,JBOS - Maintenance,Abbey Business Equipment Ltd,98369260,"3,000.00",Non-Capital Building Construction
,BEIS,UKRI - BBSRC,12/12/2018,Capital Grants & Equipment to HEIs,FG - Accounts & Business Planning,Aberystwyth University,98351972,"82,349.10",Capital Grants & Equipment to HEIs
,BEIS,UKRI - BBSRC,12/12/2018,Research Grant Expenditure,FG - Accounts & Business Planning,Aberystwyth University,98350316,"56,444.81",Research Grant Expenditure
,BEIS,UKRI - BBSRC,12/12/2018,Research Grant Expenditure,FG - Accounts & Business Planning,Aberystwyth University,98350331,"45,537.36",Research Grant Expenditure
,BEIS,UKRI - BBSRC,12/12/2018,Research Grant Expenditure,FG - Accounts & Business Planning,Aberystwyth University,98350371,"43,362.34",Research Grant Expenditure
,BEIS,UKRI - BBSRC,12/12/2018,Research Grant Expenditure,FG - Accounts & Business Planning,Aberystwyth University,98350398,"10,800.48",Research Grant Expenditure
,BEIS,UKRI - BBSRC,12/12/2018,Research Grant Expenditure,FG - Accounts & Business Planning,Aberystwyth University,98350402,"19,734.65",Research Grant Expenditure
,BEIS,UKRI - BBSRC,12/12/2018,Research Grant Expenditure,FG - Accounts & Business Planning,Aberystwyth University,98350405,"11,968.76",Research Grant Expenditure
,BEIS,UKRI - BBSRC,12/12/2018,Research Grant Expenditure,FG - Accounts & Business Planning,Aberystwyth University,98350439,"1,831.60",Research Grant Expenditure
,BEIS,UKRI - BBSRC,12/12/2018,Research Grant Expenditure,FG - Accounts & Business Planning,Aberystwyth University,98350525,"6,200.30",Research Grant Expenditure
,BEIS,UKRI - BBSRC,12/12/2018,Research Grant Expenditure,FG - Accounts & Business Planning,Aberystwyth University,98350635,"37,882.09",Research Grant Expenditure
,BEIS,UKRI - BBSRC,12/12/2018,Research Grant Expenditure,FG - Accounts & Business Planning,Aberystwyth University,98350944,"36,956.27",Research Grant Expenditure
,BEIS,UKRI - BBSRC,12/12/2018,Research Grant Expenditure,FG - Accounts & Business Planning,Aberystwyth University,98351016,"22,323.75",Research Grant Expenditure
,BEIS,UKRI - BBSRC,12/12/2018,Research Grant Expenditure,FG - Accounts & Business Planning,Aberystwyth University,98351215,"25,193.09",Research Grant Expenditure
,BEIS,UKRI - BBSRC,12/12/2018,Research Grant Expenditure,FG - Accounts & Business Planning,Aberystwyth University,98351259,"1,890.19",Research Grant Expenditure
,BEIS,UKRI - BBSRC,12/12/2018,Research Grant Expenditure,FG - Accounts & Business Planning,Aberystwyth University,98351300,"83,583.99",Research Grant Expenditure
,BEIS,UKRI - BBSRC,12/12/2018,Research Grant Expenditure,FG - Accounts & Business Planning,Aberystwyth University,98351720,"3,150.31",Research Grant Expenditure
,BEIS,UKRI - BBSRC,12/12/2018,Research Grant Expenditure,FG - Accounts & Business Planning,Aberystwyth University,98351800,"39,246.48",Research Grant Expenditure
,BEIS,UKRI - BBSRC,12/12/2018,Research Grant Expenditure,FG - Accounts & Business Planning,Aberystwyth University,98351826,"29,085.71",Research Grant Expenditure
,BEIS,UKRI - BBSRC,12/12/2018,Research Grant Expenditure,FG - Accounts & Business Planning,Aberystwyth University,98351872,"18,279.52",Research Grant Expenditure
,BEIS,UKRI - BBSRC,12/12/2018,Research Grant Expenditure,FG - Accounts & Business Planning,Aberystwyth University,98351911,"32,830.38",Research Grant Expenditure
,BEIS,UKRI - BBSRC,12/12/2018,Research Grant Expenditure,FG - Accounts & Business Planning,Aberystwyth University,98351913,"-3,388.09",Research Grant Expenditure
,BEIS,UKRI - BBSRC,05/12/2018,Health & Safety (inc. Medicals & Opticians),PDG - Director,AM Health & Safety Ltd,98352587,90.00,Health & Safety (inc. Medicals & Opticians)
,BEIS,UKRI - BBSRC,12/12/2018,Research Grant Expenditure,FG - Accounts & Business Planning,unspecified,98350826,"20,544.27",Research Grant Expenditure
,BEIS,UKRI - BBSRC,27/12/2018,Secondments,FG - RCUK Assurance,Arts & Humanities Research Council,98325154,"23,349.10",Secondments
,BEIS,UKRI - BBSRC,12/12/2018,Capital Grants & Equipment to HEIs,FG - Accounts & Business Planning,Aston University,98351874,"-7,258.80",Capital Grants & Equipment to HEIs
,BEIS,UKRI - BBSRC,12/12/2018,Research Grant Expenditure,FG - Accounts & Business Planning,Aston University,98350603,"27,103.34",Research Grant Expenditure
,BEIS,UKRI - BBSRC,12/12/2018,Research Grant Expenditure,FG - Accounts & Business Planning,Aston University,98351412,"71,972.39",Research Grant Expenditure
,BEIS,UKRI - BBSRC,12/12/2018,Research Grant Expenditure,FG - Accounts & Business Planning,Aston University,98351467,"3,556.93",Research Grant Expenditure
,BEIS,UKRI - BBSRC,12/12/2018,Research Grant Expenditure,FG - Accounts & Business Planning,Aston University,98351771,"58,293.78",Research Grant Expenditure
,BEIS,UKRI - BBSRC,12/12/2018,Research Grant Expenditure,FG - Accounts & Business Planning,Aston University,98351809,"2,313.80",Research Grant Expenditure
,BEIS,UKRI - BBSRC,12/12/2018,Research Grant Expenditure,FG - Accounts & Business Planning,Aston University,98351874,"27,294.13",Research Grant Expenditure
,BEIS,UKRI - BBSRC,12/12/2018,Research Grant Expenditure,FG - Accounts & Business Planning,Aston University,98351875,"34,672.93",Research Grant Expenditure
,BEIS,UKRI - BBSRC,12/12/2018,Research Grant Expenditure,FG - Accounts & Business Planning,Aston University,98351985,"9,354.86",Research Grant Expenditure
,BEIS,UKRI - BBSRC,12/12/2018,Research Grant Expenditure,FG - Accounts & Business Planning,Bangor University,98350495,"22,049.03",Research Grant Expenditure
,BEIS,UKRI - BBSRC,12/12/2018,Research Grant Expenditure,FG - Accounts & Business Planning,Bangor University,98350942,"26,382.93",Research Grant Expenditure
,BEIS,UKRI - BBSRC,12/12/2018,Research Grant Expenditure,FG - Accounts & Business Planning,Bangor University,98351423,"44,076.65",Research Grant Expenditure
,BEIS,UKRI - BBSRC,12/12/2018,Research Grant Expenditure,FG - Accounts & Business Planning,Bangor University,98351542,"5,878.16",Research Grant Expenditure
,BEIS,UKRI - BBSRC,12/12/2018,Research Grant Expenditure,FG - Accounts & Business Planning,Bangor University,98351589,"23,589.22",Research Grant Expenditure
,BEIS,UKRI - BBSRC,12/12/2018,Health & Safety (inc. Medicals & Opticians),JBOS - Staff,Banner Group Ltd,98361418,56.88,Health & Safety (inc. Medicals & Opticians)
,BEIS,UKRI - BBSRC,03/12/2018,Printing & Stationery,JBOS - Administration,Banner Group Ltd,98342999,3.29,Printing & Stationery
,BEIS,UKRI - BBSRC,13/12/2018,Printing & Stationery,JBOS - Administration,Banner Group Ltd,98354872,8.64,Printing & Stationery
,BEIS,UKRI - BBSRC,13/12/2018,Printing & Stationery,JBOS - Administration,Banner Group Ltd,98354872,9.07,Printing & Stationery
,BEIS,UKRI - BBSRC,13/12/2018,Printing & Stationery,JBOS - Administration,Banner Group Ltd,98354872,7.56,Printing & Stationery
,BEIS,UKRI - BBSRC,13/12/2018,Printing & Stationery,JBOS - Administration,Banner Group Ltd,98354872,7.61,Printing & Stationery
,BEIS,UKRI - BBSRC,13/12/2018,Printing & Stationery,JBOS - Administration,Banner Group Ltd,98354872,19.68,Printing & Stationery
,BEIS,UKRI - BBSRC,13/12/2018,Printing & Stationery,JBOS - Administration,Banner Group Ltd,98354872,38.76,Printing & Stationery
,BEIS,UKRI - BBSRC,13/12/2018,Printing & Stationery,JBOS - Administration,Banner Group Ltd,98354872,41.04,Printing & Stationery
,BEIS,UKRI - BBSRC,13/12/2018,Printing & Stationery,JBOS - Administration,Banner Group Ltd,98354872,0.72,Printing & Stationery
,BEIS,UKRI - BBSRC,13/12/2018,Printing & Stationery,JBOS - Administration,Banner Group Ltd,98361417,7.68,Printing & Stationery
